Workbook

Sheet Notice
B2: DISCLAIMER
B4: 1. This workbook is the property of Fonterra Co-operative Group Limited (Fonterra).
B5: 2. The workbook contains the higher level inputs and calculations underpinning the calculation of the Farmgate Milk Price for the 2020/21 season.
B6: To protect the commercial confidentiality of certain information derived from Fonterra's actual performance data, a number of inputs have been aggregated for the purposes of this workbook.
B7: The workbook does not contain all the intermediate calculations required to calculate the Farmgate Milk Price. For example, the workbook does not contain the calculations required to convert contracted prices into 'shipment month' prices, or the
B8: 'tilted annuity' calculations used to calculate the WACC charge and depreciation inputs.
B9: 3. Fonterra does not warrant that the workbook is free from error, and explicitly disclaims any liability to any third party with respect to any use they may make of the workbook.
B10: 4. Third party recipients of this workbook use it entirely at their own risk. Fonterra will not accept any responsibility any loss which may result from use of the workbook including the direct or indirect consequences of computer viruses.
B11: 5. The workbook was not designed for use by third parties and Fonterra provides no assurance that third parties will be able to be readily operate the workbook.

Sheet Global
K1: F21 Milk Price | N1: =Summary!L110 -> 7.542820653
K2: Average FX conversion rate (Sales) | N2: =Summary!L20 -> 0.667727792
F7: Period Ended | O7: =K34 -> 2021-05-31 | Q7: =EOMONTH(T7,-1) -> 2020-05-31 | R7: =EOMONTH(S7,-1) -> 2020-04-30 | S7: =EOMONTH(T7,-1) -> 2020-05-31 | T7: =K32 -> 2020-06-30 | U7: =EOMONTH(T7,1) -> 2020-07-31 | V7: 2020-08-31 | W7: 2020-09-30 | X7: 2020-10-31 | Y7: 2020-11-30 | Z7: 2020-12-31 | AA7: 2021-01-31 | AB7: 2021-02-28 | AC7: 2021-03-31 | AD7: 2021-04-30 | AE7: 2021-05-31 | AF7: 2021-06-30 | AG7: 2021-07-31 | AH7: 2021-08-31 | AI7: 2021-09-30 | AJ7: 2021-10-31 | AK7: 2021-11-30 | AL7: 2021-12-31 | AM7: 2022-01-31 | AN7: 2022-02-28 | AO7: 2022-03-31 | AP7: =EOMONTH(AO7,1) -> 2022-04-30 | AQ7: =EOMONTH(AP7,1) -> 2022-05-31 | AR7: =EOMONTH(AQ7,1) -> 2022-06-30
D8: Calendar Year | T8: =YEAR(T7) -> 2020 | U8: 2020 | V8: 2020 | W8: 2020 | X8: 2020 | Y8: 2020 | Z8: 2020 | AA8: 2021 | AB8: 2021 | AC8: 2021 | AD8: 2021 | AE8: 2021 | AF8: 2021 | AG8: 2021 | AH8: 2021 | AI8: 2021 | AJ8: 2021 | AK8: 2021 | AL8: 2021 | AM8: 2022 | AN8: 2022 | AO8: 2022
D9: Month Number | T9: 1 | U9: =T9+1 -> 2 | V9: 3 | W9: 4 | X9: 5 | Y9: 6 | Z9: 7 | AA9: 8 | AB9: 9 | AC9: 10 | AD9: 11 | AE9: 12 | AF9: 13 | AG9: 14 | AH9: 15 | AI9: 16 | AJ9: 17 | AK9: 18 | AL9: 19 | AM9: 20 | AN9: 21 | AO9: 22
D10: Days in Period | R10: =R7-EOMONTH(R7,-1) -> 30 | S10: =S7-R7 -> 31 | T10: =T7-S7 -> 30 | U10: =U7-T7 -> 31 | V10: 31 | W10: 30 | X10: 31 | Y10: 30 | Z10: 31 | AA10: 31 | AB10: 28 | AC10: 31 | AD10: 30 | AE10: 31 | AF10: 30 | AG10: 31 | AH10: 31 | AI10: 30 | AJ10: 31 | AK10: 30 | AL10: 31 | AM10: 31 | AN10: 28 | AO10: 31
D11: Year to Go flag | O11: =INDEX(LookupTables!E11:E28,LookupTables!I11) -> 2021-11-30 | P11: =LookupTables!I11 -> 18 | T11: =IF(T9<=$P$11,1,0) -> 1 | U11: 1 | V11: 1 | W11: 1 | X11: 1 | Y11: 1 | Z11: 1 | AA11: 1 | AB11: 1 | AC11: 1 | AD11: 1 | AE11: 1 | AF11: 1 | AG11: 1 | AH11: 1 | AI11: 1 | AJ11: 1 | AK11: 1 | AL11: 0 | AM11: 0 | AN11: 0 | AO11: 0
C13: GENERAL MODEL INPUTS
C15: MODEL INFORMATION
C17: This model contains circular logic relating to the calculation of tax expense and net working capital. It is therefore necessary to set the calculation approach to 'iterative calculations.'
C20: INPUT KEY
F22: Colour Key: | K22: Description
K23: General Input Cells
K24: Calculation cell with different logic to adjacent cells
K25: Normal general input cells where inputs have been 'bundled' into a higher level / different input for purposes of this simplified model.
K26: Additional input cells added for purpose of this public model
K27: Cells intentionally left blank in 'Calculations' Tab
C29: DATE AND TIME DATA
A31: 7 | F31: First Day of the season | K31: 2020-06-01
F32: End Date of First Period | K32: =EOMONTH(K31,0) -> 2020-06-30
F34: End of season | K34: =EOMONTH(K31,11) -> 2021-05-31
C36: GLOBAL TIME DEPENDENT INPUTS | R36: =R7 -> 2020-04-30 | S36: 2020-05-31 | T36: 2020-06-30 | U36: 2020-07-31 | V36: 2020-08-31 | W36: 2020-09-30 | X36: 2020-10-31 | Y36: 2020-11-30 | Z36: 2020-12-31 | AA36: 2021-01-31 | AB36: 2021-02-28 | AC36: 2021-03-31 | AD36: 2021-04-30 | AE36: 2021-05-31 | AF36: 2021-06-30 | AG36: 2021-07-31 | AH36: 2021-08-31 | AI36: 2021-09-30 | AJ36: 2021-10-31 | AK36: 2021-11-30 | AL36: 2021-12-31 | AM36: 2022-01-31 | AN36: 2022-02-28 | AO36: 2022-03-31
F38: WACC - Annual | O38: 0.049
F39: WACC - monthly | O39: =(1+$O$38)^(1/12)-1 -> 0.003994400555
C41: SUMMARY OF ERROR CHECKS
F43: Worksheet name:
F44: Data Input | K44: ='Data Input'!J4 -> Okay
F45: Calculations | K45: =Calculations!J5 -> Okay
F46: Summary | K46: =Summary!L147 -> Okay | L46: If the 'Summary' sheet error check returns 'error', press F9 for more iterations until the figure (right) is close to zero. | U46: =SUM(Summary!Q147:AJ147) -> -1.033058652e-07
F47: Overall model | K47: =IF(COUNTA(K44:K46)=COUNTIF(K44:K46,"Okay"),"Okay","Error") -> Okay
F49: Calculations Worksheet:
F50: Debtor Reconciliation Check | K50: =Calculations!B926 -> Okay
F51: Closing Inventory Check | K51: =Calculations!B998 -> Okay
F52: FIFO Production Volume Check | K52: =Calculations!B1032 -> Okay
F53: Milk Solids Volume Check | K53: =Calculations!B1051 -> Okay
F54: Milk Price Calculation Check | K54: =Calculations!B1279 -> Okay
F55: PV of Cash Flow Check | K55: =Calculations!B1293 -> Okay
F57: Summary Worksheet
F58: Operating Cash Flow Check | K58: =Summary!L147 -> Okay

Sheet Data Input
F4: =Calculations!F5 -> Overall error check | J4: =IF(COUNTA(B:B)=COUNTIF(B:B,"Okay"),"Okay","Error") -> Okay | M4: Annual | T4: Monthly
J6: Units | K6: Input | N6: =Global!O7 -> 2021-05-31 | R6: =Global!R7 -> 2020-04-30 | S6: =Global!S7 -> 2020-05-31 | T6: =Global!T7 -> 2020-06-30 | U6: =Global!U7 -> 2020-07-31 | V6: =Global!V7 -> 2020-08-31 | W6: =Global!W7 -> 2020-09-30 | X6: =Global!X7 -> 2020-10-31 | Y6: =Global!Y7 -> 2020-11-30 | Z6: =Global!Z7 -> 2020-12-31 | AA6: =Global!AA7 -> 2021-01-31 | AB6: =Global!AB7 -> 2021-02-28 | AC6: =Global!AC7 -> 2021-03-31 | AD6: =Global!AD7 -> 2021-04-30 | AE6: =Global!AE7 -> 2021-05-31 | AF6: =Global!AF7 -> 2021-06-30 | AG6: =Global!AG7 -> 2021-07-31 | AH6: =Global!AH7 -> 2021-08-31 | AI6: =Global!AI7 -> 2021-09-30 | AJ6: =Global!AJ7 -> 2021-10-31 | AK6: =Global!AK7 -> 2021-11-30 | AL6: =Global!AL7 -> 2021-12-31 | AM6: =Global!AM7 -> 2022-01-31 | AN6: =Global!AN7 -> 2022-02-28 | AO6: =Global!AO7 -> 2022-03-31
D7: Calendar Year | T7: =YEAR(T6) -> 2020 | U7: 2020 | V7: 2020 | W7: 2020 | X7: 2020 | Y7: 2020 | Z7: 2020 | AA7: =YEAR(AA6) -> 2021 | AB7: 2021 | AC7: 2021 | AD7: 2021 | AE7: 2021 | AF7: 2021 | AG7: 2021 | AH7: 2021 | AI7: 2021 | AJ7: 2021 | AK7: 2021 | AL7: 2021 | AM7: 2022 | AN7: =YEAR(AN6) -> 2022 | AO7: =YEAR(AO6) -> 2022
D8: Month Number | T8: =Global!T9 -> 1 | U8: =Global!U9 -> 2 | V8: =Global!V9 -> 3 | W8: =Global!W9 -> 4 | X8: =Global!X9 -> 5 | Y8: =Global!Y9 -> 6 | Z8: =Global!Z9 -> 7 | AA8: =Global!AA9 -> 8 | AB8: =Global!AB9 -> 9 | AC8: =Global!AC9 -> 10 | AD8: =Global!AD9 -> 11 | AE8: =Global!AE9 -> 12 | AF8: =Global!AF9 -> 13 | AG8: =Global!AG9 -> 14 | AH8: =Global!AH9 -> 15 | AI8: =Global!AI9 -> 16 | AJ8: =Global!AJ9 -> 17 | AK8: =Global!AK9 -> 18 | AL8: =Global!AL9 -> 19 | AM8: =Global!AM9 -> 20 | AN8: =Global!AN9 -> 21 | AO8: =Global!AO9 -> 22
D9: Days in Period | R9: =Global!R10 -> 30 | S9: =Global!S10 -> 31 | T9: =Global!T10 -> 30 | U9: =Global!U10 -> 31 | V9: =Global!V10 -> 31 | W9: =Global!W10 -> 30 | X9: =Global!X10 -> 31 | Y9: =Global!Y10 -> 30 | Z9: =Global!Z10 -> 31 | AA9: =Global!AA10 -> 31 | AB9: =Global!AB10 -> 28 | AC9: =Global!AC10 -> 31 | AD9: =Global!AD10 -> 30 | AE9: =Global!AE10 -> 31 | AF9: =Global!AF10 -> 30 | AG9: =Global!AG10 -> 31 | AH9: =Global!AH10 -> 31 | AI9: =Global!AI10 -> 30 | AJ9: =Global!AJ10 -> 31 | AK9: =Global!AK10 -> 30 | AL9: =Global!AL10 -> 31 | AM9: =Global!AM10 -> 31 | AN9: =Global!AN10 -> 28 | AO9: =Global!AO10 -> 31
D10: Year to Go flag | N10: 1 | P10: =Global!P11 -> 18 | T10: =Global!T11 -> 1 | U10: =Global!U11 -> 1 | V10: =Global!V11 -> 1 | W10: =Global!W11 -> 1 | X10: =Global!X11 -> 1 | Y10: =Global!Y11 -> 1 | Z10: =Global!Z11 -> 1 | AA10: =Global!AA11 -> 1 | AB10: =Global!AB11 -> 1 | AC10: =Global!AC11 -> 1 | AD10: =Global!AD11 -> 1 | AE10: =Global!AE11 -> 1 | AF10: =Global!AF11 -> 1 | AG10: =Global!AG11 -> 1 | AH10: =Global!AH11 -> 1 | AI10: =Global!AI11 -> 1 | AJ10: =Global!AJ11 -> 1 | AK10: =Global!AK11 -> 1 | AL10: =Global!AL11 -> 0 | AM10: =Global!AM11 -> 0 | AN10: =Global!AN11 -> 0 | AO10: =Global!AO11 -> 0
T11: =T6 -> 2020-06-30 | U11: 2020-07-31 | V11: 2020-08-31 | W11: 2020-09-30 | X11: 2020-10-31 | Y11: 2020-11-30 | Z11: 2020-12-31 | AA11: 2021-01-31 | AB11: 2021-02-28 | AC11: 2021-03-31 | AD11: 2021-04-30 | AE11: 2021-05-31 | AF11: 2021-06-30 | AG11: 2021-07-31 | AH11: 2021-08-31 | AI11: 2021-09-30 | AJ11: 2021-10-31 | AK11: 2021-11-30 | AL11: 2021-12-31 | AM11: 2022-01-31 | AN11: =AN6 -> 2022-02-28 | AO11: =AO6 -> 2022-03-31
F14: GLOBAL
F16: STATUS / DATA SOURCE | J16: Weighted average annual FX rate for revenue. Also used in this simplified model to translate costs. In practice, USD purchases have a different time profile, & therefore weighted average conversion rate, to sales.
J17: We have adjusted the USD cost inputs to correct for this difference (so reported NZD values reconcile to the actual F21 milk price calculation.)
F20: FX
F22: Weighted average annual FX rate | R22: 0.667727792 | S22: 0.667727792 | T22: 0.667727792 | U22: 0.667727792 | V22: 0.667727792 | W22: 0.667727792 | X22: 0.667727792 | Y22: 0.667727792 | Z22: 0.667727792 | AA22: 0.667727792 | AB22: 0.667727792 | AC22: 0.667727792 | AD22: 0.667727792 | AE22: 0.667727792 | AF22: 0.667727792 | AG22: 0.667727792 | AH22: 0.667727792 | AI22: 0.667727792 | AJ22: 0.667727792 | AK22: 0.667727792 | AL22: 0.667727792 | AM22: 0.667727792 | AN22: 0.667727792
F24: MILK SUPPLY
F26: STATUS / DATA SOURCE | J26: The minor difference between 'milk paid for' and 'milk collected' reflects circumstances where Fonterra is unable to collect and process milk (eg due to adverse weather events) but is contractually obliged to pay for it.
J27: The calculation of the aggregate amount available to pay for milk is based on milk actually collected and therefore available for processing. The average milk price per kgMS is calculated based on all milk paid for by Fonterra.
F30: KGMS | O30: YTD | P30: YTG
F31: Milk Paid For | J31: 000 kgMS | N31: =SUM(T31:AE31) -> 1539405.985 | O31: =SUMIF($T$10:$AE$10,1,T31:AE31) -> 1539405.985 | P31: =N31-O31 -> 0 | T31: 14761.8541 | U31: 19072.2223 | V31: 100746.5417 | W31: 179878.5228 | X31: 213069.0186 | Y31: 192271.0643 | Z31: 183109.104 | AA31: 168249.6973 | AB31: 136523.8319 | AC31: 138163.3258 | AD31: 118179.5923 | AE31: 75381.2095
F32: Milk Supply collected | J32: 000 kgMS | N32: =SUM(T32:AE32) -> 1539223.212 | T32: 14760.6056 | U32: 19056.6099 | V32: 100746.5417 | W32: 179835.6591 | X32: 213062.3459 | Y32: 192262.4776 | Z32: 183109.104 | AA32: 168248.201 | AB32: 136523.8319 | AC32: 138163.3258 | AD32: 118179.5923 | AE32: 75274.9175
F33: Monthly distribution | J33: % | N33: =SUM(T33:AE33) -> 1 | T33: =T32/$N$32 -> 0.009589645921 | U33: =U32/$N$32 -> 0.01238066692 | V33: 0.06545284719 | W33: 0.1168353346 | X33: 0.1384219938 | Y33: 0.1249087696 | Z33: 0.1189620209 | AA33: 0.109307214 | AB33: 0.08869657812 | AC33: 0.08976172182 | AD33: 0.07677872277 | AE33: 0.04890448435
F36: PRODUCTION
F38: STATUS / DATA SOURCE | J38: Milk composition shown below is weighted average composition by quarter. In practice monthly average composition is used. The detail of the loss and composition assumptions reflects information that is confidential
J39: to Fonterra and is therefore not disclosed. We have left the relevant logic intact but have hardcoded the results of the production volume calculations on the Calculations tab.
F40: National average composition
F41: Fat | J41: % w/w | T41: 0.05359759976 | U41: 0.05359759976 | V41: 0.05359759976 | W41: 0.04534317121 | X41: 0.04534317121 | Y41: 0.04534317121 | Z41: 0.04580926307 | AA41: 0.04580926307 | AB41: 0.04580926307 | AC41: 0.05460105737 | AD41: 0.05460105737 | AE41: 0.05460105737
F42: Protein | J42: % w/w | T42: 0.04303013873 | U42: 0.04303013873 | V42: 0.04303013873 | W42: 0.03613497361 | X42: 0.03613497361 | Y42: 0.03613497361 | Z42: 0.03586905694 | AA42: 0.03586905694 | AB42: 0.03586905694 | AC42: 0.0420627859 | AD42: 0.0420627859 | AE42: 0.0420627859
F43: Lactose + Minerals | J43: % w/w | T43: 0.05332349253 | U43: 0.05332349253 | V43: 0.05332349253 | W43: 0.05505158236 | X43: 0.05505158236 | Y43: 0.05505158236 | Z43: 0.05372524237 | AA43: 0.05372524237 | AB43: 0.05372524237 | AC43: 0.05268973412 | AD43: 0.05268973412 | AE43: 0.05268973412
F45: Milk Composition Input Parameters
F46: Cream Fat Content | J46: % | N46: 0.42
F47: Skimmilk Fat Content | J47: % | N47: 0.0008
F48: Wholemilk Density | J48: % | N48: 1.032
F50: Lactose Standardising Inputs
F51: Lactose losses - WMP | J51: %
F52: Lactose losses - SMP | J52: %
F53: Lactose losses - BMP | J53: %
F54: Lactose content of lactose powder | J54: % | N54: 0.95
F56: Composition Target | L56: Fat | M56: Protein | N56: Moisture
F57: Butter | J57: %w/w
F58: AMF | J58: %w/w
F59: SMP | J59: %w/w
F60: BMP | J60: %w/w
F61: WMP | J61: %w/w
F63: Value Component Usage | L63: Fat | M63: Protein
F64: Butter | J64: kg/mt
F65: AMF | J65: kg/mt
F66: SMP | J66: kg/mt
F67: BMP | J67: kg/mt
F68: WMP | J68: kg/mt
F70: Product mix
F71: Annual average ratio of WMP MT to WMP + SMP | J71: % | N71: =SUMPRODUCT($T$33:$AE$33,T71:AE71) -> 0.7731007582 | T71: 0.7731007582 | U71: 0.7731007582 | V71: 0.7731007582 | W71: 0.7731007582 | X71: 0.7731007582 | Y71: 0.7731007582 | Z71: 0.7731007582 | AA71: 0.7731007582 | AB71: 0.7731007582 | AC71: 0.7731007582 | AD71: 0.7731007582 | AE71: 0.7731007582
F72: Annual average ratio of Butter MT to Butter + AMF | J72: % | N72: =SUMPRODUCT($T$33:$AE$33,T72:AE72) -> 0.6017092598 | T72: 0.6017092598 | U72: 0.6017092598 | V72: 0.6017092598 | W72: 0.6017092598 | X72: 0.6017092598 | Y72: 0.6017092598 | Z72: 0.6017092598 | AA72: 0.6017092598 | AB72: 0.6017092598 | AC72: 0.6017092598 | AD72: 0.6017092598 | AE72: 0.6017092598
F74: Fat : Protein Valued Component Ratio | N74: 1.31
F77: REVENUE
F79: STATUS / DATA SOURCE | J79: Prices and sales phasings entered as 3 month averages, consistent with the F21 Milk Price Statement.
J80: Downgrade adjustments are normally calculated separately but have been included here in average prices.
J81: Lactose prices to model are for calculated prices of lactose in month of use, under the assumption that lactose has been imported in prior months and stored for a period prior to usage.
E83: 1. Base Commodity Prices
F84: Full Year Commodity Prices - To Model
F85: Butter | J85: USD | N85: =SUM(T85:AO85)/COUNTIF(T85:AO85,"<>0") -> 4232.439284 | T85: 0 | U85: 0 | V85: 3568.334149 | W85: 3568.334149 | X85: 3568.334149 | Y85: 3551.604757 | Z85: 3551.604757 | AA85: 3551.604757 | AB85: 4102.218622 | AC85: 4102.218622 | AD85: 4102.218622 | AE85: 5182.930307 | AF85: 5182.930307 | AG85: 5182.930307 | AH85: 4757.108586 | AI85: 4757.108586 | AJ85: 4757.108586 | AK85: 0 | AL85: 0 | AM85: 0 | AN85: 0 | AO85: 0
F86: AMF | J86: USD | N86: =SUM(T86:AO86)/COUNTIF(T86:AO86,"<>0") -> 4919.544977 | T86: 0 | U86: 0 | V86: 4010.151793 | W86: 4010.151793 | X86: 4010.151793 | Y86: 4095.011047 | Z86: 4095.011047 | AA86: 4095.011047 | AB86: 4728.858781 | AC86: 4728.858781 | AD86: 4728.858781 | AE86: 5890.637298 | AF86: 5890.637298 | AG86: 5890.637298 | AH86: 5873.065966 | AI86: 5873.065966 | AJ86: 5873.065966 | AK86: 0 | AL86: 0 | AM86: 0 | AN86: 0 | AO86: 0
F87: SMP | J87: USD | N87: =SUM(T87:AO87)/COUNTIF(T87:AO87,"<>0") -> 3067.303801 | T87: 0 | U87: 0 | V87: 2699.266118 | W87: 2699.266118 | X87: 2699.266118 | Y87: 2797.459425 | Z87: 2797.459425 | AA87: 2797.459425 | AB87: 3044.692341 | AC87: 3044.692341 | AD87: 3044.692341 | AE87: 3382.956912 | AF87: 3382.956912 | AG87: 3382.956912 | AH87: 3412.144209 | AI87: 3412.144209 | AJ87: 3412.144209 | AK87: 0 | AL87: 0 | AM87: 0 | AN87: 0 | AO87: 0
F88: BMP | J88: USD | N88: =SUM(T88:AO88)/COUNTIF(T88:AO88,"<>0") -> 3233.048483 | T88: 0 | U88: 0 | V88: 2612.089808 | W88: 2612.089808 | X88: 2612.089808 | Y88: 2754.007575 | Z88: 2754.007575 | AA88: 2754.007575 | AB88: 2962.184568 | AC88: 2962.184568 | AD88: 2962.184568 | AE88: 3771.412523 | AF88: 3771.412523 | AG88: 3771.412523 | AH88: 4065.547939 | AI88: 4065.547939 | AJ88: 4065.547939 | AK88: 0 | AL88: 0 | AM88: 0 | AN88: 0 | AO88: 0
F89: WMP | J89: USD | N89: =SUM(T89:AO89)/COUNTIF(T89:AO89,"<>0") -> 3443.291425 | T89: 0 | U89: 0 | V89: 2974.040066 | W89: 2974.040066 | X89: 2974.040066 | Y89: 3019.59198 | Z89: 3019.59198 | AA89: 3019.59198 | AB89: 3246.750695 | AC89: 3246.750695 | AD89: 3246.750695 | AE89: 3899.134231 | AF89: 3899.134231 | AG89: 3899.134231 | AH89: 4076.940152 | AI89: 4076.940152 | AJ89: 4076.940152 | AK89: 0 | AL89: 0 | AM89: 0 | AN89: 0 | AO89: 0
F91: Lactose
F92: Fonterra Price (including CIF) | J92: USD | M92: 1
F93: Competitor Price (including CIF) | J93: USD | M93: 2 | N93: =SUMPRODUCT($T$93:$AE$93,Calculations!$T$232:$AE$232)/SUM(Calculations!$T$232:$AE$232) -> 1153.669418 | T93: 1153.669418 | U93: 1153.669418 | V93: 1153.669418 | W93: 1153.669418 | X93: 1153.669418 | Y93: 1153.669418 | Z93: 1153.669418 | AA93: 1153.669418 | AB93: 1153.669418 | AC93: 1153.669418 | AD93: 1153.669418 | AE93: 1153.669418
F94: Adjustment for difference in average FX | J94: USD | N94: 19.75130206
F95: Lactose | J95: USD | M95: =IF(N92<N93,1,2) -> 1 | N95: =CHOOSE($M$95,N$92,N$93) -> 0 | T95: =T93+$N$94 -> 1173.42072 | U95: 1173.42072 | V95: 1173.42072 | W95: 1173.42072 | X95: 1173.42072 | Y95: 1173.42072 | Z95: 1173.42072 | AA95: 1173.42072 | AB95: 1173.42072 | AC95: 1173.42072 | AD95: 1173.42072 | AE95: 1173.42072
E97: 2. Sales Phasing
F98: To Model: Selected Full Year Percentage Sales Phasings Adjusted to Align to YTD Percentage Phasings
F99: Butter | J99: % | N99: =SUM(T99:AO99) -> 1 | T99: 0 | U99: 0 | V99: 0 | W99: 0.04242008697 | X99: 0.04242008697 | Y99: 0.1248933112 | Z99: 0.1248933112 | AA99: 0.1248933112 | AB99: 0.08625258228 | AC99: 0.08625258228 | AD99: 0.08625258228 | AE99: 0.06418309441 | AF99: 0.06418309441 | AG99: 0.06418309441 | AH99: 0.02972428748 | AI99: 0.02972428748 | AJ99: 0.02972428748 | AK99: 0 | AL99: 0 | AM99: 0 | AN99: 0 | AO99: 0
F100: AMF | J100: % | N100: =SUM(T100:AO100) -> 1 | T100: 0 | U100: 0 | V100: 0 | W100: 0.06545813281 | X100: 0.06545813281 | Y100: 0.09922461277 | Z100: 0.09922461277 | AA100: 0.09922461277 | AB100: 0.09105848525 | AC100: 0.09105848525 | AD100: 0.09105848525 | AE100: 0.08512941017 | AF100: 0.08512941017 | AG100: 0.08512941017 | AH100: 0.01428206993 | AI100: 0.01428206993 | AJ100: 0.01428206993 | AK100: 0 | AL100: 0 | AM100: 0 | AN100: 0 | AO100: 0
F101: SMP | J101: % | N101: =SUM(T101:AO101) -> 1 | T101: 0 | U101: 0 | V101: 0 | W101: 0.06326043939 | X101: 0.06326043939 | Y101: 0.1170126894 | Z101: 0.1170126894 | AA101: 0.1170126894 | AB101: 0.07905927239 | AC101: 0.07905927239 | AD101: 0.07905927239 | AE101: 0.08468369109 | AF101: 0.08468369109 | AG101: 0.08468369109 | AH101: 0.01040405418 | AI101: 0.01040405418 | AJ101: 0.01040405418 | AK101: 0 | AL101: 0 | AM101: 0 | AN101: 0 | AO101: 0
F102: BMP | J102: % | N102: =SUM(T102:AO102) -> 1 | T102: 0 | U102: 0 | V102: 0 | W102: 0.06006993997 | X102: 0.06006993997 | Y102: 0.07609196104 | Z102: 0.07609196104 | AA102: 0.07609196104 | AB102: 0.09465803366 | AC102: 0.09465803366 | AD102: 0.09465803366 | AE102: 0.09494617033 | AF102: 0.09494617033 | AG102: 0.09494617033 | AH102: 0.02759054165 | AI102: 0.02759054165 | AJ102: 0.02759054165 | AK102: 0 | AL102: 0 | AM102: 0 | AN102: 0 | AO102: 0
F103: WMP | J103: % | N103: =SUM(T103:AO103) -> 1 | T103: 0 | U103: 0 | V103: 0 | W103: 0.06457462583 | X103: 0.06457462583 | Y103: 0.1068917012 | Z103: 0.1068917012 | AA103: 0.1068917012 | AB103: 0.09113807419 | AC103: 0.09113807419 | AD103: 0.09113807419 | AE103: 0.0849826444 | AF103: 0.0849826444 | AG103: 0.0849826444 | AH103: 0.007271162946 | AI103: 0.007271162946 | AJ103: 0.007271162946 | AK103: 0 | AL103: 0 | AM103: 0 | AN103: 0 | AO103: 0
E105: 3. Edible, Stockfood and Placement Spec Downgrade
L107: Butter | M107: AMF | N107: SMP | O107: BMP | P107: WMP
F108: Placement Specs Downgrade Adjustment | J108: % of Loss in Price x % of Production
F109: Edible Downgrade Downgrade Adjustment | J109: % of Loss in Price x % of Production
F110: Stockfood Downgrade Downgrade Adjustment | J110: % of Loss in Price x % of Production
E112: 4. Trader's Commission
F114: USD fixed costs | J114: USD 000s
F115: NZD fixed costs | J115: NZD 000s | N115: 131953.5986
F116: Annual production sold on GDT | J116: %
F117: Sales support cost across all volume | J117: USD / MT
F119: GDT fees schedule thresholds
F120: Base level threshold (upper limit) | J120: MT | N120: 0
F121: 2nd level threshold (upper limit) | J121: MT | N121: 50000
F122: 3rd level threshold (upper limit) | J122: MT | N122: 250000
F124: Base level threshold | J124: USD / MT | N124: 0
F125: 2nd level threshold | J125: USD / MT | N125: 30
F126: 3rd level threshold | J126: USD / MT | N126: 20
F127: Commission costs beyond 3rd level threshold | J127: USD / MT | N127: 5
F129: Fixed commission phasing | J129: % | N129: =SUM(V129:AJ129) -> 1 | V129: 0.08333333333 | W129: 0.08333333333 | X129: 0.08333333333 | Y129: 0.08333333333 | Z129: 0.08333333333 | AA129: 0.08333333333 | AB129: 0.08333333333 | AC129: 0.08333333333 | AD129: 0.08333333333 | AE129: 0.08333333333 | AF129: 0.08333333333 | AG129: 0.08333333333
F132: COLLECTION
F134: STATUS / DATA SOURCE
F137: By Product Diversion (Transport Cost) | J137: NZD '000
F138: Farm Milk Collection | J138: NZD '000 | N138: 359142.7372
F139: Total | J139: NZD '000 | N139: =SUM(N137:N138) -> 359142.7372
F141: Phasing | J141: NZD '000 | N141: =SUM(Q141:AO141) -> 1 | T141: 0.04133948466 | U141: 0.04624914536 | V141: 0.06282986389 | W141: 0.1024957554 | X141: 0.1336531502 | Y141: 0.1259140978 | Z141: 0.1101401768 | AA141: 0.1014414357 | AB141: 0.0767290354 | AC141: 0.07488876682 | AD141: 0.06680260318 | AE141: 0.0575164849
F143: OPEX
F145: STATUS / DATA SOURCE | J145: NOTE: (a) weighted average unit costs across all RCPs, given F21 actual product mix (b) average unit costs grossed up for weighted average rework volumes.
F149: Variable Costs
L150: Butter | M150: AMF | N150: SMP | O150: BMP | P150: WMP
F151: Production | J151: MT | L151: =Calculations!$N$201 -> 223370.423 | M151: =Calculations!$N$202 -> 121250.8958 | N151: =Calculations!$N$203 -> 479158.3332 | O151: =Calculations!$N$204 -> 52808.27796 | P151: =Calculations!$N$205 -> 2080247.556
F152: Rework | J152: MT
F153: Total Manufacturer | J153: MT
F154: Average Revenue per MT | J154: NZD 000s | L154: =Calculations!N369 -> 6165.848608 | M154: =Calculations!N370 -> 7176.3045 | N154: =Calculations!N371 -> 4510.230107 | O154: =Calculations!N372 -> 4784.028674 | P154: =Calculations!N373 -> 4976.757563
F155: Weights | J155: % | L155: =L151/SUM($L$151:$P$151) -> 0.07554374401 | M155: =M151/SUM($L$151:$P$151) -> 0.04100698074 | N155: =N151/SUM($L$151:$P$151) -> 0.1620510629 | O155: =O151/SUM($L$151:$P$151) -> 0.01785972815 | P155: =P151/SUM($L$151:$P$151) -> 0.7035384842
L156: Butter | M156: AMF | N156: SMP | O156: BMP | P156: WMP
F157: Rework - downgrade adjustment | J157: % of Production
F158: Packaging costs | J158: NZD / MT | L158: 174.8696749 | M158: 174.8696749 | N158: 174.8696749 | O158: 174.8696749 | P158: 174.8696749
F159: Energy (Exclusive of ETS Costs) | J159: NZD / MT
F160: Water, cleaning / CIP, consumables, effluent, lab, carbon | J160: NZD / MT
F161: Cleaning & CIP | J161: NZD / MT
F162: Consumables | J162: NZD / MT
F163: Effluent | J163: NZD / MT
F164: Laboratory | J164: NZD / MT
F165: Carbon Credit Requirement | J165: MT CO2e / MT
F167: Fixed Manufacturing Costs
F168: Wages & ERE | J168: NZD 000s
F169: Repairs & Maintenance | J169: NZD 000s
F170: Energy | J170: NZD 000s
F171: Water (Fixed) | J171: NZD 000s
F172: Cleaning & CIP (Fixed) | J172: NZD 000s
F173: Consumables (Fixed) | J173: NZD 000s
F174: Effluent (Fixed) | J174: NZD 000s
F175: Laboratory (Fixed) | J175: NZD 000s
F176: Total | J176: NZD 000s | N176: =SUM(N168:N170) -> 0
F178: Site Overheads
F179: Staff Costs | J179: NZD 000s
F180: Other | J180: NZD 000s | N180: 393513.5516
F181: Total | J181: NZD 000s | N181: =N180 -> 393513.5516
F183: Fixed Opex - Phasing | J183: % | N183: =SUM(T183:AE183) -> 1 | T183: 0.0953967276 | U183: 0.09545026095 | V183: 0.08759421194 | W183: 0.08041636686 | X183: 0.08181526152 | Y183: 0.07762094773 | Z183: 0.07879251644 | AA183: 0.07472657194 | AB183: 0.07246617621 | AC183: 0.07832896852 | AD183: 0.08200343218 | AE183: 0.0953885581
F185: Lactose CIF costs per MT | J185: USD
F187: NZUS Surrender Ratio | J187: %
F188: NZUSSPOT Index | J188: NZD / MT CO2e
F190: SUPPLY CHAIN
F192: STATUS / DATA SOURCE
F195: Inland Freight Costs per MT
F196: Butter | J196: NZD / MT
F197: Other (Excl Lactose) | J197: NZD / MT
F198: Lactose | J198: NZD / MT
F200: Variable Supply Chain Costs
F201: Kotahi Fees | J201: USD / MT
F202: Complaints | J202: % of revenue
F203: Supply chain admin etc (excl depn & amortisation) | J203: NZD / MT | N203: 81.07888043
F204: Pallets & Recycling | J204: NZD / MT
F205: Port Costs | J205: NZD / MT
F206: Dry Storage Costs | J206: NZD / MT
F207: Cool Storage Costs (Butter) per month | J207: NZD / MT
F208: Cool Storage Costs (Inbound) | J208: NZD / MT
F209: Cool Storage Costs (Outbound) | J209: NZD / MT
F210: Cool Storage Write-off Costs | J210: NZD / MT
F212: Fixed Supply Chain Costs
F213: Group Supply Chain Overheads | J213: NZD '000
F215: Supply Chain - Phasing | J215: % | N215: =SUM(T215:AO215) -> 1 | T215: 0.07695353482 | U215: 0.06080168379 | V215: 0.07477710625 | W215: 0.08379381469 | X215: 0.08673651303 | Y215: 0.09083598335 | Z215: 0.08574060333 | AA215: 0.09658340316 | AB215: 0.0834235151 | AC215: 0.09403069183 | AD215: 0.08158029806 | AE215: 0.08474285258
F217: ADMINISTRATION
F219: STATUS / DATA SOURCE
F222: NZ Manufacturing Overhead | J222: NZD '000
F223: Corporate Overhead | J223: NZD '000
F224: Fms Overheads | J224: NZD '000
F225: Shareholder Relations | J225: NZD '000
F226: Admin costs to model | J226: NZD '000 | N226: 344141.8927
F228: Admin - Phasing | J228: % | N228: =SUM(T228:AO228) -> 1 | T228: 0.0693707596 | U228: 0.1615095108 | V228: 0.07561102156 | W228: 0.07714733952 | X228: 0.08590756115 | Y228: 0.07303073976 | Z228: 0.08179312858 | AA228: 0.07253666436 | AB228: 0.0669679519 | AC228: 0.07871872691 | AD228: 0.07675565193 | AE228: 0.08065094392
F230: FIXED ASSETS
F232: STATUS / DATA SOURCE | J232: Fonterra's actual accounting and tax depreciation for collection assets are used in the calculation. Bundled here into (a) other depreciation and (b) as an adjustment to tilted annuity depreciation : tax depreciation ratio.
F236: Capital Charge | J236: NZD '000 | N236: 316198.05
F237: Net Depreciation | J237: NZD '000 | N237: 277910.6419
F238: Accounting Depreciation - collection assets | J238: NZD '000
F239: Tax Depreciation - collection assets | J239: NZD '000
F241: INCOME TAX
F243: STATUS / DATA SOURCE | J243: Actual tax depreciation as % of accounting depreciation ratio set at 130% for assets other than collection assets, where Fonterra's actual tax depreciation is used. Ratio has been adjusted so that reported tax equals actual tax calculated in the final
J244: Farmgate Milk Price calculation. Adjustment is required due to impact of differences between this model and final model in treatment of aggregated vs disaggregated cost inputs.
F247: Company Tax Rate | J247: % | N247: 0.28
F248: Tax depn as % of accounting depn | J248: % | N248: 1.3404006
F251: WORKING CAPITAL
F253: STATUS / DATA SOURCE | J253: Debtor days reset to weighted average across 5 RCPs. In practice debtor days are calculated by reference to sales included in the Milk Price calcuatlion for each RCP.
J254: Creditor days 'other' normally set separately to lactose (which is paid for prior to month of utilisation, when cost is recognised in the model) and other. Have been (a) set equal here and (b) used as balancing adjustment to align simplified capital charge to actual.
F257: Creditor days - Other | J257: Days | N257: 30.9999
F258: Creditor days - Lactose | J258: Days | N258: =N257 -> 30.9999
F259: Debtor Days
F260: Butter | J260: Days | N260: 21.02208812
F261: AMF | J261: Days | N261: 21.02208812
F262: SMP | J262: Days | N262: 21.02208812
F263: BMP | J263: Days | N263: 21.02208812
F264: WMP | J264: Days | N264: 21.02208812
F266: Supplier Payables - Advance Rate Schedule
F267: Advance rate | T267: 4.01 | U267: 4.16 | V267: 4.16 | W267: 4.16 | X267: 4.41 | Y267: 4.56 | Z267: 4.54 | AA267: 5.02 | AB267: 5.52 | AC267: 5.71 | AD267: 5.89 | AE267: 6.05 | AF267: 6.4 | AG267: 6.8 | AH267: 7.15 | AI267: 7.55 | AJ267: =Calculations!N1275 -> 7.552713468
F268: YTD advance rate / YTG % MP | J268: % | T268: =T267 -> 4.01 | U268: =U267 -> 4.16 | V268: 4.16 | W268: 4.16 | X268: 4.41 | Y268: 4.56 | Z268: 4.54 | AA268: 5.02 | AB268: 5.52 | AC268: 5.71 | AD268: 5.89 | AE268: 6.05 | AF268: 6.4 | AG268: 6.8 | AH268: 7.15 | AI268: 7.55 | AJ268: =AJ267 -> 7.552713468
F270: Working Capital - incremental cash costs | J270: NZD '000 | N270: 5119.960515
F271: Working Capital - incremental cash costs phasing | J271: % | N271: =SUM(T271:AJ271) -> 1 | T271: 0 | U271: 0 | V271: 0 | W271: 0.03623056717 | X271: 0.07797345543 | Y271: 0.1041190378 | Z271: 0.103760792 | AA271: 0.09248473301 | AB271: 0.07721099291 | AC271: 0.1040493332 | AD271: 0.0827594378 | AE271: 0.0945564635 | AF271: 0.1101631852 | AG271: 0.07969952029 | AH271: 0.02410504563 | AI271: 0.0112763933 | AJ271: 0.001611042774
F272: Working Capital - incremental cash costs (to model) | J272: NZD '000 | T272: =T271*$N$270 -> 0 | U272: =U271*$N$270 -> 0 | V272: 0 | W272: 185.4990733 | X272: 399.221013 | Y272: 533.0853626 | Z272: 531.2511579 | AA272: 473.5181812 | AB272: 395.317235 | AC272: 532.7284776 | AD272: 423.7250538 | AE272: 484.1253596 | AF272: 564.0311582 | AG272: 408.0583969 | AH272: 123.4168818 | AI272: 57.73468844 | AJ272: 8.248475389
F275: ADDITIONAL COMMODITY MILK PAYMENTS AND STANDARD SUPPLY ADJUSTMENTS
F277: STATUS / DATA SOURCE | J277: Adjustments for notional Winter Milk premiums, other additional payments or deductions for milk not supplied on standard terms, to the extent these would apply to the Farmgate Milk Price business, and demerit deductions for milk quality issues.
F280: Additional Commodity Milk Payments And Standard Supply Adjustments | J280: NZD '000 | N280: 15229.05843

Sheet Calculations
F5: Overall error check | J5: =IF(COUNTA(B:B)=COUNTIF(B:B,"Okay"),"Okay","Error") -> Okay | N5: Annual | T5: Monthly
J9: Units | K9: Cross Reference | N9: =Global!O7 -> 2021-05-31 | R9: =Global!R7 -> 2020-04-30 | S9: =Global!S7 -> 2020-05-31 | T9: =Global!T7 -> 2020-06-30 | U9: =Global!U7 -> 2020-07-31 | V9: =Global!V7 -> 2020-08-31 | W9: =Global!W7 -> 2020-09-30 | X9: =Global!X7 -> 2020-10-31 | Y9: =Global!Y7 -> 2020-11-30 | Z9: =Global!Z7 -> 2020-12-31 | AA9: =Global!AA7 -> 2021-01-31 | AB9: =Global!AB7 -> 2021-02-28 | AC9: =Global!AC7 -> 2021-03-31 | AD9: =Global!AD7 -> 2021-04-30 | AE9: =Global!AE7 -> 2021-05-31 | AF9: =Global!AF7 -> 2021-06-30 | AG9: =Global!AG7 -> 2021-07-31 | AH9: =Global!AH7 -> 2021-08-31 | AI9: =Global!AI7 -> 2021-09-30 | AJ9: =Global!AJ7 -> 2021-10-31 | AK9: =Global!AK7 -> 2021-11-30 | AL9: =Global!AL7 -> 2021-12-31 | AM9: =Global!AM7 -> 2022-01-31 | AN9: =Global!AN7 -> 2022-02-28 | AO9: =Global!AO7 -> 2022-03-31 | AP9: =Global!AP7 -> 2022-04-30 | AQ9: =Global!AQ7 -> 2022-05-31
D10: Calendar Year | T10: =YEAR(T9) -> 2020 | U10: =YEAR(U9) -> 2020 | V10: 2020 | W10: 2020 | X10: 2020 | Y10: 2020 | Z10: 2020 | AA10: 2021 | AB10: 2021 | AC10: 2021 | AD10: 2021 | AE10: 2021 | AF10: 2021 | AG10: 2021 | AH10: 2021 | AI10: 2021 | AJ10: 2021 | AK10: 2021 | AL10: 2021 | AM10: =YEAR(AM9) -> 2022 | AN10: =YEAR(AN9) -> 2022 | AO10: =YEAR(AO9) -> 2022 | AP10: =YEAR(AP9) -> 2022
D11: Month Number | T11: 1 | U11: =T11+1 -> 2 | V11: =U11+1 -> 3 | W11: =V11+1 -> 4 | X11: 5 | Y11: 6 | Z11: 7 | AA11: 8 | AB11: 9 | AC11: 10 | AD11: 11 | AE11: 12 | AF11: 13 | AG11: 14 | AH11: 15 | AI11: 16 | AJ11: 17 | AK11: 18 | AL11: 19 | AM11: =AL11+1 -> 20 | AN11: =AM11+1 -> 21 | AO11: =AN11+1 -> 22 | AP11: =AO11+1 -> 23
D12: Days in Period | R12: =Global!R10 -> 30 | S12: =Global!S10 -> 31 | T12: =Global!T10 -> 30 | U12: =U9-T9 -> 31 | V12: =V9-U9 -> 31 | W12: 30 | X12: 31 | Y12: 30 | Z12: 31 | AA12: 31 | AB12: 28 | AC12: 31 | AD12: 30 | AE12: 31 | AF12: 30 | AG12: 31 | AH12: 31 | AI12: 30 | AJ12: 31 | AK12: 30 | AL12: 31 | AM12: 31 | AN12: 28 | AO12: 31 | AP12: 30
D13: Year to Go flag | N13: 1 | P13: =Global!P11 -> 18 | T13: =Global!T11 -> 1 | U13: =Global!U11 -> 1 | V13: =Global!V11 -> 1 | W13: =Global!W11 -> 1 | X13: =Global!X11 -> 1 | Y13: =Global!Y11 -> 1 | Z13: =Global!Z11 -> 1 | AA13: =Global!AA11 -> 1 | AB13: =Global!AB11 -> 1 | AC13: =Global!AC11 -> 1 | AD13: =Global!AD11 -> 1 | AE13: =Global!AE11 -> 1 | AF13: =Global!AF11 -> 1 | AG13: =Global!AG11 -> 1 | AH13: =Global!AH11 -> 1 | AI13: =Global!AI11 -> 1 | AJ13: =Global!AJ11 -> 1 | AK13: =Global!AK11 -> 1 | AL13: =Global!AL11 -> 0 | AM13: =Global!AM11 -> 0 | AN13: =Global!AN11 -> 0 | AO13: =Global!AO11 -> 0
D14: PRODUCTION
D16: COMMENT | F16: See comments below. Production volumes to model have been hardcoded to align to actual volumes. Detail of loss assumptions & specification offsets, which is confidential to Fonterra, is required to
F17: flow milk supply through yield logic. Logic has however been retained in the model, and we have disclosed overall valued component usages by RCP (in cells O59:P63). These incorporate the
F18: valued component usages of the unstandardised products manufactured in October and November.
D20: DATA INPUT
F21: Milk Collected | J21: ='Data Input'!J32 -> 000 kgMS | N21: ='Data Input'!N32 -> 1539223.212 | T21: ='Data Input'!T32 -> 14760.6056 | U21: ='Data Input'!U32 -> 19056.6099 | V21: ='Data Input'!V32 -> 100746.5417 | W21: ='Data Input'!W32 -> 179835.6591 | X21: ='Data Input'!X32 -> 213062.3459 | Y21: ='Data Input'!Y32 -> 192262.4776 | Z21: ='Data Input'!Z32 -> 183109.104 | AA21: ='Data Input'!AA32 -> 168248.201 | AB21: ='Data Input'!AB32 -> 136523.8319 | AC21: ='Data Input'!AC32 -> 138163.3258 | AD21: ='Data Input'!AD32 -> 118179.5923 | AE21: ='Data Input'!AE32 -> 75274.9175
F22: Milk Supply - Phasing | J22: ='Data Input'!J33 -> % | N22: =SUM(T22:AE22) -> 1 | T22: ='Data Input'!T33 -> 0.009589645921 | U22: ='Data Input'!U33 -> 0.01238066692 | V22: ='Data Input'!V33 -> 0.06545284719 | W22: ='Data Input'!W33 -> 0.1168353346 | X22: ='Data Input'!X33 -> 0.1384219938 | Y22: ='Data Input'!Y33 -> 0.1249087696 | Z22: ='Data Input'!Z33 -> 0.1189620209 | AA22: ='Data Input'!AA33 -> 0.109307214 | AB22: ='Data Input'!AB33 -> 0.08869657812 | AC22: ='Data Input'!AC33 -> 0.08976172182 | AD22: ='Data Input'!AD33 -> 0.07677872277 | AE22: ='Data Input'!AE33 -> 0.04890448435
F24: ='Data Input'!F40 -> National average composition
F25: ='Data Input'!F41 -> Fat | J25: ='Data Input'!J41 -> % w/w | T25: ='Data Input'!T41 -> 0.05359759976 | U25: ='Data Input'!U41 -> 0.05359759976 | V25: ='Data Input'!V41 -> 0.05359759976 | W25: ='Data Input'!W41 -> 0.04534317121 | X25: ='Data Input'!X41 -> 0.04534317121 | Y25: ='Data Input'!Y41 -> 0.04534317121 | Z25: ='Data Input'!Z41 -> 0.04580926307 | AA25: ='Data Input'!AA41 -> 0.04580926307 | AB25: ='Data Input'!AB41 -> 0.04580926307 | AC25: ='Data Input'!AC41 -> 0.05460105737 | AD25: ='Data Input'!AD41 -> 0.05460105737 | AE25: ='Data Input'!AE41 -> 0.05460105737
F26: ='Data Input'!F42 -> Protein | J26: ='Data Input'!J42 -> % w/w | T26: ='Data Input'!T42 -> 0.04303013873 | U26: ='Data Input'!U42 -> 0.04303013873 | V26: ='Data Input'!V42 -> 0.04303013873 | W26: ='Data Input'!W42 -> 0.03613497361 | X26: ='Data Input'!X42 -> 0.03613497361 | Y26: ='Data Input'!Y42 -> 0.03613497361 | Z26: ='Data Input'!Z42 -> 0.03586905694 | AA26: ='Data Input'!AA42 -> 0.03586905694 | AB26: ='Data Input'!AB42 -> 0.03586905694 | AC26: ='Data Input'!AC42 -> 0.0420627859 | AD26: ='Data Input'!AD42 -> 0.0420627859 | AE26: ='Data Input'!AE42 -> 0.0420627859
F27: ='Data Input'!F43 -> Lactose + Minerals | J27: ='Data Input'!J43 -> % w/w | T27: ='Data Input'!T43 -> 0.05332349253 | U27: ='Data Input'!U43 -> 0.05332349253 | V27: ='Data Input'!V43 -> 0.05332349253 | W27: ='Data Input'!W43 -> 0.05505158236 | X27: ='Data Input'!X43 -> 0.05505158236 | Y27: ='Data Input'!Y43 -> 0.05505158236 | Z27: ='Data Input'!Z43 -> 0.05372524237 | AA27: ='Data Input'!AA43 -> 0.05372524237 | AB27: ='Data Input'!AB43 -> 0.05372524237 | AC27: ='Data Input'!AC43 -> 0.05268973412 | AD27: ='Data Input'!AD43 -> 0.05268973412 | AE27: ='Data Input'!AE43 -> 0.05268973412
F29: ='Data Input'!F70 -> Product mix
F30: ='Data Input'!F71 -> Annual average ratio of WMP MT to WMP + SMP | J30: ='Data Input'!J71 -> % | T30: ='Data Input'!T71 -> 0.7731007582 | U30: ='Data Input'!U71 -> 0.7731007582 | V30: ='Data Input'!V71 -> 0.7731007582 | W30: ='Data Input'!W71 -> 0.7731007582 | X30: ='Data Input'!X71 -> 0.7731007582 | Y30: ='Data Input'!Y71 -> 0.7731007582 | Z30: ='Data Input'!Z71 -> 0.7731007582 | AA30: ='Data Input'!AA71 -> 0.7731007582 | AB30: ='Data Input'!AB71 -> 0.7731007582 | AC30: ='Data Input'!AC71 -> 0.7731007582 | AD30: ='Data Input'!AD71 -> 0.7731007582 | AE30: ='Data Input'!AE71 -> 0.7731007582
F31: ='Data Input'!F72 -> Annual average ratio of Butter MT to Butter + AMF | J31: ='Data Input'!J72 -> % | T31: ='Data Input'!T72 -> 0.6017092598 | U31: ='Data Input'!U72 -> 0.6017092598 | V31: ='Data Input'!V72 -> 0.6017092598 | W31: ='Data Input'!W72 -> 0.6017092598 | X31: ='Data Input'!X72 -> 0.6017092598 | Y31: ='Data Input'!Y72 -> 0.6017092598 | Z31: ='Data Input'!Z72 -> 0.6017092598 | AA31: ='Data Input'!AA72 -> 0.6017092598 | AB31: ='Data Input'!AB72 -> 0.6017092598 | AC31: ='Data Input'!AC72 -> 0.6017092598 | AD31: ='Data Input'!AD72 -> 0.6017092598 | AE31: ='Data Input'!AE72 -> 0.6017092598
F33: ='Data Input'!F45 -> Milk Composition Input Parameters
F34: ='Data Input'!F46 -> Cream Fat Content | J34: ='Data Input'!J46 -> % | N34: ='Data Input'!N46 -> 0.42
F35: ='Data Input'!F47 -> Skimmilk Fat Content | J35: ='Data Input'!J47 -> % | N35: ='Data Input'!N47 -> 0.0008
F36: ='Data Input'!F48 -> Wholemilk Density | J36: ='Data Input'!J48 -> % | N36: ='Data Input'!N48 -> 1.032
F38: ='Data Input'!F50 -> Lactose Standardising Inputs
F39: ='Data Input'!F51 -> Lactose losses - WMP | J39: ='Data Input'!J51 -> % | N39: ='Data Input'!N51 -> 0
F40: ='Data Input'!F52 -> Lactose losses - SMP | J40: ='Data Input'!J52 -> % | N40: ='Data Input'!N52 -> 0
F41: ='Data Input'!F53 -> Lactose losses - BMP | J41: ='Data Input'!J53 -> % | N41: ='Data Input'!N53 -> 0
F42: ='Data Input'!F54 -> Lactose content of lactose powder | J42: ='Data Input'!J54 -> % | N42: ='Data Input'!N54 -> 0.95
F44: ='Data Input'!F56 -> Composition Target | L44: ='Data Input'!L56 -> Fat | M44: ='Data Input'!M56 -> Protein | N44: ='Data Input'!N56 -> Moisture
F45: ='Data Input'!F57 -> Butter | J45: ='Data Input'!J57 -> %w/w | L45: ='Data Input'!L57 -> 0 | M45: ='Data Input'!M57 -> 0 | N45: ='Data Input'!N57 -> 0
F46: ='Data Input'!F58 -> AMF | J46: ='Data Input'!J58 -> %w/w | L46: ='Data Input'!L58 -> 0 | M46: ='Data Input'!M58 -> 0 | N46: ='Data Input'!N58 -> 0
F47: ='Data Input'!F59 -> SMP | J47: ='Data Input'!J59 -> %w/w | L47: ='Data Input'!L59 -> 0 | M47: ='Data Input'!M59 -> 0 | N47: ='Data Input'!N59 -> 0
F48: ='Data Input'!F60 -> BMP | J48: ='Data Input'!J60 -> %w/w | L48: ='Data Input'!L60 -> 0 | M48: ='Data Input'!M60 -> 0 | N48: ='Data Input'!N60 -> 0
F49: ='Data Input'!F61 -> WMP | J49: ='Data Input'!J61 -> %w/w | L49: ='Data Input'!L61 -> 0 | M49: ='Data Input'!M61 -> 0 | N49: ='Data Input'!N61 -> 0
F51: ='Data Input'!F63 -> Value Component Usage | L51: ='Data Input'!L63 -> Fat | M51: ='Data Input'!M63 -> Protein
F52: ='Data Input'!F64 -> Butter | J52: ='Data Input'!J64 -> kg/mt | L52: ='Data Input'!L64 -> 0 | M52: ='Data Input'!M64 -> 0
F53: ='Data Input'!F65 -> AMF | J53: ='Data Input'!J65 -> kg/mt | L53: ='Data Input'!L65 -> 0 | M53: ='Data Input'!M65 -> 0
F54: ='Data Input'!F66 -> SMP | J54: ='Data Input'!J66 -> kg/mt | L54: ='Data Input'!L66 -> 0 | M54: ='Data Input'!M66 -> 0
F55: ='Data Input'!F67 -> BMP | J55: ='Data Input'!J67 -> kg/mt | L55: ='Data Input'!L67 -> 0 | M55: ='Data Input'!M67 -> 0
F56: ='Data Input'!F68 -> WMP | J56: ='Data Input'!J68 -> kg/mt | L56: ='Data Input'!L68 -> 0 | M56: ='Data Input'!M68 -> 0
O57: Hardcoded for use in inventory calculations
D58: CALCULATIONS | F58: Valued Component Usage | L58: Fat | M58: Protein | O58: Fat | P58: Protein
D59: Logic retained, but key input cells not populated. | F59: Butter | J59: % | L59: =OFFSET($L$51,MATCH($F59,$F$52:$F$56,0),)/1000 -> 0 | M59: =OFFSET($M$51,MATCH($F59,$F$52:$F$56,0),)/1000 -> 0 | O59: 0.8315 | P59: 0.00535
F60: AMF | J60: % | L60: =OFFSET($L$51,MATCH($F60,$F$52:$F$56,0),)/1000 -> 0 | M60: =OFFSET($M$51,MATCH($F60,$F$52:$F$56,0),)/1000 -> 0 | O60: 1.00196 | P60: 0.0008
F61: SMP | J61: % | L61: =OFFSET($L$51,MATCH($F61,$F$52:$F$56,0),)/1000 -> 0 | M61: =OFFSET($M$51,MATCH($F61,$F$52:$F$56,0),)/1000 -> 0 | O61: 0.008709894219 | P61: 0.327972735
F62: BMP | J62: % | L62: =OFFSET($L$51,MATCH($F62,$F$52:$F$56,0),)/1000 -> 0 | M62: =OFFSET($M$51,MATCH($F62,$F$52:$F$56,0),)/1000 -> 0 | O62: 0.08051 | P62: 0.30394
F63: WMP | J63: % | L63: =OFFSET($L$51,MATCH($F63,$F$52:$F$56,0),)/1000 -> 0 | M63: =OFFSET($M$51,MATCH($F63,$F$52:$F$56,0),)/1000 -> 0 | O63: 0.2622690276 | P63: 0.2420381125
F65: Lactose Requirements per MT
F66: SMP | J66: % | N66: =SUMPRODUCT(T66:AE66,T203:AE203)/N203 -> 1.052631579 | T66: =T$90/1000 -> 1.052631579 | U66: =U$90/1000 -> 1.052631579 | V66: 1.052631579 | W66: 1.052631579 | X66: 1.052631579 | Y66: 1.052631579 | Z66: 1.052631579 | AA66: 1.052631579 | AB66: 1.052631579 | AC66: 1.052631579 | AD66: 1.052631579 | AE66: 1.052631579
F67: BMP | J67: % | N67: =SUMPRODUCT(T67:AE67,T204:AE204)/N204 -> 1.052631579 | T67: =T$92/1000 -> 1.052631579 | U67: =U$92/1000 -> 1.052631579 | V67: 1.052631579 | W67: 1.052631579 | X67: 1.052631579 | Y67: 1.052631579 | Z67: 1.052631579 | AA67: 1.052631579 | AB67: 1.052631579 | AC67: 1.052631579 | AD67: 1.052631579 | AE67: 1.052631579
F68: WMP | J68: % | N68: =SUMPRODUCT(T68:AE68,T205:AE205)/N205 -> 1.052631579 | T68: =T$108/1000 -> 1.052631579 | U68: =U$108/1000 -> 1.052631579 | V68: 1.052631579 | W68: 1.052631579 | X68: 1.052631579 | Y68: 1.052631579 | Z68: 1.052631579 | AA68: 1.052631579 | AB68: 1.052631579 | AC68: 1.052631579 | AD68: 1.052631579 | AE68: 1.052631579
F70: Wholemilk Composition Parameters
F71: Fat | J71: kg Fat / m3 wholemilk | T71: =$N$36*T25*1000 -> 55.31272295 | U71: 55.31272295 | V71: 55.31272295 | W71: 46.79415269 | X71: 46.79415269 | Y71: 46.79415269 | Z71: 47.27515949 | AA71: 47.27515949 | AB71: 47.27515949 | AC71: 56.3482912 | AD71: 56.3482912 | AE71: 56.3482912
F72: Protein | J72: kg Protein / m3 wholemilk | T72: =$N$36*T26*1000 -> 44.40710317 | U72: 44.40710317 | V72: 44.40710317 | W72: 37.29129277 | X72: 37.29129277 | Y72: 37.29129277 | Z72: 37.01686676 | AA72: 37.01686676 | AB72: 37.01686676 | AC72: 43.40879505 | AD72: 43.40879505 | AE72: 43.40879505
F73: Raw Milk Protein : SNF Ratio | J73: % | T73: =T26/SUM(T26:T27) -> 0.4465855429 | U73: 0.4465855429 | V73: 0.4465855429 | W73: 0.3962752319 | X73: 0.3962752319 | Y73: 0.3962752319 | Z73: 0.400349768 | AA73: 0.400349768 | AB73: 0.400349768 | AC73: 0.443922609 | AD73: 0.443922609 | AE73: 0.443922609
F74: Cream Protein | J74: % | T74: =(1-$N$34)/(1-T25)*T26 -> 0.02637089726 | U74: 0.02637089726 | V74: 0.02637089726 | W74: 0.02195373674 | X74: 0.02195373674 | Y74: 0.02195373674 | Z74: 0.02180282434 | AA74: 0.02180282434 | AB74: 0.02180282434 | AC74: 0.02580541898 | AD74: 0.02580541898 | AE74: 0.02580541898
F76: SMP
F77: Excess Cream
F78: kg cream | J78: kg /m3 wholemilk | T78: =IFERROR((T$72*$L$54-T$71*$M$54)/(T$74*$L$54-$N$34*$M$54),0) -> 0 | U78: =IFERROR((U$72*$L$54-U$71*$M$54)/(U$74*$L$54-$N$34*$M$54),0) -> 0 | V78: 0 | W78: 0 | X78: 0 | Y78: 0 | Z78: 0 | AA78: 0 | AB78: 0 | AC78: 0 | AD78: 0 | AE78: 0
F79: Fat | J79: kg /m3 wholemilk | T79: =T78*$N$34 -> 0 | U79: =U78*$N$34 -> 0 | V79: 0 | W79: 0 | X79: 0 | Y79: 0 | Z79: 0 | AA79: 0 | AB79: 0 | AC79: 0 | AD79: 0 | AE79: 0
F80: Protein | J80: kg /m3 wholemilk | T80: =T78*T74 -> 0 | U80: 0 | V80: 0 | W80: 0 | X80: 0 | Y80: 0 | Z80: 0 | AA80: 0 | AB80: 0 | AC80: 0 | AD80: 0 | AE80: 0
F82: SMP | J82: kg /m3 wholemilk | T82: =IFERROR((T71-T78*$N$34)/$L$54*1000,0) -> 0 | U82: =IFERROR((U71-U78*$N$34)/$L$54*1000,0) -> 0 | V82: 0 | W82: 0 | X82: 0 | Y82: 0 | Z82: 0 | AA82: 0 | AB82: 0 | AC82: 0 | AD82: 0 | AE82: 0
F83: Butter | J83: kg /m3 wholemilk | T83: =IFERROR((T79*$M$55-T80*$L$55)*1000/($L$52*$M$55-$M$52*$L$55),0) -> 0 | U83: =IFERROR((U79*$M$55-U80*$L$55)*1000/($L$52*$M$55-$M$52*$L$55),0) -> 0 | V83: 0 | W83: 0 | X83: 0 | Y83: 0 | Z83: 0 | AA83: 0 | AB83: 0 | AC83: 0 | AD83: 0 | AE83: 0
F84: BMP | J84: kg /m3 wholemilk | T84: =IFERROR((T80-T83*$M$52/1000)/($M$55/1000),0) -> 0 | U84: =IFERROR((U80-U83*$M$52/1000)/($M$55/1000),0) -> 0 | V84: 0 | W84: 0 | X84: 0 | Y84: 0 | Z84: 0 | AA84: 0 | AB84: 0 | AC84: 0 | AD84: 0 | AE84: 0
F85: AMF | J85: kg /m3 wholemilk | T85: =IFERROR((T79*$M$55-T80*$L$55)*1000/($L$53*$M$55-$M$53*$L$55),0) -> 0 | U85: =IFERROR((U79*$M$55-U80*$L$55)*1000/($L$53*$M$55-$M$53*$L$55),0) -> 0 | V85: 0 | W85: 0 | X85: 0 | Y85: 0 | Z85: 0 | AA85: 0 | AB85: 0 | AC85: 0 | AD85: 0 | AE85: 0
F86: BMP | J86: kg /m3 wholemilk | T86: =IFERROR((T80-T85*$M$53/1000)/($M$55/1000),0) -> 0 | U86: =IFERROR((U80-U85*$M$53/1000)/($M$55/1000),0) -> 0 | V86: 0 | W86: 0 | X86: 0 | Y86: 0 | Z86: 0 | AA86: 0 | AB86: 0 | AC86: 0 | AD86: 0 | AE86: 0
F88: Lactose Standardising
F89: Primary product (excl Losses) | J89: kg/mt | T89: =(1-$L$47-$N$47-$M$47/T73)*1000 -> 1000 | U89: =(1-$L$47-$N$47-$M$47/U73)*1000 -> 1000 | V89: 1000 | W89: 1000 | X89: 1000 | Y89: 1000 | Z89: 1000 | AA89: 1000 | AB89: 1000 | AC89: 1000 | AD89: 1000 | AE89: 1000
F90: Primary product (incl Losses) | J90: kg/mt | T90: =T89/(1-$N$40)/$N$42 -> 1052.631579 | U90: =U89/(1-$N$40)/$N$42 -> 1052.631579 | V90: 1052.631579 | W90: 1052.631579 | X90: 1052.631579 | Y90: 1052.631579 | Z90: 1052.631579 | AA90: 1052.631579 | AB90: 1052.631579 | AC90: 1052.631579 | AD90: 1052.631579 | AE90: 1052.631579
F91: BMP (excl Losses) | J91: kg/mt | T91: =(1-$L$48-$N$48-$M$48/T73)*1000 -> 1000 | U91: 1000 | V91: 1000 | W91: 1000 | X91: 1000 | Y91: 1000 | Z91: 1000 | AA91: 1000 | AB91: 1000 | AC91: 1000 | AD91: 1000 | AE91: 1000
F92: BMP (incl Losses and Moisture) | J92: kg/mt | T92: =T91/(1-$N$41)/$N$42 -> 1052.631579 | U92: =U91/(1-$N$41)/$N$42 -> 1052.631579 | V92: 1052.631579 | W92: 1052.631579 | X92: 1052.631579 | Y92: 1052.631579 | Z92: 1052.631579 | AA92: 1052.631579 | AB92: 1052.631579 | AC92: 1052.631579 | AD92: 1052.631579 | AE92: 1052.631579
F94: WMP
F95: Excess Cream
F96: kg cream | J96: kg /m3 wholemilk | T96: =IFERROR((T$72*$L$56-T$71*$M$56)/(T$74*$L$56-$N$34*$M$56),0) -> 0 | U96: =IFERROR((U$72*$L$56-U$71*$M$56)/(U$74*$L$56-$N$34*$M$56),0) -> 0 | V96: 0 | W96: 0 | X96: 0 | Y96: 0 | Z96: 0 | AA96: 0 | AB96: 0 | AC96: 0 | AD96: 0 | AE96: 0
F97: Fat | J97: kg /m3 wholemilk | T97: =T96*$N$34 -> 0 | U97: =U96*$N$34 -> 0 | V97: 0 | W97: 0 | X97: 0 | Y97: 0 | Z97: 0 | AA97: 0 | AB97: 0 | AC97: 0 | AD97: 0 | AE97: 0
F98: Protein | J98: kg /m3 wholemilk | T98: =T96*T74 -> 0 | U98: 0 | V98: 0 | W98: 0 | X98: 0 | Y98: 0 | Z98: 0 | AA98: 0 | AB98: 0 | AC98: 0 | AD98: 0 | AE98: 0
F100: WMP | J100: kg /m3 wholemilk | T100: =IFERROR((T71-T96*$N$34)/$L$56*1000,0) -> 0 | U100: =IFERROR((U71-U96*$N$34)/$L$56*1000,0) -> 0 | V100: 0 | W100: 0 | X100: 0 | Y100: 0 | Z100: 0 | AA100: 0 | AB100: 0 | AC100: 0 | AD100: 0 | AE100: 0
F101: Butter | J101: kg /m3 wholemilk | T101: =IFERROR((T97*$M$55-T98*$L$55)*1000/($L$52*$M$55-$M$52*$L$55),0) -> 0 | U101: =IFERROR((U97*$M$55-U98*$L$55)*1000/($L$52*$M$55-$M$52*$L$55),0) -> 0 | V101: 0 | W101: 0 | X101: 0 | Y101: 0 | Z101: 0 | AA101: 0 | AB101: 0 | AC101: 0 | AD101: 0 | AE101: 0
F102: BMP | J102: kg /m3 wholemilk | T102: =IFERROR((T98-T101*$M$52/1000)/($M$55/1000),0) -> 0 | U102: =IFERROR((U98-U101*$M$52/1000)/($M$55/1000),0) -> 0 | V102: 0 | W102: 0 | X102: 0 | Y102: 0 | Z102: 0 | AA102: 0 | AB102: 0 | AC102: 0 | AD102: 0 | AE102: 0
F103: AMF | J103: kg /m3 wholemilk | T103: =IFERROR((T97*$M$55-T98*$L$55)*1000/($L$53*$M$55-$M$53*$L$55),0) -> 0 | U103: =IFERROR((U97*$M$55-U98*$L$55)*1000/($L$53*$M$55-$M$53*$L$55),0) -> 0 | V103: 0 | W103: 0 | X103: 0 | Y103: 0 | Z103: 0 | AA103: 0 | AB103: 0 | AC103: 0 | AD103: 0 | AE103: 0
F104: BMP | J104: kg /m3 wholemilk | T104: =IFERROR((T98-T103*$M$53/1000)/($M$55/1000),0) -> 0 | U104: =IFERROR((U98-U103*$M$53/1000)/($M$55/1000),0) -> 0 | V104: 0 | W104: 0 | X104: 0 | Y104: 0 | Z104: 0 | AA104: 0 | AB104: 0 | AC104: 0 | AD104: 0 | AE104: 0
F106: Lactose Standardising
F107: Primary product (excl Losses) | J107: kg/mt | T107: =(1-$L$49-$N$49-$M$49/T73)*1000 -> 1000 | U107: =(1-$L$49-$N$49-$M$49/U73)*1000 -> 1000 | V107: 1000 | W107: 1000 | X107: 1000 | Y107: 1000 | Z107: 1000 | AA107: 1000 | AB107: 1000 | AC107: 1000 | AD107: 1000 | AE107: 1000
F108: Primary product (incl Losses) | J108: kg/mt | T108: =T107/(1-$N$39)/$N$42 -> 1052.631579 | U108: =U107/(1-$N$39)/$N$42 -> 1052.631579 | V108: 1052.631579 | W108: 1052.631579 | X108: 1052.631579 | Y108: 1052.631579 | Z108: 1052.631579 | AA108: 1052.631579 | AB108: 1052.631579 | AC108: 1052.631579 | AD108: 1052.631579 | AE108: 1052.631579
F109: BMP (excl Losses) | J109: kg/mt | T109: =(1-$L$48-$N$48-$M$48/T73)*1000 -> 1000 | U109: 1000 | V109: 1000 | W109: 1000 | X109: 1000 | Y109: 1000 | Z109: 1000 | AA109: 1000 | AB109: 1000 | AC109: 1000 | AD109: 1000 | AE109: 1000
F110: BMP (incl Losses and Moisture) | J110: kg/mt | T110: =T109/(1-$N$41)/$N$42 -> 1052.631579 | U110: 1052.631579 | V110: 1052.631579 | W110: 1052.631579 | X110: 1052.631579 | Y110: 1052.631579 | Z110: 1052.631579 | AA110: 1052.631579 | AB110: 1052.631579 | AC110: 1052.631579 | AD110: 1052.631579 | AE110: 1052.631579
F112: Monthly National Average Yields
F113: SMP | J113: % | N113: =SUMPRODUCT(T113:AE113,$T$21:$AE$21)/$N$21 -> 0 | T113: =T82/SUM(T$71:T$72) -> 0 | U113: =U82/SUM(U$71:U$72) -> 0 | V113: 0 | W113: 0 | X113: 0 | Y113: 0 | Z113: 0 | AA113: 0 | AB113: 0 | AC113: 0 | AD113: 0 | AE113: 0
F114: SMP Butter | J114: % | N114: =SUMPRODUCT(T114:AE114,$T$21:$AE$21)/$N$21 -> 0 | T114: =T83/SUM(T$71:T$72) -> 0 | U114: 0 | V114: 0 | W114: 0 | X114: 0 | Y114: 0 | Z114: 0 | AA114: 0 | AB114: 0 | AC114: 0 | AD114: 0 | AE114: 0
F115: SMP Butter BMP | J115: % | N115: 0 | T115: =T84/SUM(T$71:T$72) -> 0 | U115: 0 | V115: 0 | W115: 0 | X115: 0 | Y115: 0 | Z115: 0 | AA115: 0 | AB115: 0 | AC115: 0 | AD115: 0 | AE115: 0
F116: SMP AMF | J116: % | N116: 0 | T116: =T85/SUM(T$71:T$72) -> 0 | U116: 0 | V116: 0 | W116: 0 | X116: 0 | Y116: 0 | Z116: 0 | AA116: 0 | AB116: 0 | AC116: 0 | AD116: 0 | AE116: 0
F117: SMP AMF BMP | J117: % | N117: 0 | T117: =T86/SUM(T$71:T$72) -> 0 | U117: 0 | V117: 0 | W117: 0 | X117: 0 | Y117: 0 | Z117: 0 | AA117: 0 | AB117: 0 | AC117: 0 | AD117: 0 | AE117: 0
F119: WMP | J119: % | N119: 0 | T119: =T100/SUM(T$71:T$72) -> 0 | U119: 0 | V119: 0 | W119: 0 | X119: 0 | Y119: 0 | Z119: 0 | AA119: 0 | AB119: 0 | AC119: 0 | AD119: 0 | AE119: 0
F120: WMP Butter | J120: % | N120: 0 | T120: =T101/SUM(T$71:T$72) -> 0 | U120: 0 | V120: 0 | W120: 0 | X120: 0 | Y120: 0 | Z120: 0 | AA120: 0 | AB120: 0 | AC120: 0 | AD120: 0 | AE120: 0
F121: WMP Butter BMP | J121: % | N121: 0 | T121: =T102/SUM(T$71:T$72) -> 0 | U121: 0 | V121: 0 | W121: 0 | X121: 0 | Y121: 0 | Z121: 0 | AA121: 0 | AB121: 0 | AC121: 0 | AD121: 0 | AE121: 0
F122: WMP AMF | J122: % | N122: 0 | T122: =T103/SUM(T$71:T$72) -> 0 | U122: 0 | V122: 0 | W122: 0 | X122: 0 | Y122: 0 | Z122: 0 | AA122: 0 | AB122: 0 | AC122: 0 | AD122: 0 | AE122: 0
F123: WMP AMF BMP | J123: % | N123: 0 | T123: =T104/SUM(T$71:T$72) -> 0 | U123: 0 | V123: 0 | W123: 0 | X123: 0 | Y123: 0 | Z123: 0 | AA123: 0 | AB123: 0 | AC123: 0 | AD123: 0 | AE123: 0
F125: Calculated Mix to Model
F126: % of milksolids allocated to WMP | J126: % | N126: =SUMPRODUCT(T126:AE126,'Data Input'!$T$33:$AE$33) -> 0 | T126: =IFERROR(T30/(T30+(1-T30)*(T119/T113)),0) -> 0 | U126: 0 | V126: 0 | W126: 0 | X126: 0 | Y126: 0 | Z126: 0 | AA126: 0 | AB126: 0 | AC126: 0 | AD126: 0 | AE126: 0
F127: % of milkfat allocated to Butter - SMP | J127: % | N127: =SUMPRODUCT(T127:AE127,'Data Input'!$T$33:$AE$33) -> 0 | T127: =IFERROR(T31/(T31+(1-T31)*(T114/T116)),0) -> 0 | U127: 0 | V127: 0 | W127: 0 | X127: 0 | Y127: 0 | Z127: 0 | AA127: 0 | AB127: 0 | AC127: 0 | AD127: 0 | AE127: 0
F128: % of milkfat allocated to Butter - WMP | J128: % | N128: =SUMPRODUCT(T128:AE128,'Data Input'!$T$33:$AE$33) -> 0 | T128: =IFERROR(T31/(T31+(1-T31)*(T120/T122)),0) -> 0 | U128: 0 | V128: 0 | W128: 0 | X128: 0 | Y128: 0 | Z128: 0 | AA128: 0 | AB128: 0 | AC128: 0 | AD128: 0 | AE128: 0
F130: Product Weights
F131: SMP | J131: % | N131: =1-N126 -> 1 | T131: =1-T126 -> 1 | U131: 1 | V131: 1 | W131: 1 | X131: 1 | Y131: 1 | Z131: 1 | AA131: 1 | AB131: 1 | AC131: 1 | AD131: 1 | AE131: 1
F132: SMP Butter | J132: % | N132: =N131*N127 -> 0 | T132: =T131*T127 -> 0 | U132: 0 | V132: 0 | W132: 0 | X132: 0 | Y132: 0 | Z132: 0 | AA132: 0 | AB132: 0 | AC132: 0 | AD132: 0 | AE132: 0
F133: SMP Butter BMP | J133: % | N133: =N132 -> 0 | T133: =T132 -> 0 | U133: =U132 -> 0 | V133: 0 | W133: 0 | X133: 0 | Y133: 0 | Z133: 0 | AA133: 0 | AB133: 0 | AC133: 0 | AD133: 0 | AE133: 0
F134: SMP AMF | J134: % | N134: =N131*(1-N127) -> 1 | T134: =T131*(1-T127) -> 1 | U134: 1 | V134: 1 | W134: 1 | X134: 1 | Y134: 1 | Z134: 1 | AA134: 1 | AB134: 1 | AC134: 1 | AD134: 1 | AE134: 1
F135: SMP AMF BMP | J135: % | N135: =N134 -> 1 | T135: =T134 -> 1 | U135: =U134 -> 1 | V135: 1 | W135: 1 | X135: 1 | Y135: 1 | Z135: 1 | AA135: 1 | AB135: 1 | AC135: 1 | AD135: 1 | AE135: 1
F137: WMP | J137: % | N137: =N126 -> 0 | T137: =T126 -> 0 | U137: 0 | V137: 0 | W137: 0 | X137: 0 | Y137: 0 | Z137: 0 | AA137: 0 | AB137: 0 | AC137: 0 | AD137: 0 | AE137: 0
F138: WMP Butter | J138: % | N138: =N137*N128 -> 0 | T138: =T137*T128 -> 0 | U138: 0 | V138: 0 | W138: 0 | X138: 0 | Y138: 0 | Z138: 0 | AA138: 0 | AB138: 0 | AC138: 0 | AD138: 0 | AE138: 0
F139: WMP Butter BMP | J139: % | N139: =N138 -> 0 | T139: =T138 -> 0 | U139: =U138 -> 0 | V139: 0 | W139: 0 | X139: 0 | Y139: 0 | Z139: 0 | AA139: 0 | AB139: 0 | AC139: 0 | AD139: 0 | AE139: 0
F140: WMP AMF | J140: % | N140: =N137*(1-N128) -> 0 | T140: =T137*(1-T128) -> 0 | U140: 0 | V140: 0 | W140: 0 | X140: 0 | Y140: 0 | Z140: 0 | AA140: 0 | AB140: 0 | AC140: 0 | AD140: 0 | AE140: 0
F141: WMP AMF BMP | J141: % | N141: =N140 -> 0 | T141: =T140 -> 0 | U141: =U140 -> 0 | V141: 0 | W141: 0 | X141: 0 | Y141: 0 | Z141: 0 | AA141: 0 | AB141: 0 | AC141: 0 | AD141: 0 | AE141: 0
F142: Calculated Yields
F143: Butter | N143: =SUMPRODUCT(T143:AE143,$T$21:$AE$21)/$N$21 -> 0 | T143: =T132*T114+T138*T120 -> 0 | U143: 0 | V143: 0 | W143: 0 | X143: 0 | Y143: 0 | Z143: 0 | AA143: 0 | AB143: 0 | AC143: 0 | AD143: 0 | AE143: 0
F144: AMF | N144: =SUMPRODUCT(T144:AE144,$T$21:$AE$21)/$N$21 -> 0 | T144: =T134*T116+T140*T122 -> 0 | U144: 0 | V144: 0 | W144: 0 | X144: 0 | Y144: 0 | Z144: 0 | AA144: 0 | AB144: 0 | AC144: 0 | AD144: 0 | AE144: 0
F145: SMP | N145: =SUMPRODUCT(T145:AE145,$T$21:$AE$21)/$N$21 -> 0 | T145: =T131*T113 -> 0 | U145: 0 | V145: 0 | W145: 0 | X145: 0 | Y145: 0 | Z145: 0 | AA145: 0 | AB145: 0 | AC145: 0 | AD145: 0 | AE145: 0
F146: BMP | N146: =SUMPRODUCT(T146:AE146,$T$21:$AE$21)/$N$21 -> 0 | T146: =T133*T115+T139*T121+T135*T117+T141*T123 -> 0 | U146: 0 | V146: 0 | W146: 0 | X146: 0 | Y146: 0 | Z146: 0 | AA146: 0 | AB146: 0 | AC146: 0 | AD146: 0 | AE146: 0
F147: WMP | N147: =SUMPRODUCT(T147:AE147,$T$21:$AE$21)/$N$21 -> 0 | T147: =T137*T119 -> 0 | U147: 0 | V147: 0 | W147: 0 | X147: 0 | Y147: 0 | Z147: 0 | AA147: 0 | AB147: 0 | AC147: 0 | AD147: 0 | AE147: 0
F148: Total | N148: =SUM(N143:N147) -> 0 | T148: =SUM(T143:T147) -> 0 | U148: 0 | V148: 0 | W148: 0 | X148: 0 | Y148: 0 | Z148: 0 | AA148: 0 | AB148: 0 | AC148: 0 | AD148: 0 | AE148: 0
D150: Actual yield calculations | F150: Product Mix to Model
F151: Butter | J151: MT | N151: =SUM(T151:AE151) -> 0 | T151: =T143*T$21 -> 0 | U151: =U143*U$21 -> 0 | V151: 0 | W151: 0 | X151: 0 | Y151: 0 | Z151: 0 | AA151: 0 | AB151: 0 | AC151: 0 | AD151: 0 | AE151: 0
F152: AMF | J152: MT | N152: =SUM(T152:AE152) -> 0 | T152: =T144*T$21 -> 0 | U152: 0 | V152: 0 | W152: 0 | X152: 0 | Y152: 0 | Z152: 0 | AA152: 0 | AB152: 0 | AC152: 0 | AD152: 0 | AE152: 0
F153: SMP | J153: MT | N153: =SUM(T153:AE153) -> 0 | T153: =T145*T$21 -> 0 | U153: =U145*U$21 -> 0 | V153: 0 | W153: 0 | X153: 0 | Y153: 0 | Z153: 0 | AA153: 0 | AB153: 0 | AC153: 0 | AD153: 0 | AE153: 0
F154: BMP | J154: MT | N154: =SUM(T154:AE154) -> 0 | T154: 0 | U154: 0 | V154: 0 | W154: =W146*W$21 -> 0 | X154: 0 | Y154: 0 | Z154: 0 | AA154: 0 | AB154: 0 | AC154: 0 | AD154: 0 | AE154: 0
F155: WMP | J155: MT | N155: =SUM(T155:AE155) -> 0 | T155: =T147*T$21 -> 0 | U155: 0 | V155: 0 | W155: 0 | X155: 0 | Y155: 0 | Z155: 0 | AA155: 0 | AB155: 0 | AC155: 0 | AD155: 0 | AE155: 0
F156: Total | J156: MT | N156: =SUM(N151:N155) -> 0 | T156: =SUM(T151:T155) -> 0 | U156: =SUM(U151:U155) -> 0 | V156: =SUM(V151:V155) -> 0 | W156: =SUM(W151:W155) -> 0 | X156: 0 | Y156: 0 | Z156: 0 | AA156: 0 | AB156: 0 | AC156: 0 | AD156: 0 | AE156: 0
F158: Fat Usage
F159: Butter | J159: 000 kgMS | N159: =SUM(T159:AE159) -> 0 | T159: =T151*$L59 -> 0 | U159: 0 | V159: 0 | W159: 0 | X159: 0 | Y159: 0 | Z159: 0 | AA159: 0 | AB159: 0 | AC159: 0 | AD159: 0 | AE159: 0
F160: AMF | J160: 000 kgMS | N160: =SUM(T160:AE160) -> 0 | T160: 0 | U160: 0 | V160: 0 | W160: 0 | X160: 0 | Y160: 0 | Z160: 0 | AA160: 0 | AB160: 0 | AC160: 0 | AD160: 0 | AE160: 0
F161: SMP | J161: 000 kgMS | N161: =SUM(T161:AE161) -> 0 | T161: 0 | U161: 0 | V161: 0 | W161: 0 | X161: 0 | Y161: 0 | Z161: 0 | AA161: 0 | AB161: 0 | AC161: 0 | AD161: 0 | AE161: 0
F162: BMP | J162: 000 kgMS | N162: =SUM(T162:AE162) -> 0 | T162: 0 | U162: 0 | V162: 0 | W162: 0 | X162: 0 | Y162: 0 | Z162: 0 | AA162: 0 | AB162: 0 | AC162: 0 | AD162: 0 | AE162: 0
F163: WMP | J163: 000 kgMS | N163: =SUM(T163:AE163) -> 0 | T163: 0 | U163: 0 | V163: 0 | W163: 0 | X163: 0 | Y163: 0 | Z163: 0 | AA163: 0 | AB163: 0 | AC163: 0 | AD163: 0 | AE163: 0
F164: Total | J164: 000 kgMS | N164: =SUM(N159:N163) -> 0 | T164: =SUM(T159:T163) -> 0 | U164: 0 | V164: 0 | W164: 0 | X164: 0 | Y164: 0 | Z164: 0 | AA164: 0 | AB164: 0 | AC164: 0 | AD164: 0 | AE164: 0
F166: Protein Usage
F167: Butter | J167: 000 kgMS | N167: =SUM(T167:AE167) -> 0 | T167: =T151*$M59 -> 0 | U167: 0 | V167: 0 | W167: 0 | X167: 0 | Y167: 0 | Z167: 0 | AA167: 0 | AB167: 0 | AC167: 0 | AD167: 0 | AE167: 0
F168: AMF | J168: 000 kgMS | N168: =SUM(T168:AE168) -> 0 | T168: 0 | U168: 0 | V168: 0 | W168: 0 | X168: 0 | Y168: 0 | Z168: 0 | AA168: 0 | AB168: 0 | AC168: 0 | AD168: 0 | AE168: 0
F169: SMP | J169: 000 kgMS | N169: =SUM(T169:AE169) -> 0 | T169: 0 | U169: 0 | V169: 0 | W169: 0 | X169: 0 | Y169: 0 | Z169: 0 | AA169: 0 | AB169: 0 | AC169: 0 | AD169: 0 | AE169: 0
F170: BMP | J170: 000 kgMS | N170: =SUM(T170:AE170) -> 0 | T170: 0 | U170: 0 | V170: 0 | W170: 0 | X170: 0 | Y170: 0 | Z170: 0 | AA170: 0 | AB170: 0 | AC170: 0 | AD170: 0 | AE170: 0
F171: WMP | J171: 000 kgMS | N171: =SUM(T171:AE171) -> 0 | T171: 0 | U171: 0 | V171: 0 | W171: 0 | X171: 0 | Y171: 0 | Z171: 0 | AA171: 0 | AB171: 0 | AC171: 0 | AD171: 0 | AE171: 0
F172: Total | J172: 000 kgMS | N172: =SUM(N167:N171) -> 0 | T172: =SUM(T167:T171) -> 0 | U172: 0 | V172: 0 | W172: 0 | X172: 0 | Y172: 0 | Z172: 0 | AA172: 0 | AB172: 0 | AC172: 0 | AD172: 0 | AE172: 0
F174: Milk Composition
F175: Fat | J175: MT | N175: =IF(ISERROR(N164/SUM(N164,N172)),"N/A",N164/SUM(N164,N172)) -> N/A | T175: =IF(ISERROR(T164/SUM(T164,T172)),"N/A",T164/SUM(T164,T172)) -> N/A | U175: =IF(ISERROR(U164/SUM(U164,U172)),"N/A",U164/SUM(U164,U172)) -> N/A | V175: N/A | W175: N/A | X175: N/A | Y175: N/A | Z175: N/A | AA175: N/A | AB175: N/A | AC175: N/A | AD175: N/A | AE175: N/A
F176: Protein | J176: MT | N176: =IF(ISERROR(N172/SUM(N164,N172)),"N/A",N172/SUM(N164,N172)) -> N/A | T176: =IF(ISERROR(T172/SUM(T164,T172)),"N/A",T172/SUM(T164,T172)) -> N/A | U176: =IF(ISERROR(U172/SUM(U164,U172)),"N/A",U172/SUM(U164,U172)) -> N/A | V176: N/A | W176: N/A | X176: N/A | Y176: N/A | Z176: N/A | AA176: N/A | AB176: N/A | AC176: N/A | AD176: N/A | AE176: N/A
F178: Required Lactose - Calculated
F179: SMP | J179: MT | N179: =SUM(T179:AE179) -> 0 | T179: =T66*T153 -> 0 | U179: 0 | V179: 0 | W179: 0 | X179: 0 | Y179: 0 | Z179: 0 | AA179: 0 | AB179: 0 | AC179: 0 | AD179: 0 | AE179: 0
F180: BMP | J180: MT | N180: =SUM(T180:AE180) -> 0 | T180: 0 | U180: 0 | V180: 0 | W180: 0 | X180: 0 | Y180: 0 | Z180: 0 | AA180: 0 | AB180: 0 | AC180: 0 | AD180: 0 | AE180: 0
F181: WMP | J181: MT | N181: =SUM(T181:AE181) -> 0 | T181: 0 | U181: 0 | V181: 0 | W181: 0 | X181: 0 | Y181: 0 | Z181: 0 | AA181: 0 | AB181: 0 | AC181: 0 | AD181: 0 | AE181: 0
F182: Total | J182: MT | N182: =SUM(T182:AE182) -> 0 | T182: =SUM(T179:T181) -> 0 | U182: =SUM(U179:U181) -> 0 | V182: 0 | W182: 0 | X182: 0 | Y182: 0 | Z182: 0 | AA182: 0 | AB182: 0 | AC182: 0 | AD182: 0 | AE182: 0
F184: Standardised Product Mix
D185: Hard coded outputs from actual yield calculations | F185: Butter | J185: MT | N185: =SUM(T185:AE185) -> 222800.3805 | T185: 188.0729642 | U185: 1237.49147 | V185: 11756.56776 | W185: 23110.99397 | X185: 31514.77828 | Y185: 31635.00084 | Z185: 29475.34449 | AA185: 31497.49371 | AB185: 23350.328 | AC185: 17262.22856 | AD185: 12852.43406 | AE185: 8919.646439
F186: AMF | J186: MT | N186: =SUM(T186:AE186) -> 120952.8644 | T186: 2626.746874 | U186: 4392.844797 | V186: 8934.704648 | W186: 15151.71762 | X186: 16873.71988 | Y186: 15175.22764 | Z186: 12850.50943 | AA186: 12685.38225 | AB186: 10874.25219 | AC186: 7340.670649 | AD186: 7980.776386 | AE186: 6066.312002
F187: SMP | J187: MT | N187: =SUM(T187:AE187) -> 478266.3122 | T187: 4138.713111 | U187: 11126.51826 | V187: 30880.51681 | W187: 56568.48967 | X187: 73202.41472 | Y187: 70713.24356 | Z187: 60130.62694 | AA187: 66065.70306 | AB187: 47456.67024 | AC187: 21433.74246 | AD187: 19042.15812 | AE187: 17507.51523
F188: BMP | J188: MT | N188: =SUM(T188:AE188) -> 52682.45615 | T188: 515.3432644 | U188: 983.2172482 | V188: 3196.053095 | W188: 5685.806218 | X188: 7029.195883 | Y188: 6731.279104 | Z188: 6160.408621 | AA188: 6504.952052 | AB188: 5307.649552 | AC188: 4050.740651 | AD188: 3731.476736 | AE188: 2786.33372
F189: WMP | J189: MT | N189: =SUM(T189:AE189) -> 2076927.764 | T189: 20581.599 | U189: 18826.5041 | V189: 139469.4134 | W189: 246064.7641 | X189: 277794.9494 | Y189: 245022.6509 | Z189: 243830.9111 | AA189: 207107.1687 | AB189: 174649.3348 | AC189: 213360.2049 | AD189: 181614.3558 | AE189: 108605.9084
F190: Total | J190: MT | N190: =SUM(N185:N189) -> 2951629.778 | T190: =SUM(T185:T189) -> 28050.47521 | U190: =SUM(U185:U189) -> 36566.57587 | V190: 194237.2557 | W190: 346581.7716 | X190: 406415.0581 | Y190: 369277.402 | Z190: 352447.8006 | AA190: 323860.6998 | AB190: 261638.2347 | AC190: 263447.5873 | AD190: 225221.2011 | AE190: 143885.7157
F192: Unstandardised Product Mix
F193: Butter | J193: MT | N193: =SUM(T193:AE193) -> 570.042497 | T193: 0 | U193: 0 | V193: 0 | W193: 0 | X193: 441.1581025 | Y193: 128.8843945 | Z193: 0 | AA193: 0 | AB193: 0 | AC193: 0 | AD193: 0 | AE193: 0
F194: AMF | J194: MT | N194: =SUM(T194:AE194) -> 298.0314621 | T194: 0 | U194: 0 | V194: 0 | W194: 0 | X194: 236.2059532 | Y194: 61.82550891 | Z194: 0 | AA194: 0 | AB194: 0 | AC194: 0 | AD194: 0 | AE194: 0
F195: SMP | J195: MT | N195: =SUM(T195:AE195) -> 892.0210376 | T195: 0 | U195: 0 | V195: 0 | W195: 0 | X195: 693.9787819 | Y195: 198.0422557 | Z195: 0 | AA195: 0 | AB195: 0 | AC195: 0 | AD195: 0 | AE195: 0
F196: BMP | J196: MT | N196: =SUM(T196:AE196) -> 125.821814 | T196: 0 | U196: 0 | V196: 0 | W196: 0 | X196: 98.39785927 | Y196: 27.42395475 | Z196: 0 | AA196: 0 | AB196: 0 | AC196: 0 | AD196: 0 | AE196: 0
F197: WMP | J197: MT | N197: =SUM(T197:AE197) -> 3319.791552 | T197: 0 | U197: 0 | V197: 0 | W197: 0 | X197: 2633.571601 | Y197: 686.2199502 | Z197: 0 | AA197: 0 | AB197: 0 | AC197: 0 | AD197: 0 | AE197: 0
F198: Total | J198: MT | N198: =SUM(N193:N197) -> 5205.708362 | T198: =SUM(T193:T197) -> 0 | U198: =SUM(U193:U197) -> 0 | V198: 0 | W198: 0 | X198: 4103.312298 | Y198: 1102.396064 | Z198: 0 | AA198: 0 | AB198: 0 | AC198: 0 | AD198: 0 | AE198: 0
F200: Product Mix to Model
F201: Butter | J201: MT | N201: =SUM(T201:AE201) -> 223370.423 | T201: =T185+T193 -> 188.0729642 | U201: =U185+U193 -> 1237.49147 | V201: 11756.56776 | W201: 23110.99397 | X201: 31955.93638 | Y201: 31763.88523 | Z201: 29475.34449 | AA201: 31497.49371 | AB201: 23350.328 | AC201: 17262.22856 | AD201: 12852.43406 | AE201: 8919.646439
F202: AMF | J202: MT | N202: =SUM(T202:AE202) -> 121250.8958 | T202: =T186+T194 -> 2626.746874 | U202: 4392.844797 | V202: 8934.704648 | W202: 15151.71762 | X202: 17109.92583 | Y202: 15237.05315 | Z202: 12850.50943 | AA202: 12685.38225 | AB202: 10874.25219 | AC202: 7340.670649 | AD202: 7980.776386 | AE202: 6066.312002
F203: SMP | J203: MT | N203: =SUM(T203:AE203) -> 479158.3332 | T203: =T187+T195 -> 4138.713111 | U203: 11126.51826 | V203: 30880.51681 | W203: 56568.48967 | X203: 73896.39351 | Y203: 70911.28582 | Z203: 60130.62694 | AA203: 66065.70306 | AB203: 47456.67024 | AC203: 21433.74246 | AD203: 19042.15812 | AE203: 17507.51523
F204: BMP | J204: MT | N204: =SUM(T204:AE204) -> 52808.27796 | T204: =T188+T196 -> 515.3432644 | U204: 983.2172482 | V204: 3196.053095 | W204: 5685.806218 | X204: 7127.593742 | Y204: 6758.703059 | Z204: 6160.408621 | AA204: 6504.952052 | AB204: 5307.649552 | AC204: 4050.740651 | AD204: 3731.476736 | AE204: 2786.33372
F205: WMP | J205: MT | N205: =SUM(T205:AE205) -> 2080247.556 | T205: =T189+T197 -> 20581.599 | U205: 18826.5041 | V205: 139469.4134 | W205: 246064.7641 | X205: 280428.521 | Y205: 245708.8708 | Z205: 243830.9111 | AA205: 207107.1687 | AB205: 174649.3348 | AC205: 213360.2049 | AD205: 181614.3558 | AE205: 108605.9084
F206: Total | J206: MT | N206: =SUM(N201:N205) -> 2956835.486 | T206: =SUM(T201:T205) -> 28050.47521 | U206: =SUM(U201:U205) -> 36566.57587 | V206: 194237.2557 | W206: 346581.7716 | X206: 410518.3704 | Y206: 370379.7981 | Z206: 352447.8006 | AA206: 323860.6998 | AB206: 261638.2347 | AC206: 263447.5873 | AD206: 225221.2011 | AE206: 143885.7157
F208: Fat Usage
F209: Butter | J209: 000 kgMS | N209: =SUM(T209:AE209) -> 185732.5068 | T209: 156.3826697 | U209: 1028.974157 | V209: 9775.586094 | W209: 19216.79149 | X209: 26571.3611 | Y209: 26411.67057 | Z209: 24508.74894 | AA209: 26190.16602 | AB209: 19415.79773 | AC209: 14353.54304 | AD209: 10686.79892 | AE209: 7416.686014
F210: AMF | J210: 000 kgMS | N210: =SUM(T210:AE210) -> 121488.5476 | T210: 2631.895298 | U210: 4401.454772 | V210: 8952.216669 | W210: 15181.41499 | X210: 17143.46129 | Y210: 15266.91778 | Z210: 12875.69643 | AA210: 12710.2456 | AB210: 10895.56572 | AC210: 7355.058364 | AD210: 7996.418708 | AE210: 6078.201974
F211: SMP | J211: 000 kgMS | N211: =SUM(T211:AE211) -> 4173.418396 | T211: 36.0477534 | U211: 96.91079705 | V211: 268.9660348 | W211: 492.7055611 | X211: 643.6297706 | Y211: 617.6297984 | Z211: 523.7313999 | AA211: 575.4252852 | AB211: 413.3425777 | AC211: 186.6856295 | AD211: 165.8551829 | AE211: 152.4886057
F212: BMP | J212: 000 kgMS | N212: =SUM(T212:AE212) -> 4251.594459 | T212: 41.49028622 | U212: 79.15882065 | V212: 257.3142347 | W212: 457.7642586 | X212: 573.8425722 | Y212: 544.1431832 | Z212: 495.9744981 | AA212: 523.7136897 | AB212: 427.3188655 | AC212: 326.1251298 | AD212: 300.421192 | AE212: 224.3277278
F213: WMP | J213: 000 kgMS | N213: =SUM(T213:AE213) -> 545584.5038 | T213: 5397.915957 | U213: 4937.608923 | V213: 36578.50743 | W213: 64535.16642 | X213: 73547.71552 | Y213: 64441.82664 | Z213: 63949.29597 | AA213: 54317.79575 | AB213: 45805.1112 | AC213: 55957.77349 | AD213: 47631.8205 | AE213: 28483.96598
F214: Total | J214: 000 kgMS | N214: =SUM(N209:N213) -> 861230.571 | T214: =SUM(T209:T213) -> 8263.731965 | U214: =SUM(U209:U213) -> 10544.10747 | V214: =SUM(V209:V213) -> 55832.59046 | W214: =SUM(W209:W213) -> 99883.84271 | X214: =SUM(X209:X213) -> 118480.0102 | Y214: =SUM(Y209:Y213) -> 107282.188 | Z214: =SUM(Z209:Z213) -> 102353.4472 | AA214: =SUM(AA209:AA213) -> 94317.34634 | AB214: =SUM(AB209:AB213) -> 76957.1361 | AC214: =SUM(AC209:AC213) -> 78179.18566 | AD214: =SUM(AD209:AD213) -> 66781.31451 | AE214: =SUM(AE209:AE213) -> 42355.6703
F216: Protein Usage
F217: Butter | J217: 000 kgMS | N217: =SUM(T217:AE217) -> 1195.031763 | T217: 1.006190358 | U217: 6.620579363 | V217: 62.89763753 | W217: 123.6438178 | X217: 170.9642596 | Y217: 169.936786 | Z217: 157.693093 | AA217: 168.5115914 | AB217: 124.9242548 | AC217: 92.35292277 | AD217: 68.76052223 | AE217: 47.72010845
F218: AMF | J218: 000 kgMS | N218: =SUM(T218:AE218) -> 97.00071666 | T218: 2.101397499 | U218: 3.514275837 | V218: 7.147763718 | W218: 12.1213741 | X218: 13.68794067 | Y218: 12.18964252 | Z218: 10.28040754 | AA218: 10.1483058 | AB218: 8.699401748 | AC218: 5.872536519 | AD218: 6.384621109 | AE218: 4.853049602
F219: SMP | J219: 000 kgMS | N219: =SUM(T219:AE219) -> 157150.8689 | T219: 1356.953235 | U219: 3648.033709 | V219: 10124.74556 | W219: 18547.02005 | X219: 24267.12123 | Y219: 23260.73461 | Z219: 19714.93229 | AA219: 21660.85618 | AB219: 15559.54241 | AC219: 7027.446789 | AD219: 6243.321863 | AE219: 5740.160959
F220: BMP | J220: 000 kgMS | N220: =SUM(T220:AE220) -> 16050.548 | T220: 156.6334318 | U220: 298.8390504 | V220: 971.4083777 | W220: 1728.143942 | X220: 2166.360842 | Y220: 2054.240208 | Z220: 1872.394596 | AA220: 1977.115127 | AB220: 1613.207005 | AC220: 1231.182114 | AD220: 1134.145039 | AE220: 846.8782708
F221: WMP | J221: 000 kgMS | N221: =SUM(T221:AE221) -> 503499.192 | T221: 4980.179381 | U221: 4555.494815 | V221: 33747.7519 | W221: 59540.88721 | X221: 67964.20138 | Y221: 59483.18839 | Z221: 59000.35639 | AA221: 50114.22345 | AB221: 42260.32272 | AC221: 51627.28578 | AD221: 43945.66574 | AE221: 26279.63481
F222: Total | J222: 000 kgMS | N222: =SUM(N217:N221) -> 677992.6413 | T222: =SUM(T217:T221) -> 6496.873635 | U222: =SUM(U217:U221) -> 8512.502429 | V222: =SUM(V217:V221) -> 44913.95124 | W222: =SUM(W217:W221) -> 79951.81639 | X222: =SUM(X217:X221) -> 94582.33565 | Y222: =SUM(Y217:Y221) -> 84980.28964 | Z222: =SUM(Z217:Z221) -> 80755.65677 | AA222: =SUM(AA217:AA221) -> 73930.85466 | AB222: =SUM(AB217:AB221) -> 59566.6958 | AC222: =SUM(AC217:AC221) -> 59984.14014 | AD222: =SUM(AD217:AD221) -> 51398.27779 | AE222: =SUM(AE217:AE221) -> 32919.2472
F224: Milk Composition
F225: Fat | J225: % | N225: =IF(ISERROR(N214/SUM(N214,N222)),"N/A",N214/SUM(N214,N222)) -> 0.5595228581 | T225: 0.5598504688 | U225: 0.5533044716 | V225: 0.5541886552 | W225: 0.5554173361 | X225: 0.5560814124 | Y225: 0.5579985721 | Z225: 0.5589751956 | AA225: 0.5605845756 | AB225: 0.5636901267 | AC225: 0.5658461477 | AD225: 0.5650833042 | AE225: 0.5626797306
F226: Protein | J226: % | N226: =IF(ISERROR(N222/SUM(N214,N222)),"N/A",N222/SUM(N214,N222)) -> 0.4404771419 | T226: 0.4401495312 | U226: 0.4466955284 | V226: 0.4458113448 | W226: 0.4445826639 | X226: 0.4439185876 | Y226: 0.4420014279 | Z226: 0.4410248044 | AA226: 0.4394154244 | AB226: 0.4363098733 | AC226: 0.4341538523 | AD226: 0.4349166958 | AE226: 0.4373202694
F228: Required Lactose - Calculated
F229: SMP | J229: MT | N229: =SUM(T229:AE229) -> 0
F230: BMP | J230: MT | N230: =SUM(T230:AE230) -> 0
F231: WMP | J231: MT | N231: =SUM(T231:AE231) -> 0
F232: Total | J232: MT | N232: =SUM(T232:AE232) -> 368601.0762 | T232: 3768.426294 | U232: 4806.525934 | V232: 22455.44307 | W232: 36367.61405 | X232: 42003.11428 | Y232: 38274.42575 | Z232: 40550.03251 | AA232: 38906.0102 | AB232: 35007.97296 | AC232: 40890.73337 | AD232: 39126.61126 | AE232: 26444.16647
D234: COMPONENT MILK PRICE
D237: COMMENT | F237: The average cash milk price used for inventory valuation is the average cash amount paid for all supply, including milk supplied on standard terms, Winter Milk, and milk supplied under non-standard
F238: contracts, adjusted for demerit deductions for milk quality issues.
F241: Average cash milk price | J241: NZD | N241: =IF(ISERROR(N1275),2,N1275) -> 7.552713468 | T241: =$N241 -> 7.552713468 | U241: 7.552713468 | V241: 7.552713468 | W241: 7.552713468 | X241: 7.552713468 | Y241: 7.552713468 | Z241: 7.552713468 | AA241: 7.552713468 | AB241: 7.552713468 | AC241: 7.552713468 | AD241: 7.552713468 | AE241: 7.552713468 | AF241: 7.552713468 | AG241: 7.552713468 | AH241: 7.552713468 | AI241: 7.552713468 | AJ241: 7.552713468 | AK241: 7.552713468 | AL241: 7.552713468 | AM241: 7.552713468 | AN241: 7.552713468 | AO241: 7.552713468
F243: kgMS into production
F244: Total | J244: 000 kgMS | K244: ="Row "&ROW(K$21) -> Row 21 | N244: =SUM(T244:AE244) -> 1539223.212 | T244: =T21 -> 14760.6056 | U244: 19056.6099 | V244: 100746.5417 | W244: 179835.6591 | X244: 213062.3459 | Y244: 192262.4776 | Z244: 183109.104 | AA244: 168248.201 | AB244: 136523.8319 | AC244: 138163.3258 | AD244: 118179.5923 | AE244: 75274.9175
F245: Fat | J245: 000 kgMS | N245: =SUM(T245:AE245) -> 861230.571 | T245: =T214 -> 8263.731965 | U245: =U214 -> 10544.10747 | V245: 55832.59046 | W245: 99883.84271 | X245: 118480.0102 | Y245: 107282.188 | Z245: 102353.4472 | AA245: 94317.34634 | AB245: 76957.1361 | AC245: 78179.18566 | AD245: 66781.31451 | AE245: 42355.6703
F246: Protein | J246: 000 kgMS | N246: =SUM(T246:AE246) -> 677992.6413 | T246: =T222 -> 6496.873635 | U246: =U222 -> 8512.502429 | V246: 44913.95124 | W246: 79951.81639 | X246: 94582.33565 | Y246: 84980.28964 | Z246: 80755.65677 | AA246: 73930.85466 | AB246: 59566.6958 | AC246: 59984.14014 | AD246: 51398.27779 | AE246: 32919.2472
... 854 more rows

Sheet Summary
J3: 1
S4: MONTHLY
I5: Period Number | O5: 1 | P5: 1 | Q5: 1 | R5: =IF(Q5=12,1,Q5+1) -> 2 | S5: 3 | T5: 4 | U5: 5 | V5: 6 | W5: 7 | X5: 8 | Y5: 9 | Z5: 10 | AA5: 11 | AB5: 12 | AC5: 1 | AD5: 2 | AE5: 3 | AF5: 4 | AG5: 5 | AH5: 6 | AI5: 7 | AJ5: 8
O6: =Global!R36 -> 2020-04-30 | P6: =Global!S36 -> 2020-05-31 | Q6: =Global!T36 -> 2020-06-30 | R6: =Global!U36 -> 2020-07-31 | S6: =Global!V36 -> 2020-08-31 | T6: =Global!W36 -> 2020-09-30 | U6: =Global!X36 -> 2020-10-31 | V6: =Global!Y36 -> 2020-11-30 | W6: =Global!Z36 -> 2020-12-31 | X6: =Global!AA36 -> 2021-01-31 | Y6: =Global!AB36 -> 2021-02-28 | Z6: =Global!AC36 -> 2021-03-31 | AA6: =Global!AD36 -> 2021-04-30 | AB6: =Global!AE36 -> 2021-05-31 | AC6: =Global!AF36 -> 2021-06-30 | AD6: =Global!AG36 -> 2021-07-31 | AE6: =Global!AH36 -> 2021-08-31 | AF6: =Global!AI36 -> 2021-09-30 | AG6: =Global!AJ36 -> 2021-10-31 | AH6: =Global!AK36 -> 2021-11-30 | AI6: =Global!AL36 -> 2021-12-31 | AJ6: =Global!AM36 -> 2022-01-31
I7: Period | O7: 1 | P7: 1 | Q7: 1 | R7: =Q7+1 -> 2 | S7: 3 | T7: 4 | U7: 5 | V7: 6 | W7: 7 | X7: 8 | Y7: 9 | Z7: 10 | AA7: 11 | AB7: 12 | AC7: 13 | AD7: 14 | AE7: 15 | AF7: 16 | AG7: 17 | AH7: 18 | AI7: 19 | AJ7: 20
I9: Financial Year | L9: =Global!O7 -> 2021-05-31 | O9: =Global!R36 -> 2020-04-30 | P9: =Global!S36 -> 2020-05-31 | Q9: =Global!T36 -> 2020-06-30 | R9: =Global!U36 -> 2020-07-31 | S9: =Global!V36 -> 2020-08-31 | T9: =Global!W36 -> 2020-09-30 | U9: =Global!X36 -> 2020-10-31 | V9: =Global!Y36 -> 2020-11-30 | W9: =Global!Z36 -> 2020-12-31 | X9: =Global!AA36 -> 2021-01-31 | Y9: =Global!AB36 -> 2021-02-28 | Z9: =Global!AC36 -> 2021-03-31 | AA9: =Global!AD36 -> 2021-04-30 | AB9: =Global!AE36 -> 2021-05-31 | AC9: =Global!AF36 -> 2021-06-30 | AD9: =Global!AG36 -> 2021-07-31 | AE9: =Global!AH36 -> 2021-08-31 | AF9: =Global!AI36 -> 2021-09-30 | AG9: =Global!AJ36 -> 2021-10-31 | AH9: =Global!AK36 -> 2021-11-30 | AI9: =Global!AL36 -> 2021-12-31 | AJ9: =Global!AM36 -> 2022-01-31
I10: KGMS 000s
I11: Milk Supply Paid for | L11: =SUM(O11:AB11) -> 1539405.985 | O11: ='Data Input'!R31 -> 0 | P11: ='Data Input'!S31 -> 0 | Q11: ='Data Input'!T31 -> 14761.8541 | R11: ='Data Input'!U31 -> 19072.2223 | S11: ='Data Input'!V31 -> 100746.5417 | T11: ='Data Input'!W31 -> 179878.5228 | U11: ='Data Input'!X31 -> 213069.0186 | V11: ='Data Input'!Y31 -> 192271.0643 | W11: ='Data Input'!Z31 -> 183109.104 | X11: ='Data Input'!AA31 -> 168249.6973 | Y11: ='Data Input'!AB31 -> 136523.8319 | Z11: ='Data Input'!AC31 -> 138163.3258 | AA11: ='Data Input'!AD31 -> 118179.5923 | AB11: ='Data Input'!AE31 -> 75381.2095
I12: Milk Supply Collected | L12: =SUM(O12:AB12) -> 1539223.212 | O12: ='Data Input'!R32 -> 0 | P12: ='Data Input'!S32 -> 0 | Q12: ='Data Input'!T32 -> 14760.6056 | R12: ='Data Input'!U32 -> 19056.6099 | S12: ='Data Input'!V32 -> 100746.5417 | T12: ='Data Input'!W32 -> 179835.6591 | U12: ='Data Input'!X32 -> 213062.3459 | V12: ='Data Input'!Y32 -> 192262.4776 | W12: ='Data Input'!Z32 -> 183109.104 | X12: ='Data Input'!AA32 -> 168248.201 | Y12: ='Data Input'!AB32 -> 136523.8319 | Z12: ='Data Input'!AC32 -> 138163.3258 | AA12: ='Data Input'!AD32 -> 118179.5923 | AB12: ='Data Input'!AE32 -> 75274.9175
I14: $'000
I16: NZD Revenue
I17: Sales | J17: =$J$3&I17 -> 1Sales | L17: =SUM(O17:AJ17) -> 15014039.98 | O17: =-SUMIF(Calculations!$I$15:$I$1344,$J17,Calculations!R$15:R$1344) -> 0 | P17: =-SUMIF(Calculations!$I$15:$I$1344,$J17,Calculations!S$15:S$1344) -> 0 | Q17: =-SUMIF(Calculations!$I$15:$I$1344,$J17,Calculations!T$15:T$1344) -> 0 | R17: =-SUMIF(Calculations!$I$15:$I$1344,$J17,Calculations!U$15:U$1344) -> 0 | S17: =-SUMIF(Calculations!$I$15:$I$1344,$J17,Calculations!V$15:V$1344) -> 0 | T17: =-SUMIF(Calculations!$I$15:$I$1344,$J17,Calculations!W$15:W$1344) -> 831553.4267 | U17: =-SUMIF(Calculations!$I$15:$I$1344,$J17,Calculations!X$15:X$1344) -> 831553.4267 | V17: =-SUMIF(Calculations!$I$15:$I$1344,$J17,Calculations!Y$15:Y$1344) -> 1479197.839 | W17: =-SUMIF(Calculations!$I$15:$I$1344,$J17,Calculations!Z$15:Z$1344) -> 1479197.839 | X17: =-SUMIF(Calculations!$I$15:$I$1344,$J17,Calculations!AA$15:AA$1344) -> 1479197.839 | Y17: =-SUMIF(Calculations!$I$15:$I$1344,$J17,Calculations!AB$15:AB$1344) -> 1313322.639 | Z17: =-SUMIF(Calculations!$I$15:$I$1344,$J17,Calculations!AC$15:AC$1344) -> 1313322.639 | AA17: =-SUMIF(Calculations!$I$15:$I$1344,$J17,Calculations!AD$15:AD$1344) -> 1313322.639 | AB17: =-SUMIF(Calculations!$I$15:$I$1344,$J17,Calculations!AE$15:AE$1344) -> 1468557.461 | AC17: =-SUMIF(Calculations!$I$15:$I$1344,$J17,Calculations!AF$15:AF$1344) -> 1468557.461 | AD17: =-SUMIF(Calculations!$I$15:$I$1344,$J17,Calculations!AG$15:AG$1344) -> 1468557.461 | AE17: =-SUMIF(Calculations!$I$15:$I$1344,$J17,Calculations!AH$15:AH$1344) -> 189233.1025 | AF17: =-SUMIF(Calculations!$I$15:$I$1344,$J17,Calculations!AI$15:AI$1344) -> 189233.1025 | AG17: =-SUMIF(Calculations!$I$15:$I$1344,$J17,Calculations!AJ$15:AJ$1344) -> 189233.1025 | AH17: =-SUMIF(Calculations!$I$15:$I$1344,$J17,Calculations!AK$15:AK$1344) -> 0 | AI17: =-SUMIF(Calculations!$I$15:$I$1344,$J17,Calculations!AL$15:AL$1344) -> 0 | AJ17: =-SUMIF(Calculations!$I$15:$I$1344,$J17,Calculations!AM$15:AM$1344) -> 0
I18: Downgrade expense (excl rework) | J18: =$J$3&I18 -> 1Downgrade expense (excl rework) | L18: =SUM(O18:AJ18) -> 0 | O18: =-SUMIF(Calculations!$I$15:$I$1344,$J18,Calculations!R$15:R$1344) -> 0 | P18: =-SUMIF(Calculations!$I$15:$I$1344,$J18,Calculations!S$15:S$1344) -> 0 | Q18: =-SUMIF(Calculations!$I$15:$I$1344,$J18,Calculations!T$15:T$1344) -> 0 | R18: =-SUMIF(Calculations!$I$15:$I$1344,$J18,Calculations!U$15:U$1344) -> 0 | S18: =-SUMIF(Calculations!$I$15:$I$1344,$J18,Calculations!V$15:V$1344) -> 0 | T18: =-SUMIF(Calculations!$I$15:$I$1344,$J18,Calculations!W$15:W$1344) -> 0 | U18: =-SUMIF(Calculations!$I$15:$I$1344,$J18,Calculations!X$15:X$1344) -> 0 | V18: =-SUMIF(Calculations!$I$15:$I$1344,$J18,Calculations!Y$15:Y$1344) -> 0 | W18: =-SUMIF(Calculations!$I$15:$I$1344,$J18,Calculations!Z$15:Z$1344) -> 0 | X18: =-SUMIF(Calculations!$I$15:$I$1344,$J18,Calculations!AA$15:AA$1344) -> 0 | Y18: =-SUMIF(Calculations!$I$15:$I$1344,$J18,Calculations!AB$15:AB$1344) -> 0 | Z18: =-SUMIF(Calculations!$I$15:$I$1344,$J18,Calculations!AC$15:AC$1344) -> 0 | AA18: =-SUMIF(Calculations!$I$15:$I$1344,$J18,Calculations!AD$15:AD$1344) -> 0 | AB18: =-SUMIF(Calculations!$I$15:$I$1344,$J18,Calculations!AE$15:AE$1344) -> 0 | AC18: =-SUMIF(Calculations!$I$15:$I$1344,$J18,Calculations!AF$15:AF$1344) -> 0 | AD18: =-SUMIF(Calculations!$I$15:$I$1344,$J18,Calculations!AG$15:AG$1344) -> 0 | AE18: =-SUMIF(Calculations!$I$15:$I$1344,$J18,Calculations!AH$15:AH$1344) -> 0 | AF18: =-SUMIF(Calculations!$I$15:$I$1344,$J18,Calculations!AI$15:AI$1344) -> 0 | AG18: =-SUMIF(Calculations!$I$15:$I$1344,$J18,Calculations!AJ$15:AJ$1344) -> 0 | AH18: =-SUMIF(Calculations!$I$15:$I$1344,$J18,Calculations!AK$15:AK$1344) -> 0 | AI18: =-SUMIF(Calculations!$I$15:$I$1344,$J18,Calculations!AL$15:AL$1344) -> 0 | AJ18: =-SUMIF(Calculations!$I$15:$I$1344,$J18,Calculations!AM$15:AM$1344) -> 0
I19: Net Sales | L19: =SUM(L17:L18) -> 15014039.98 | O19: =SUM(O17:O18) -> 0 | P19: =SUM(P17:P18) -> 0 | Q19: =SUM(Q17:Q18) -> 0 | R19: 0 | S19: 0 | T19: 831553.4267 | U19: 831553.4267 | V19: 1479197.839 | W19: 1479197.839 | X19: 1479197.839 | Y19: 1313322.639 | Z19: 1313322.639 | AA19: 1313322.639 | AB19: 1468557.461 | AC19: 1468557.461 | AD19: 1468557.461 | AE19: 189233.1025 | AF19: 189233.1025 | AG19: 189233.1025 | AH19: 0 | AI19: 0 | AJ19: 0
I20: Average conversion rate (Sales) | L20: =Calculations!N350/Calculations!N358 -> 0.667727792
I21: Non-Milk Costs
I22: Commission | J22: =$J$3&I22 -> 1Commission | L22: =SUM(O22:AJ22) -> 131953.5986 | O22: =SUMIF(Calculations!$I$15:$I$1344,$J22,Calculations!R$15:R$1344) -> 0 | P22: =SUMIF(Calculations!$I$15:$I$1344,$J22,Calculations!S$15:S$1344) -> 0 | Q22: =SUMIF(Calculations!$I$15:$I$1344,$J22,Calculations!T$15:T$1344) -> 0 | R22: =SUMIF(Calculations!$I$15:$I$1344,$J22,Calculations!U$15:U$1344) -> 0 | S22: =SUMIF(Calculations!$I$15:$I$1344,$J22,Calculations!V$15:V$1344) -> 10996.13321 | T22: =SUMIF(Calculations!$I$15:$I$1344,$J22,Calculations!W$15:W$1344) -> 10996.13321 | U22: =SUMIF(Calculations!$I$15:$I$1344,$J22,Calculations!X$15:X$1344) -> 10996.13321 | V22: =SUMIF(Calculations!$I$15:$I$1344,$J22,Calculations!Y$15:Y$1344) -> 10996.13321 | W22: =SUMIF(Calculations!$I$15:$I$1344,$J22,Calculations!Z$15:Z$1344) -> 10996.13321 | X22: =SUMIF(Calculations!$I$15:$I$1344,$J22,Calculations!AA$15:AA$1344) -> 10996.13321 | Y22: =SUMIF(Calculations!$I$15:$I$1344,$J22,Calculations!AB$15:AB$1344) -> 10996.13321 | Z22: =SUMIF(Calculations!$I$15:$I$1344,$J22,Calculations!AC$15:AC$1344) -> 10996.13321 | AA22: =SUMIF(Calculations!$I$15:$I$1344,$J22,Calculations!AD$15:AD$1344) -> 10996.13321 | AB22: =SUMIF(Calculations!$I$15:$I$1344,$J22,Calculations!AE$15:AE$1344) -> 10996.13321 | AC22: =SUMIF(Calculations!$I$15:$I$1344,$J22,Calculations!AF$15:AF$1344) -> 10996.13321 | AD22: =SUMIF(Calculations!$I$15:$I$1344,$J22,Calculations!AG$15:AG$1344) -> 10996.13321 | AE22: =SUMIF(Calculations!$I$15:$I$1344,$J22,Calculations!AH$15:AH$1344) -> 0 | AF22: =SUMIF(Calculations!$I$15:$I$1344,$J22,Calculations!AI$15:AI$1344) -> 0 | AG22: =SUMIF(Calculations!$I$15:$I$1344,$J22,Calculations!AJ$15:AJ$1344) -> 0 | AH22: =SUMIF(Calculations!$I$15:$I$1344,$J22,Calculations!AK$15:AK$1344) -> 0 | AI22: =SUMIF(Calculations!$I$15:$I$1344,$J22,Calculations!AL$15:AL$1344) -> 0 | AJ22: =SUMIF(Calculations!$I$15:$I$1344,$J22,Calculations!AM$15:AM$1344) -> 0
I23: Collection Costs | J23: 1Collection Costs | L23: =SUM(O23:AJ23) -> 359142.7372 | O23: =SUMIF(Calculations!$I$15:$I$1344,$J23,Calculations!R$15:R$1344) -> 0 | P23: =SUMIF(Calculations!$I$15:$I$1344,$J23,Calculations!S$15:S$1344) -> 0 | Q23: =SUMIF(Calculations!$I$15:$I$1344,$J23,Calculations!T$15:T$1344) -> 14846.77567 | R23: =SUMIF(Calculations!$I$15:$I$1344,$J23,Calculations!U$15:U$1344) -> 16610.04466 | S23: =SUMIF(Calculations!$I$15:$I$1344,$J23,Calculations!V$15:V$1344) -> 22564.88929 | T23: =SUMIF(Calculations!$I$15:$I$1344,$J23,Calculations!W$15:W$1344) -> 36810.60613 | U23: =SUMIF(Calculations!$I$15:$I$1344,$J23,Calculations!X$15:X$1344) -> 48000.55819 | V23: =SUMIF(Calculations!$I$15:$I$1344,$J23,Calculations!Y$15:Y$1344) -> 45221.13372 | W23: =SUMIF(Calculations!$I$15:$I$1344,$J23,Calculations!Z$15:Z$1344) -> 39556.04456 | X23: =SUMIF(Calculations!$I$15:$I$1344,$J23,Calculations!AA$15:AA$1344) -> 36431.95487 | Y23: =SUMIF(Calculations!$I$15:$I$1344,$J23,Calculations!AB$15:AB$1344) -> 27556.67579 | Z23: =SUMIF(Calculations!$I$15:$I$1344,$J23,Calculations!AC$15:AC$1344) -> 26895.7567 | AA23: =SUMIF(Calculations!$I$15:$I$1344,$J23,Calculations!AD$15:AD$1344) -> 23991.66976 | AB23: =SUMIF(Calculations!$I$15:$I$1344,$J23,Calculations!AE$15:AE$1344) -> 20656.62782 | AC23: =SUMIF(Calculations!$I$15:$I$1344,$J23,Calculations!AF$15:AF$1344) -> 0 | AD23: =SUMIF(Calculations!$I$15:$I$1344,$J23,Calculations!AG$15:AG$1344) -> 0 | AE23: =SUMIF(Calculations!$I$15:$I$1344,$J23,Calculations!AH$15:AH$1344) -> 0 | AF23: =SUMIF(Calculations!$I$15:$I$1344,$J23,Calculations!AI$15:AI$1344) -> 0 | AG23: =SUMIF(Calculations!$I$15:$I$1344,$J23,Calculations!AJ$15:AJ$1344) -> 0 | AH23: =SUMIF(Calculations!$I$15:$I$1344,$J23,Calculations!AK$15:AK$1344) -> 0 | AI23: =SUMIF(Calculations!$I$15:$I$1344,$J23,Calculations!AL$15:AL$1344) -> 0 | AJ23: =SUMIF(Calculations!$I$15:$I$1344,$J23,Calculations!AM$15:AM$1344) -> 0
I24: Lactose | J24: 1Lactose | L24: =SUM(O24:AJ24) -> 647755.1863 | O24: =SUMIF(Calculations!$I$15:$I$1344,$J24,Calculations!R$15:R$1344) -> 0 | P24: =SUMIF(Calculations!$I$15:$I$1344,$J24,Calculations!S$15:S$1344) -> 0 | Q24: =SUMIF(Calculations!$I$15:$I$1344,$J24,Calculations!T$15:T$1344) -> 6622.383476 | R24: =SUMIF(Calculations!$I$15:$I$1344,$J24,Calculations!U$15:U$1344) -> 8446.671221 | S24: =SUMIF(Calculations!$I$15:$I$1344,$J24,Calculations!V$15:V$1344) -> 39461.71255 | T24: =SUMIF(Calculations!$I$15:$I$1344,$J24,Calculations!W$15:W$1344) -> 63910.04296 | U24: =SUMIF(Calculations!$I$15:$I$1344,$J24,Calculations!X$15:X$1344) -> 73813.49886 | V24: =SUMIF(Calculations!$I$15:$I$1344,$J24,Calculations!Y$15:Y$1344) -> 67260.94791 | W24: =SUMIF(Calculations!$I$15:$I$1344,$J24,Calculations!Z$15:Z$1344) -> 71259.94894 | X24: =SUMIF(Calculations!$I$15:$I$1344,$J24,Calculations!AA$15:AA$1344) -> 68370.8527 | Y24: =SUMIF(Calculations!$I$15:$I$1344,$J24,Calculations!AB$15:AB$1344) -> 61520.69951 | Z24: =SUMIF(Calculations!$I$15:$I$1344,$J24,Calculations!AC$15:AC$1344) -> 71858.67412 | AA24: =SUMIF(Calculations!$I$15:$I$1344,$J24,Calculations!AD$15:AD$1344) -> 68758.52244 | AB24: =SUMIF(Calculations!$I$15:$I$1344,$J24,Calculations!AE$15:AE$1344) -> 46471.2316 | AC24: =SUMIF(Calculations!$I$15:$I$1344,$J24,Calculations!AF$15:AF$1344) -> 0 | AD24: =SUMIF(Calculations!$I$15:$I$1344,$J24,Calculations!AG$15:AG$1344) -> 0 | AE24: =SUMIF(Calculations!$I$15:$I$1344,$J24,Calculations!AH$15:AH$1344) -> 0 | AF24: =SUMIF(Calculations!$I$15:$I$1344,$J24,Calculations!AI$15:AI$1344) -> 0 | AG24: =SUMIF(Calculations!$I$15:$I$1344,$J24,Calculations!AJ$15:AJ$1344) -> 0 | AH24: =SUMIF(Calculations!$I$15:$I$1344,$J24,Calculations!AK$15:AK$1344) -> 0 | AI24: =SUMIF(Calculations!$I$15:$I$1344,$J24,Calculations!AL$15:AL$1344) -> 0 | AJ24: =SUMIF(Calculations!$I$15:$I$1344,$J24,Calculations!AM$15:AM$1344) -> 0
I25: Operating Costs
I26: Packaging | J26: 1Packaging | L26: =SUM(O26:AJ26) -> 517060.8602 | O26: =SUMIF(Calculations!$I$15:$I$1344,$J26,Calculations!R$15:R$1344) -> 0 | P26: =SUMIF(Calculations!$I$15:$I$1344,$J26,Calculations!S$15:S$1344) -> 0 | Q26: =SUMIF(Calculations!$I$15:$I$1344,$J26,Calculations!T$15:T$1344) -> 4905.177481 | R26: =SUMIF(Calculations!$I$15:$I$1344,$J26,Calculations!U$15:U$1344) -> 6394.385234 | S26: =SUMIF(Calculations!$I$15:$I$1344,$J26,Calculations!V$15:V$1344) -> 33966.20575 | T26: =SUMIF(Calculations!$I$15:$I$1344,$J26,Calculations!W$15:W$1344) -> 60606.64172 | U26: =SUMIF(Calculations!$I$15:$I$1344,$J26,Calculations!X$15:X$1344) -> 71787.21397 | V26: =SUMIF(Calculations!$I$15:$I$1344,$J26,Calculations!Y$15:Y$1344) -> 64768.19488 | W26: =SUMIF(Calculations!$I$15:$I$1344,$J26,Calculations!Z$15:Z$1344) -> 61632.4323 | X26: =SUMIF(Calculations!$I$15:$I$1344,$J26,Calculations!AA$15:AA$1344) -> 56633.41528 | Y26: =SUMIF(Calculations!$I$15:$I$1344,$J26,Calculations!AB$15:AB$1344) -> 45752.59305 | Z26: =SUMIF(Calculations!$I$15:$I$1344,$J26,Calculations!AC$15:AC$1344) -> 46068.99394 | AA26: =SUMIF(Calculations!$I$15:$I$1344,$J26,Calculations!AD$15:AD$1344) -> 39384.35822 | AB26: =SUMIF(Calculations!$I$15:$I$1344,$J26,Calculations!AE$15:AE$1344) -> 25161.24833 | AC26: =SUMIF(Calculations!$I$15:$I$1344,$J26,Calculations!AF$15:AF$1344) -> 0 | AD26: =SUMIF(Calculations!$I$15:$I$1344,$J26,Calculations!AG$15:AG$1344) -> 0 | AE26: =SUMIF(Calculations!$I$15:$I$1344,$J26,Calculations!AH$15:AH$1344) -> 0 | AF26: =SUMIF(Calculations!$I$15:$I$1344,$J26,Calculations!AI$15:AI$1344) -> 0 | AG26: =SUMIF(Calculations!$I$15:$I$1344,$J26,Calculations!AJ$15:AJ$1344) -> 0 | AH26: =SUMIF(Calculations!$I$15:$I$1344,$J26,Calculations!AK$15:AK$1344) -> 0 | AI26: =SUMIF(Calculations!$I$15:$I$1344,$J26,Calculations!AL$15:AL$1344) -> 0 | AJ26: =SUMIF(Calculations!$I$15:$I$1344,$J26,Calculations!AM$15:AM$1344) -> 0
I27: Energy - Variable | J27: 1Energy - Variable | L27: 0 | O27: =SUMIF(Calculations!$I$15:$I$1344,$J27,Calculations!R$15:R$1344) -> 0 | P27: =SUMIF(Calculations!$I$15:$I$1344,$J27,Calculations!S$15:S$1344) -> 0 | Q27: =SUMIF(Calculations!$I$15:$I$1344,$J27,Calculations!T$15:T$1344) -> 0 | R27: =SUMIF(Calculations!$I$15:$I$1344,$J27,Calculations!U$15:U$1344) -> 0 | S27: =SUMIF(Calculations!$I$15:$I$1344,$J27,Calculations!V$15:V$1344) -> 0 | T27: =SUMIF(Calculations!$I$15:$I$1344,$J27,Calculations!W$15:W$1344) -> 0 | U27: =SUMIF(Calculations!$I$15:$I$1344,$J27,Calculations!X$15:X$1344) -> 0 | V27: =SUMIF(Calculations!$I$15:$I$1344,$J27,Calculations!Y$15:Y$1344) -> 0 | W27: =SUMIF(Calculations!$I$15:$I$1344,$J27,Calculations!Z$15:Z$1344) -> 0 | X27: =SUMIF(Calculations!$I$15:$I$1344,$J27,Calculations!AA$15:AA$1344) -> 0 | Y27: =SUMIF(Calculations!$I$15:$I$1344,$J27,Calculations!AB$15:AB$1344) -> 0 | Z27: =SUMIF(Calculations!$I$15:$I$1344,$J27,Calculations!AC$15:AC$1344) -> 0 | AA27: =SUMIF(Calculations!$I$15:$I$1344,$J27,Calculations!AD$15:AD$1344) -> 0 | AB27: =SUMIF(Calculations!$I$15:$I$1344,$J27,Calculations!AE$15:AE$1344) -> 0 | AC27: =SUMIF(Calculations!$I$15:$I$1344,$J27,Calculations!AF$15:AF$1344) -> 0 | AD27: =SUMIF(Calculations!$I$15:$I$1344,$J27,Calculations!AG$15:AG$1344) -> 0 | AE27: =SUMIF(Calculations!$I$15:$I$1344,$J27,Calculations!AH$15:AH$1344) -> 0 | AF27: =SUMIF(Calculations!$I$15:$I$1344,$J27,Calculations!AI$15:AI$1344) -> 0 | AG27: =SUMIF(Calculations!$I$15:$I$1344,$J27,Calculations!AJ$15:AJ$1344) -> 0 | AH27: =SUMIF(Calculations!$I$15:$I$1344,$J27,Calculations!AK$15:AK$1344) -> 0 | AI27: =SUMIF(Calculations!$I$15:$I$1344,$J27,Calculations!AL$15:AL$1344) -> 0 | AJ27: =SUMIF(Calculations!$I$15:$I$1344,$J27,Calculations!AM$15:AM$1344) -> 0
I28: Water | J28: 1Water | L28: 0 | O28: =SUMIF(Calculations!$I$15:$I$1344,$J28,Calculations!R$15:R$1344) -> 0 | P28: =SUMIF(Calculations!$I$15:$I$1344,$J28,Calculations!S$15:S$1344) -> 0 | Q28: =SUMIF(Calculations!$I$15:$I$1344,$J28,Calculations!T$15:T$1344) -> 0 | R28: =SUMIF(Calculations!$I$15:$I$1344,$J28,Calculations!U$15:U$1344) -> 0 | S28: =SUMIF(Calculations!$I$15:$I$1344,$J28,Calculations!V$15:V$1344) -> 0 | T28: =SUMIF(Calculations!$I$15:$I$1344,$J28,Calculations!W$15:W$1344) -> 0 | U28: =SUMIF(Calculations!$I$15:$I$1344,$J28,Calculations!X$15:X$1344) -> 0 | V28: =SUMIF(Calculations!$I$15:$I$1344,$J28,Calculations!Y$15:Y$1344) -> 0 | W28: =SUMIF(Calculations!$I$15:$I$1344,$J28,Calculations!Z$15:Z$1344) -> 0 | X28: =SUMIF(Calculations!$I$15:$I$1344,$J28,Calculations!AA$15:AA$1344) -> 0 | Y28: =SUMIF(Calculations!$I$15:$I$1344,$J28,Calculations!AB$15:AB$1344) -> 0 | Z28: =SUMIF(Calculations!$I$15:$I$1344,$J28,Calculations!AC$15:AC$1344) -> 0 | AA28: =SUMIF(Calculations!$I$15:$I$1344,$J28,Calculations!AD$15:AD$1344) -> 0 | AB28: =SUMIF(Calculations!$I$15:$I$1344,$J28,Calculations!AE$15:AE$1344) -> 0 | AC28: =SUMIF(Calculations!$I$15:$I$1344,$J28,Calculations!AF$15:AF$1344) -> 0 | AD28: =SUMIF(Calculations!$I$15:$I$1344,$J28,Calculations!AG$15:AG$1344) -> 0 | AE28: =SUMIF(Calculations!$I$15:$I$1344,$J28,Calculations!AH$15:AH$1344) -> 0 | AF28: =SUMIF(Calculations!$I$15:$I$1344,$J28,Calculations!AI$15:AI$1344) -> 0 | AG28: =SUMIF(Calculations!$I$15:$I$1344,$J28,Calculations!AJ$15:AJ$1344) -> 0 | AH28: =SUMIF(Calculations!$I$15:$I$1344,$J28,Calculations!AK$15:AK$1344) -> 0 | AI28: =SUMIF(Calculations!$I$15:$I$1344,$J28,Calculations!AL$15:AL$1344) -> 0 | AJ28: =SUMIF(Calculations!$I$15:$I$1344,$J28,Calculations!AM$15:AM$1344) -> 0
I29: Cleaning & CIP | J29: 1Cleaning & CIP | L29: 0 | O29: =SUMIF(Calculations!$I$15:$I$1344,$J29,Calculations!R$15:R$1344) -> 0 | P29: =SUMIF(Calculations!$I$15:$I$1344,$J29,Calculations!S$15:S$1344) -> 0 | Q29: =SUMIF(Calculations!$I$15:$I$1344,$J29,Calculations!T$15:T$1344) -> 0 | R29: =SUMIF(Calculations!$I$15:$I$1344,$J29,Calculations!U$15:U$1344) -> 0 | S29: =SUMIF(Calculations!$I$15:$I$1344,$J29,Calculations!V$15:V$1344) -> 0 | T29: =SUMIF(Calculations!$I$15:$I$1344,$J29,Calculations!W$15:W$1344) -> 0 | U29: =SUMIF(Calculations!$I$15:$I$1344,$J29,Calculations!X$15:X$1344) -> 0 | V29: =SUMIF(Calculations!$I$15:$I$1344,$J29,Calculations!Y$15:Y$1344) -> 0 | W29: =SUMIF(Calculations!$I$15:$I$1344,$J29,Calculations!Z$15:Z$1344) -> 0 | X29: =SUMIF(Calculations!$I$15:$I$1344,$J29,Calculations!AA$15:AA$1344) -> 0 | Y29: =SUMIF(Calculations!$I$15:$I$1344,$J29,Calculations!AB$15:AB$1344) -> 0 | Z29: =SUMIF(Calculations!$I$15:$I$1344,$J29,Calculations!AC$15:AC$1344) -> 0 | AA29: =SUMIF(Calculations!$I$15:$I$1344,$J29,Calculations!AD$15:AD$1344) -> 0 | AB29: =SUMIF(Calculations!$I$15:$I$1344,$J29,Calculations!AE$15:AE$1344) -> 0 | AC29: =SUMIF(Calculations!$I$15:$I$1344,$J29,Calculations!AF$15:AF$1344) -> 0 | AD29: =SUMIF(Calculations!$I$15:$I$1344,$J29,Calculations!AG$15:AG$1344) -> 0 | AE29: =SUMIF(Calculations!$I$15:$I$1344,$J29,Calculations!AH$15:AH$1344) -> 0 | AF29: =SUMIF(Calculations!$I$15:$I$1344,$J29,Calculations!AI$15:AI$1344) -> 0 | AG29: =SUMIF(Calculations!$I$15:$I$1344,$J29,Calculations!AJ$15:AJ$1344) -> 0 | AH29: =SUMIF(Calculations!$I$15:$I$1344,$J29,Calculations!AK$15:AK$1344) -> 0 | AI29: =SUMIF(Calculations!$I$15:$I$1344,$J29,Calculations!AL$15:AL$1344) -> 0 | AJ29: =SUMIF(Calculations!$I$15:$I$1344,$J29,Calculations!AM$15:AM$1344) -> 0
I30: Consumables | J30: 1Consumables | L30: 0 | O30: =SUMIF(Calculations!$I$15:$I$1344,$J30,Calculations!R$15:R$1344) -> 0 | P30: =SUMIF(Calculations!$I$15:$I$1344,$J30,Calculations!S$15:S$1344) -> 0 | Q30: =SUMIF(Calculations!$I$15:$I$1344,$J30,Calculations!T$15:T$1344) -> 0 | R30: =SUMIF(Calculations!$I$15:$I$1344,$J30,Calculations!U$15:U$1344) -> 0 | S30: =SUMIF(Calculations!$I$15:$I$1344,$J30,Calculations!V$15:V$1344) -> 0 | T30: =SUMIF(Calculations!$I$15:$I$1344,$J30,Calculations!W$15:W$1344) -> 0 | U30: =SUMIF(Calculations!$I$15:$I$1344,$J30,Calculations!X$15:X$1344) -> 0 | V30: =SUMIF(Calculations!$I$15:$I$1344,$J30,Calculations!Y$15:Y$1344) -> 0 | W30: =SUMIF(Calculations!$I$15:$I$1344,$J30,Calculations!Z$15:Z$1344) -> 0 | X30: =SUMIF(Calculations!$I$15:$I$1344,$J30,Calculations!AA$15:AA$1344) -> 0 | Y30: =SUMIF(Calculations!$I$15:$I$1344,$J30,Calculations!AB$15:AB$1344) -> 0 | Z30: =SUMIF(Calculations!$I$15:$I$1344,$J30,Calculations!AC$15:AC$1344) -> 0 | AA30: =SUMIF(Calculations!$I$15:$I$1344,$J30,Calculations!AD$15:AD$1344) -> 0 | AB30: =SUMIF(Calculations!$I$15:$I$1344,$J30,Calculations!AE$15:AE$1344) -> 0 | AC30: =SUMIF(Calculations!$I$15:$I$1344,$J30,Calculations!AF$15:AF$1344) -> 0 | AD30: =SUMIF(Calculations!$I$15:$I$1344,$J30,Calculations!AG$15:AG$1344) -> 0 | AE30: =SUMIF(Calculations!$I$15:$I$1344,$J30,Calculations!AH$15:AH$1344) -> 0 | AF30: =SUMIF(Calculations!$I$15:$I$1344,$J30,Calculations!AI$15:AI$1344) -> 0 | AG30: =SUMIF(Calculations!$I$15:$I$1344,$J30,Calculations!AJ$15:AJ$1344) -> 0 | AH30: =SUMIF(Calculations!$I$15:$I$1344,$J30,Calculations!AK$15:AK$1344) -> 0 | AI30: =SUMIF(Calculations!$I$15:$I$1344,$J30,Calculations!AL$15:AL$1344) -> 0 | AJ30: =SUMIF(Calculations!$I$15:$I$1344,$J30,Calculations!AM$15:AM$1344) -> 0
I31: Effluent | J31: 1Effluent | L31: 0 | O31: =SUMIF(Calculations!$I$15:$I$1344,$J31,Calculations!R$15:R$1344) -> 0 | P31: =SUMIF(Calculations!$I$15:$I$1344,$J31,Calculations!S$15:S$1344) -> 0 | Q31: =SUMIF(Calculations!$I$15:$I$1344,$J31,Calculations!T$15:T$1344) -> 0 | R31: =SUMIF(Calculations!$I$15:$I$1344,$J31,Calculations!U$15:U$1344) -> 0 | S31: =SUMIF(Calculations!$I$15:$I$1344,$J31,Calculations!V$15:V$1344) -> 0 | T31: =SUMIF(Calculations!$I$15:$I$1344,$J31,Calculations!W$15:W$1344) -> 0 | U31: =SUMIF(Calculations!$I$15:$I$1344,$J31,Calculations!X$15:X$1344) -> 0 | V31: =SUMIF(Calculations!$I$15:$I$1344,$J31,Calculations!Y$15:Y$1344) -> 0 | W31: =SUMIF(Calculations!$I$15:$I$1344,$J31,Calculations!Z$15:Z$1344) -> 0 | X31: =SUMIF(Calculations!$I$15:$I$1344,$J31,Calculations!AA$15:AA$1344) -> 0 | Y31: =SUMIF(Calculations!$I$15:$I$1344,$J31,Calculations!AB$15:AB$1344) -> 0 | Z31: =SUMIF(Calculations!$I$15:$I$1344,$J31,Calculations!AC$15:AC$1344) -> 0 | AA31: =SUMIF(Calculations!$I$15:$I$1344,$J31,Calculations!AD$15:AD$1344) -> 0 | AB31: =SUMIF(Calculations!$I$15:$I$1344,$J31,Calculations!AE$15:AE$1344) -> 0 | AC31: =SUMIF(Calculations!$I$15:$I$1344,$J31,Calculations!AF$15:AF$1344) -> 0 | AD31: =SUMIF(Calculations!$I$15:$I$1344,$J31,Calculations!AG$15:AG$1344) -> 0 | AE31: =SUMIF(Calculations!$I$15:$I$1344,$J31,Calculations!AH$15:AH$1344) -> 0 | AF31: =SUMIF(Calculations!$I$15:$I$1344,$J31,Calculations!AI$15:AI$1344) -> 0 | AG31: =SUMIF(Calculations!$I$15:$I$1344,$J31,Calculations!AJ$15:AJ$1344) -> 0 | AH31: =SUMIF(Calculations!$I$15:$I$1344,$J31,Calculations!AK$15:AK$1344) -> 0 | AI31: =SUMIF(Calculations!$I$15:$I$1344,$J31,Calculations!AL$15:AL$1344) -> 0 | AJ31: =SUMIF(Calculations!$I$15:$I$1344,$J31,Calculations!AM$15:AM$1344) -> 0
I32: Laboratory | J32: 1Laboratory | L32: 0 | O32: =SUMIF(Calculations!$I$15:$I$1344,$J32,Calculations!R$15:R$1344) -> 0 | P32: =SUMIF(Calculations!$I$15:$I$1344,$J32,Calculations!S$15:S$1344) -> 0 | Q32: =SUMIF(Calculations!$I$15:$I$1344,$J32,Calculations!T$15:T$1344) -> 0 | R32: =SUMIF(Calculations!$I$15:$I$1344,$J32,Calculations!U$15:U$1344) -> 0 | S32: =SUMIF(Calculations!$I$15:$I$1344,$J32,Calculations!V$15:V$1344) -> 0 | T32: =SUMIF(Calculations!$I$15:$I$1344,$J32,Calculations!W$15:W$1344) -> 0 | U32: =SUMIF(Calculations!$I$15:$I$1344,$J32,Calculations!X$15:X$1344) -> 0 | V32: =SUMIF(Calculations!$I$15:$I$1344,$J32,Calculations!Y$15:Y$1344) -> 0 | W32: =SUMIF(Calculations!$I$15:$I$1344,$J32,Calculations!Z$15:Z$1344) -> 0 | X32: =SUMIF(Calculations!$I$15:$I$1344,$J32,Calculations!AA$15:AA$1344) -> 0 | Y32: =SUMIF(Calculations!$I$15:$I$1344,$J32,Calculations!AB$15:AB$1344) -> 0 | Z32: =SUMIF(Calculations!$I$15:$I$1344,$J32,Calculations!AC$15:AC$1344) -> 0 | AA32: =SUMIF(Calculations!$I$15:$I$1344,$J32,Calculations!AD$15:AD$1344) -> 0 | AB32: =SUMIF(Calculations!$I$15:$I$1344,$J32,Calculations!AE$15:AE$1344) -> 0 | AC32: =SUMIF(Calculations!$I$15:$I$1344,$J32,Calculations!AF$15:AF$1344) -> 0 | AD32: =SUMIF(Calculations!$I$15:$I$1344,$J32,Calculations!AG$15:AG$1344) -> 0 | AE32: =SUMIF(Calculations!$I$15:$I$1344,$J32,Calculations!AH$15:AH$1344) -> 0 | AF32: =SUMIF(Calculations!$I$15:$I$1344,$J32,Calculations!AI$15:AI$1344) -> 0 | AG32: =SUMIF(Calculations!$I$15:$I$1344,$J32,Calculations!AJ$15:AJ$1344) -> 0 | AH32: =SUMIF(Calculations!$I$15:$I$1344,$J32,Calculations!AK$15:AK$1344) -> 0 | AI32: =SUMIF(Calculations!$I$15:$I$1344,$J32,Calculations!AL$15:AL$1344) -> 0 | AJ32: =SUMIF(Calculations!$I$15:$I$1344,$J32,Calculations!AM$15:AM$1344) -> 0
I33: Variable operating costs | L33: =SUM(L26:L32) -> 517060.8602 | O33: =SUM(O26:O32) -> 0 | P33: 0 | Q33: 4905.177481 | R33: 6394.385234 | S33: 33966.20575 | T33: 60606.64172 | U33: 71787.21397 | V33: 64768.19488 | W33: 61632.4323 | X33: 56633.41528 | Y33: 45752.59305 | Z33: 46068.99394 | AA33: 39384.35822 | AB33: 25161.24833 | AC33: 0 | AD33: 0 | AE33: 0 | AF33: 0 | AG33: 0 | AH33: 0 | AI33: 0 | AJ33: 0
I34: Wages & ERE | J34: 1Wages & ERE | L34: =SUM(O34:AJ34) -> 0 | O34: =SUMIF(Calculations!$I$15:$I$1344,$J34,Calculations!R$15:R$1344) -> 0 | P34: =SUMIF(Calculations!$I$15:$I$1344,$J34,Calculations!S$15:S$1344) -> 0 | Q34: =SUMIF(Calculations!$I$15:$I$1344,$J34,Calculations!T$15:T$1344) -> 0 | R34: =SUMIF(Calculations!$I$15:$I$1344,$J34,Calculations!U$15:U$1344) -> 0 | S34: =SUMIF(Calculations!$I$15:$I$1344,$J34,Calculations!V$15:V$1344) -> 0 | T34: =SUMIF(Calculations!$I$15:$I$1344,$J34,Calculations!W$15:W$1344) -> 0 | U34: =SUMIF(Calculations!$I$15:$I$1344,$J34,Calculations!X$15:X$1344) -> 0 | V34: =SUMIF(Calculations!$I$15:$I$1344,$J34,Calculations!Y$15:Y$1344) -> 0 | W34: =SUMIF(Calculations!$I$15:$I$1344,$J34,Calculations!Z$15:Z$1344) -> 0 | X34: =SUMIF(Calculations!$I$15:$I$1344,$J34,Calculations!AA$15:AA$1344) -> 0 | Y34: =SUMIF(Calculations!$I$15:$I$1344,$J34,Calculations!AB$15:AB$1344) -> 0 | Z34: =SUMIF(Calculations!$I$15:$I$1344,$J34,Calculations!AC$15:AC$1344) -> 0 | AA34: =SUMIF(Calculations!$I$15:$I$1344,$J34,Calculations!AD$15:AD$1344) -> 0 | AB34: =SUMIF(Calculations!$I$15:$I$1344,$J34,Calculations!AE$15:AE$1344) -> 0 | AC34: =SUMIF(Calculations!$I$15:$I$1344,$J34,Calculations!AF$15:AF$1344) -> 0 | AD34: =SUMIF(Calculations!$I$15:$I$1344,$J34,Calculations!AG$15:AG$1344) -> 0 | AE34: =SUMIF(Calculations!$I$15:$I$1344,$J34,Calculations!AH$15:AH$1344) -> 0 | AF34: =SUMIF(Calculations!$I$15:$I$1344,$J34,Calculations!AI$15:AI$1344) -> 0 | AG34: =SUMIF(Calculations!$I$15:$I$1344,$J34,Calculations!AJ$15:AJ$1344) -> 0 | AH34: =SUMIF(Calculations!$I$15:$I$1344,$J34,Calculations!AK$15:AK$1344) -> 0 | AI34: =SUMIF(Calculations!$I$15:$I$1344,$J34,Calculations!AL$15:AL$1344) -> 0 | AJ34: =SUMIF(Calculations!$I$15:$I$1344,$J34,Calculations!AM$15:AM$1344) -> 0
I35: Repairs & Maintenance | J35: 1Repairs & Maintenance | L35: =SUM(O35:AJ35) -> 0 | O35: =SUMIF(Calculations!$I$15:$I$1344,$J35,Calculations!R$15:R$1344) -> 0 | P35: =SUMIF(Calculations!$I$15:$I$1344,$J35,Calculations!S$15:S$1344) -> 0 | Q35: =SUMIF(Calculations!$I$15:$I$1344,$J35,Calculations!T$15:T$1344) -> 0 | R35: =SUMIF(Calculations!$I$15:$I$1344,$J35,Calculations!U$15:U$1344) -> 0 | S35: =SUMIF(Calculations!$I$15:$I$1344,$J35,Calculations!V$15:V$1344) -> 0 | T35: =SUMIF(Calculations!$I$15:$I$1344,$J35,Calculations!W$15:W$1344) -> 0 | U35: =SUMIF(Calculations!$I$15:$I$1344,$J35,Calculations!X$15:X$1344) -> 0 | V35: =SUMIF(Calculations!$I$15:$I$1344,$J35,Calculations!Y$15:Y$1344) -> 0 | W35: =SUMIF(Calculations!$I$15:$I$1344,$J35,Calculations!Z$15:Z$1344) -> 0 | X35: =SUMIF(Calculations!$I$15:$I$1344,$J35,Calculations!AA$15:AA$1344) -> 0 | Y35: =SUMIF(Calculations!$I$15:$I$1344,$J35,Calculations!AB$15:AB$1344) -> 0 | Z35: =SUMIF(Calculations!$I$15:$I$1344,$J35,Calculations!AC$15:AC$1344) -> 0 | AA35: =SUMIF(Calculations!$I$15:$I$1344,$J35,Calculations!AD$15:AD$1344) -> 0 | AB35: =SUMIF(Calculations!$I$15:$I$1344,$J35,Calculations!AE$15:AE$1344) -> 0 | AC35: =SUMIF(Calculations!$I$15:$I$1344,$J35,Calculations!AF$15:AF$1344) -> 0 | AD35: =SUMIF(Calculations!$I$15:$I$1344,$J35,Calculations!AG$15:AG$1344) -> 0 | AE35: =SUMIF(Calculations!$I$15:$I$1344,$J35,Calculations!AH$15:AH$1344) -> 0 | AF35: =SUMIF(Calculations!$I$15:$I$1344,$J35,Calculations!AI$15:AI$1344) -> 0 | AG35: =SUMIF(Calculations!$I$15:$I$1344,$J35,Calculations!AJ$15:AJ$1344) -> 0 | AH35: =SUMIF(Calculations!$I$15:$I$1344,$J35,Calculations!AK$15:AK$1344) -> 0 | AI35: =SUMIF(Calculations!$I$15:$I$1344,$J35,Calculations!AL$15:AL$1344) -> 0 | AJ35: =SUMIF(Calculations!$I$15:$I$1344,$J35,Calculations!AM$15:AM$1344) -> 0
I36: Energy - Fixed | J36: =$J$3&I36 -> 1Energy - Fixed | L36: =SUM(O36:AJ36) -> 0 | O36: =SUMIF(Calculations!$I$15:$I$1344,$J36,Calculations!R$15:R$1344) -> 0 | P36: =SUMIF(Calculations!$I$15:$I$1344,$J36,Calculations!S$15:S$1344) -> 0 | Q36: =SUMIF(Calculations!$I$15:$I$1344,$J36,Calculations!T$15:T$1344) -> 0 | R36: =SUMIF(Calculations!$I$15:$I$1344,$J36,Calculations!U$15:U$1344) -> 0 | S36: =SUMIF(Calculations!$I$15:$I$1344,$J36,Calculations!V$15:V$1344) -> 0 | T36: =SUMIF(Calculations!$I$15:$I$1344,$J36,Calculations!W$15:W$1344) -> 0 | U36: =SUMIF(Calculations!$I$15:$I$1344,$J36,Calculations!X$15:X$1344) -> 0 | V36: =SUMIF(Calculations!$I$15:$I$1344,$J36,Calculations!Y$15:Y$1344) -> 0 | W36: =SUMIF(Calculations!$I$15:$I$1344,$J36,Calculations!Z$15:Z$1344) -> 0 | X36: =SUMIF(Calculations!$I$15:$I$1344,$J36,Calculations!AA$15:AA$1344) -> 0 | Y36: =SUMIF(Calculations!$I$15:$I$1344,$J36,Calculations!AB$15:AB$1344) -> 0 | Z36: =SUMIF(Calculations!$I$15:$I$1344,$J36,Calculations!AC$15:AC$1344) -> 0 | AA36: =SUMIF(Calculations!$I$15:$I$1344,$J36,Calculations!AD$15:AD$1344) -> 0 | AB36: =SUMIF(Calculations!$I$15:$I$1344,$J36,Calculations!AE$15:AE$1344) -> 0 | AC36: =SUMIF(Calculations!$I$15:$I$1344,$J36,Calculations!AF$15:AF$1344) -> 0 | AD36: =SUMIF(Calculations!$I$15:$I$1344,$J36,Calculations!AG$15:AG$1344) -> 0 | AE36: =SUMIF(Calculations!$I$15:$I$1344,$J36,Calculations!AH$15:AH$1344) -> 0 | AF36: =SUMIF(Calculations!$I$15:$I$1344,$J36,Calculations!AI$15:AI$1344) -> 0 | AG36: =SUMIF(Calculations!$I$15:$I$1344,$J36,Calculations!AJ$15:AJ$1344) -> 0 | AH36: =SUMIF(Calculations!$I$15:$I$1344,$J36,Calculations!AK$15:AK$1344) -> 0 | AI36: =SUMIF(Calculations!$I$15:$I$1344,$J36,Calculations!AL$15:AL$1344) -> 0 | AJ36: =SUMIF(Calculations!$I$15:$I$1344,$J36,Calculations!AM$15:AM$1344) -> 0
I37: Site Overheads | J37: 1Site Overheads | L37: =SUM(O37:AJ37) -> 393513.5516 | O37: =SUMIF(Calculations!$I$15:$I$1344,$J37,Calculations!R$15:R$1344) -> 0 | P37: =SUMIF(Calculations!$I$15:$I$1344,$J37,Calculations!S$15:S$1344) -> 0 | Q37: =SUMIF(Calculations!$I$15:$I$1344,$J37,Calculations!T$15:T$1344) -> 37539.90509 | R37: =SUMIF(Calculations!$I$15:$I$1344,$J37,Calculations!U$15:U$1344) -> 37560.97119 | S37: =SUMIF(Calculations!$I$15:$I$1344,$J37,Calculations!V$15:V$1344) -> 34469.50944 | T37: =SUMIF(Calculations!$I$15:$I$1344,$J37,Calculations!W$15:W$1344) -> 31644.93013 | U37: =SUMIF(Calculations!$I$15:$I$1344,$J37,Calculations!X$15:X$1344) -> 32195.41414 | V37: =SUMIF(Calculations!$I$15:$I$1344,$J37,Calculations!Y$15:Y$1344) -> 30544.89482 | W37: =SUMIF(Calculations!$I$15:$I$1344,$J37,Calculations!Z$15:Z$1344) -> 31005.92298 | X37: =SUMIF(Calculations!$I$15:$I$1344,$J37,Calculations!AA$15:AA$1344) -> 29405.91872 | Y37: =SUMIF(Calculations!$I$15:$I$1344,$J37,Calculations!AB$15:AB$1344) -> 28516.42237 | Z37: =SUMIF(Calculations!$I$15:$I$1344,$J37,Calculations!AC$15:AC$1344) -> 30823.5106 | AA37: =SUMIF(Calculations!$I$15:$I$1344,$J37,Calculations!AD$15:AD$1344) -> 32269.46184 | AB37: =SUMIF(Calculations!$I$15:$I$1344,$J37,Calculations!AE$15:AE$1344) -> 37536.69028 | AC37: =SUMIF(Calculations!$I$15:$I$1344,$J37,Calculations!AF$15:AF$1344) -> 0 | AD37: =SUMIF(Calculations!$I$15:$I$1344,$J37,Calculations!AG$15:AG$1344) -> 0 | AE37: =SUMIF(Calculations!$I$15:$I$1344,$J37,Calculations!AH$15:AH$1344) -> 0 | AF37: =SUMIF(Calculations!$I$15:$I$1344,$J37,Calculations!AI$15:AI$1344) -> 0 | AG37: =SUMIF(Calculations!$I$15:$I$1344,$J37,Calculations!AJ$15:AJ$1344) -> 0 | AH37: =SUMIF(Calculations!$I$15:$I$1344,$J37,Calculations!AK$15:AK$1344) -> 0 | AI37: =SUMIF(Calculations!$I$15:$I$1344,$J37,Calculations!AL$15:AL$1344) -> 0 | AJ37: =SUMIF(Calculations!$I$15:$I$1344,$J37,Calculations!AM$15:AM$1344) -> 0
I38: Fixed operating costs | L38: =SUM(L34:L37) -> 393513.5516 | O38: =SUM(O34:O37) -> 0 | P38: =SUM(P34:P37) -> 0 | Q38: =SUM(Q34:Q37) -> 37539.90509 | R38: =SUM(R34:R37) -> 37560.97119 | S38: 34469.50944 | T38: 31644.93013 | U38: 32195.41414 | V38: 30544.89482 | W38: 31005.92298 | X38: 29405.91872 | Y38: 28516.42237 | Z38: 30823.5106 | AA38: 32269.46184 | AB38: 37536.69028 | AC38: 0 | AD38: 0 | AE38: 0 | AF38: 0 | AG38: 0 | AH38: 0 | AI38: 0 | AJ38: 0
I39: Operating Costs | L39: =L33+L38 -> 910574.4117 | O39: =SUM(O33,O38) -> 0 | P39: =SUM(P33,P38) -> 0 | Q39: =SUM(Q33,Q38) -> 42445.08257 | R39: =SUM(R33,R38) -> 43955.35642 | S39: 68435.71519 | T39: 92251.57185 | U39: 103982.6281 | V39: 95313.0897 | W39: 92638.35529 | X39: 86039.334 | Y39: 74269.01542 | Z39: 76892.50453 | AA39: 71653.82006 | AB39: 62697.93861 | AC39: 0 | AD39: 0 | AE39: 0 | AF39: 0 | AG39: 0 | AH39: 0 | AI39: 0 | AJ39: 0
I40: Variable supply chain costs | J40: 1Variable supply chain costs | L40: =SUM(O40:AJ40) -> 239736.9108 | O40: =SUMIF(Calculations!$I$15:$I$1344,$J40,Calculations!R$15:R$1344) -> 0 | P40: =SUMIF(Calculations!$I$15:$I$1344,$J40,Calculations!S$15:S$1344) -> 0 | Q40: =SUMIF(Calculations!$I$15:$I$1344,$J40,Calculations!T$15:T$1344) -> 0 | R40: =SUMIF(Calculations!$I$15:$I$1344,$J40,Calculations!U$15:U$1344) -> 0 | S40: =SUMIF(Calculations!$I$15:$I$1344,$J40,Calculations!V$15:V$1344) -> 0 | T40: =SUMIF(Calculations!$I$15:$I$1344,$J40,Calculations!W$15:W$1344) -> 15018.03138 | U40: =SUMIF(Calculations!$I$15:$I$1344,$J40,Calculations!X$15:X$1344) -> 15018.03138 | V40: =SUMIF(Calculations!$I$15:$I$1344,$J40,Calculations!Y$15:Y$1344) -> 26137.85563 | W40: =SUMIF(Calculations!$I$15:$I$1344,$J40,Calculations!Z$15:Z$1344) -> 26137.85563 | X40: =SUMIF(Calculations!$I$15:$I$1344,$J40,Calculations!AA$15:AA$1344) -> 26137.85563 | Y40: =SUMIF(Calculations!$I$15:$I$1344,$J40,Calculations!AB$15:AB$1344) -> 21305.71294 | Z40: =SUMIF(Calculations!$I$15:$I$1344,$J40,Calculations!AC$15:AC$1344) -> 21305.71294 | AA40: =SUMIF(Calculations!$I$15:$I$1344,$J40,Calculations!AD$15:AD$1344) -> 21305.71294 | AB40: =SUMIF(Calculations!$I$15:$I$1344,$J40,Calculations!AE$15:AE$1344) -> 20029.27262 | AC40: =SUMIF(Calculations!$I$15:$I$1344,$J40,Calculations!AF$15:AF$1344) -> 20029.27262 | AD40: =SUMIF(Calculations!$I$15:$I$1344,$J40,Calculations!AG$15:AG$1344) -> 20029.27262 | AE40: =SUMIF(Calculations!$I$15:$I$1344,$J40,Calculations!AH$15:AH$1344) -> 2427.441491 | AF40: =SUMIF(Calculations!$I$15:$I$1344,$J40,Calculations!AI$15:AI$1344) -> 2427.441491 | AG40: =SUMIF(Calculations!$I$15:$I$1344,$J40,Calculations!AJ$15:AJ$1344) -> 2427.441491 | AH40: =SUMIF(Calculations!$I$15:$I$1344,$J40,Calculations!AK$15:AK$1344) -> 0 | AI40: =SUMIF(Calculations!$I$15:$I$1344,$J40,Calculations!AL$15:AL$1344) -> 0 | AJ40: =SUMIF(Calculations!$I$15:$I$1344,$J40,Calculations!AM$15:AM$1344) -> 0
I41: Fixed supply chain costs | J41: 1Fixed supply chain costs | L41: =SUM(O41:AJ41) -> 0 | O41: =SUMIF(Calculations!$I$15:$I$1344,$J41,Calculations!R$15:R$1344) -> 0 | P41: =SUMIF(Calculations!$I$15:$I$1344,$J41,Calculations!S$15:S$1344) -> 0 | Q41: =SUMIF(Calculations!$I$15:$I$1344,$J41,Calculations!T$15:T$1344) -> 0 | R41: =SUMIF(Calculations!$I$15:$I$1344,$J41,Calculations!U$15:U$1344) -> 0 | S41: =SUMIF(Calculations!$I$15:$I$1344,$J41,Calculations!V$15:V$1344) -> 0 | T41: =SUMIF(Calculations!$I$15:$I$1344,$J41,Calculations!W$15:W$1344) -> 0 | U41: =SUMIF(Calculations!$I$15:$I$1344,$J41,Calculations!X$15:X$1344) -> 0 | V41: =SUMIF(Calculations!$I$15:$I$1344,$J41,Calculations!Y$15:Y$1344) -> 0 | W41: =SUMIF(Calculations!$I$15:$I$1344,$J41,Calculations!Z$15:Z$1344) -> 0 | X41: =SUMIF(Calculations!$I$15:$I$1344,$J41,Calculations!AA$15:AA$1344) -> 0 | Y41: =SUMIF(Calculations!$I$15:$I$1344,$J41,Calculations!AB$15:AB$1344) -> 0 | Z41: =SUMIF(Calculations!$I$15:$I$1344,$J41,Calculations!AC$15:AC$1344) -> 0 | AA41: =SUMIF(Calculations!$I$15:$I$1344,$J41,Calculations!AD$15:AD$1344) -> 0 | AB41: =SUMIF(Calculations!$I$15:$I$1344,$J41,Calculations!AE$15:AE$1344) -> 0 | AC41: =SUMIF(Calculations!$I$15:$I$1344,$J41,Calculations!AF$15:AF$1344) -> 0 | AD41: =SUMIF(Calculations!$I$15:$I$1344,$J41,Calculations!AG$15:AG$1344) -> 0 | AE41: =SUMIF(Calculations!$I$15:$I$1344,$J41,Calculations!AH$15:AH$1344) -> 0 | AF41: =SUMIF(Calculations!$I$15:$I$1344,$J41,Calculations!AI$15:AI$1344) -> 0 | AG41: =SUMIF(Calculations!$I$15:$I$1344,$J41,Calculations!AJ$15:AJ$1344) -> 0 | AH41: =SUMIF(Calculations!$I$15:$I$1344,$J41,Calculations!AK$15:AK$1344) -> 0 | AI41: =SUMIF(Calculations!$I$15:$I$1344,$J41,Calculations!AL$15:AL$1344) -> 0 | AJ41: =SUMIF(Calculations!$I$15:$I$1344,$J41,Calculations!AM$15:AM$1344) -> 0
I42: Supply Chain | L42: =SUM(L40:L41) -> 239736.9108 | O42: =SUM(O40:O41) -> 0 | P42: =SUM(P40:P41) -> 0 | Q42: =SUM(Q40:Q41) -> 0 | R42: 0 | S42: 0 | T42: 15018.03138 | U42: 15018.03138 | V42: 26137.85563 | W42: 26137.85563 | X42: 26137.85563 | Y42: 21305.71294 | Z42: 21305.71294 | AA42: 21305.71294 | AB42: 20029.27262 | AC42: 20029.27262 | AD42: 20029.27262 | AE42: 2427.441491 | AF42: 2427.441491 | AG42: 2427.441491 | AH42: 0 | AI42: 0 | AJ42: 0
I43: Administration | J43: 1Administration | L43: =SUM(O43:AJ43) -> 344141.8927 | O43: =SUMIF(Calculations!$I$15:$I$1344,$J43,Calculations!R$15:R$1344) -> 0 | P43: =SUMIF(Calculations!$I$15:$I$1344,$J43,Calculations!S$15:S$1344) -> 0 | Q43: =SUMIF(Calculations!$I$15:$I$1344,$J43,Calculations!T$15:T$1344) -> 23873.38451 | R43: =SUMIF(Calculations!$I$15:$I$1344,$J43,Calculations!U$15:U$1344) -> 55582.18874 | S43: =SUMIF(Calculations!$I$15:$I$1344,$J43,Calculations!V$15:V$1344) -> 26020.92007 | T43: =SUMIF(Calculations!$I$15:$I$1344,$J43,Calculations!W$15:W$1344) -> 26549.63144 | U43: =SUMIF(Calculations!$I$15:$I$1344,$J43,Calculations!X$15:X$1344) -> 29564.39069 | V43: =SUMIF(Calculations!$I$15:$I$1344,$J43,Calculations!Y$15:Y$1344) -> 25132.93701 | W43: =SUMIF(Calculations!$I$15:$I$1344,$J43,Calculations!Z$15:Z$1344) -> 28148.44208 | X43: =SUMIF(Calculations!$I$15:$I$1344,$J43,Calculations!AA$15:AA$1344) -> 24962.90496 | Y43: =SUMIF(Calculations!$I$15:$I$1344,$J43,Calculations!AB$15:AB$1344) -> 23046.47772 | Z43: =SUMIF(Calculations!$I$15:$I$1344,$J43,Calculations!AC$15:AC$1344) -> 27090.41167 | AA43: =SUMIF(Calculations!$I$15:$I$1344,$J43,Calculations!AD$15:AD$1344) -> 26414.83533 | AB43: =SUMIF(Calculations!$I$15:$I$1344,$J43,Calculations!AE$15:AE$1344) -> 27755.36849 | AC43: =SUMIF(Calculations!$I$15:$I$1344,$J43,Calculations!AF$15:AF$1344) -> 0 | AD43: =SUMIF(Calculations!$I$15:$I$1344,$J43,Calculations!AG$15:AG$1344) -> 0 | AE43: =SUMIF(Calculations!$I$15:$I$1344,$J43,Calculations!AH$15:AH$1344) -> 0 | AF43: =SUMIF(Calculations!$I$15:$I$1344,$J43,Calculations!AI$15:AI$1344) -> 0 | AG43: =SUMIF(Calculations!$I$15:$I$1344,$J43,Calculations!AJ$15:AJ$1344) -> 0 | AH43: =SUMIF(Calculations!$I$15:$I$1344,$J43,Calculations!AK$15:AK$1344) -> 0 | AI43: =SUMIF(Calculations!$I$15:$I$1344,$J43,Calculations!AL$15:AL$1344) -> 0 | AJ43: =SUMIF(Calculations!$I$15:$I$1344,$J43,Calculations!AM$15:AM$1344) -> 0
I44: Miscellaneous costs | J44: =$J$3&I44 -> 1Miscellaneous costs | L44: =SUM(O44:AJ44) -> 0 | O44: =SUMIF(Calculations!$I$15:$I$1344,$J44,Calculations!R$15:R$1344) -> 0 | P44: =SUMIF(Calculations!$I$15:$I$1344,$J44,Calculations!S$15:S$1344) -> 0 | Q44: =SUMIF(Calculations!$I$15:$I$1344,$J44,Calculations!T$15:T$1344) -> 0 | R44: =SUMIF(Calculations!$I$15:$I$1344,$J44,Calculations!U$15:U$1344) -> 0 | S44: =SUMIF(Calculations!$I$15:$I$1344,$J44,Calculations!V$15:V$1344) -> 0 | T44: =SUMIF(Calculations!$I$15:$I$1344,$J44,Calculations!W$15:W$1344) -> 0 | U44: =SUMIF(Calculations!$I$15:$I$1344,$J44,Calculations!X$15:X$1344) -> 0 | V44: =SUMIF(Calculations!$I$15:$I$1344,$J44,Calculations!Y$15:Y$1344) -> 0 | W44: =SUMIF(Calculations!$I$15:$I$1344,$J44,Calculations!Z$15:Z$1344) -> 0 | X44: =SUMIF(Calculations!$I$15:$I$1344,$J44,Calculations!AA$15:AA$1344) -> 0 | Y44: =SUMIF(Calculations!$I$15:$I$1344,$J44,Calculations!AB$15:AB$1344) -> 0 | Z44: =SUMIF(Calculations!$I$15:$I$1344,$J44,Calculations!AC$15:AC$1344) -> 0 | AA44: =SUMIF(Calculations!$I$15:$I$1344,$J44,Calculations!AD$15:AD$1344) -> 0 | AB44: =SUMIF(Calculations!$I$15:$I$1344,$J44,Calculations!AE$15:AE$1344) -> 0 | AC44: =SUMIF(Calculations!$I$15:$I$1344,$J44,Calculations!AF$15:AF$1344) -> 0 | AD44: =SUMIF(Calculations!$I$15:$I$1344,$J44,Calculations!AG$15:AG$1344) -> 0 | AE44: =SUMIF(Calculations!$I$15:$I$1344,$J44,Calculations!AH$15:AH$1344) -> 0 | AF44: =SUMIF(Calculations!$I$15:$I$1344,$J44,Calculations!AI$15:AI$1344) -> 0 | AG44: =SUMIF(Calculations!$I$15:$I$1344,$J44,Calculations!AJ$15:AJ$1344) -> 0 | AH44: =SUMIF(Calculations!$I$15:$I$1344,$J44,Calculations!AK$15:AK$1344) -> 0 | AI44: =SUMIF(Calculations!$I$15:$I$1344,$J44,Calculations!AL$15:AL$1344) -> 0 | AJ44: =SUMIF(Calculations!$I$15:$I$1344,$J44,Calculations!AM$15:AM$1344) -> 0
I45: Depreciation Expense | J45: =$J$3&I45 -> 1Depreciation Expense | L45: =SUM(O45:AJ45) -> 277910.6419 | O45: =SUMIF(Calculations!$I$15:$I$1344,$J45,Calculations!R$15:R$1344) -> 0 | P45: =SUMIF(Calculations!$I$15:$I$1344,$J45,Calculations!S$15:S$1344) -> 0 | Q45: =SUMIF(Calculations!$I$15:$I$1344,$J45,Calculations!T$15:T$1344) -> 0 | R45: =SUMIF(Calculations!$I$15:$I$1344,$J45,Calculations!U$15:U$1344) -> 0 | S45: =SUMIF(Calculations!$I$15:$I$1344,$J45,Calculations!V$15:V$1344) -> 0 | T45: =SUMIF(Calculations!$I$15:$I$1344,$J45,Calculations!W$15:W$1344) -> 0 | U45: =SUMIF(Calculations!$I$15:$I$1344,$J45,Calculations!X$15:X$1344) -> 0 | V45: =SUMIF(Calculations!$I$15:$I$1344,$J45,Calculations!Y$15:Y$1344) -> 0 | W45: =SUMIF(Calculations!$I$15:$I$1344,$J45,Calculations!Z$15:Z$1344) -> 0 | X45: =SUMIF(Calculations!$I$15:$I$1344,$J45,Calculations!AA$15:AA$1344) -> 0 | Y45: =SUMIF(Calculations!$I$15:$I$1344,$J45,Calculations!AB$15:AB$1344) -> 0 | Z45: =SUMIF(Calculations!$I$15:$I$1344,$J45,Calculations!AC$15:AC$1344) -> 0 | AA45: =SUMIF(Calculations!$I$15:$I$1344,$J45,Calculations!AD$15:AD$1344) -> 0 | AB45: =SUMIF(Calculations!$I$15:$I$1344,$J45,Calculations!AE$15:AE$1344) -> 277910.6419 | AC45: =SUMIF(Calculations!$I$15:$I$1344,$J45,Calculations!AF$15:AF$1344) -> 0 | AD45: =SUMIF(Calculations!$I$15:$I$1344,$J45,Calculations!AG$15:AG$1344) -> 0 | AE45: =SUMIF(Calculations!$I$15:$I$1344,$J45,Calculations!AH$15:AH$1344) -> 0 | AF45: =SUMIF(Calculations!$I$15:$I$1344,$J45,Calculations!AI$15:AI$1344) -> 0 | AG45: =SUMIF(Calculations!$I$15:$I$1344,$J45,Calculations!AJ$15:AJ$1344) -> 0 | AH45: =SUMIF(Calculations!$I$15:$I$1344,$J45,Calculations!AK$15:AK$1344) -> 0 | AI45: =SUMIF(Calculations!$I$15:$I$1344,$J45,Calculations!AL$15:AL$1344) -> 0 | AJ45: =SUMIF(Calculations!$I$15:$I$1344,$J45,Calculations!AM$15:AM$1344) -> 0
I46: Inventory Movement | J46: =$J$3&I46 -> 1Inventory Movement | L46: =SUM(O46:AJ46) -> -6.98491931e-10 | O46: =SUMIF(Calculations!$I$15:$I$1344,$J46,Calculations!R$15:R$1344) -> 0 | P46: =SUMIF(Calculations!$I$15:$I$1344,$J46,Calculations!S$15:S$1344) -> 0 | Q46: =SUMIF(Calculations!$I$15:$I$1344,$J46,Calculations!T$15:T$1344) -> -222450.6008 | R46: =SUMIF(Calculations!$I$15:$I$1344,$J46,Calculations!U$15:U$1344) -> -291461.5863 | S46: =SUMIF(Calculations!$I$15:$I$1344,$J46,Calculations!V$15:V$1344) -> -939559.6675 | T46: =SUMIF(Calculations!$I$15:$I$1344,$J46,Calculations!W$15:W$1344) -> -529628.4943 | U46: =SUMIF(Calculations!$I$15:$I$1344,$J46,Calculations!X$15:X$1344) -> -1034682.63 | V46: =SUMIF(Calculations!$I$15:$I$1344,$J46,Calculations!Y$15:Y$1344) -> -227003.207 | W46: =SUMIF(Calculations!$I$15:$I$1344,$J46,Calculations!Z$15:Z$1344) -> -163873.8474 | X46: =SUMIF(Calculations!$I$15:$I$1344,$J46,Calculations!AA$15:AA$1344) -> -21281.97091 | Y46: =SUMIF(Calculations!$I$15:$I$1344,$J46,Calculations!AB$15:AB$1344) -> -15911.83107 | Z46: =SUMIF(Calculations!$I$15:$I$1344,$J46,Calculations!AC$15:AC$1344) -> -40856.56893 | AA46: =SUMIF(Calculations!$I$15:$I$1344,$J46,Calculations!AD$15:AD$1344) -> 129462.2246 | AB46: =SUMIF(Calculations!$I$15:$I$1344,$J46,Calculations!AE$15:AE$1344) -> 407306.422 | AC46: =SUMIF(Calculations!$I$15:$I$1344,$J46,Calculations!AF$15:AF$1344) -> 1191672.543 | AD46: =SUMIF(Calculations!$I$15:$I$1344,$J46,Calculations!AG$15:AG$1344) -> 1233472.442 | AE46: =SUMIF(Calculations!$I$15:$I$1344,$J46,Calculations!AH$15:AH$1344) -> 174932.2572 | AF46: =SUMIF(Calculations!$I$15:$I$1344,$J46,Calculations!AI$15:AI$1344) -> 174932.2572 | AG46: =SUMIF(Calculations!$I$15:$I$1344,$J46,Calculations!AJ$15:AJ$1344) -> 174932.2572 | AH46: =SUMIF(Calculations!$I$15:$I$1344,$J46,Calculations!AK$15:AK$1344) -> 0 | AI46: =SUMIF(Calculations!$I$15:$I$1344,$J46,Calculations!AL$15:AL$1344) -> 0 | AJ46: =SUMIF(Calculations!$I$15:$I$1344,$J46,Calculations!AM$15:AM$1344) -> 0
I47: Non-Milk Expenses | L47: =SUM(L22:L24,L39,L42:L46) -> 2911215.379 | O47: =SUM(O22:O24,O39,O42:O46) -> 0 | P47: 0 | Q47: -134662.9746 | R47: -166867.3253 | S47: -772080.2972 | T47: -284092.4774 | U47: -753307.3892 | V47: 43058.89016 | W47: 104862.9323 | X47: 231657.0645 | Y47: 202782.8835 | Z47: 194182.6242 | AA47: 352582.9184 | AB47: 873823.6362 | AC47: 1222697.949 | AD47: 1264497.848 | AE47: 177359.6987 | AF47: 177359.6987 | AG47: 177359.6987 | AH47: 0 | AI47: 0 | AJ47: 0
I49: Cost of Milk | J49: =$J$3&I49 -> 1Cost of Milk | L49: =SUM(O49:AJ49) -> 11626692.31 | O49: =SUMIF(Calculations!$I$15:$I$1344,$J49,Calculations!R$15:R$1344) -> 0 | P49: =SUMIF(Calculations!$I$15:$I$1344,$J49,Calculations!S$15:S$1344) -> 0 | Q49: =SUMIF(Calculations!$I$15:$I$1344,$J49,Calculations!T$15:T$1344) -> 111492.0543 | R49: =SUMIF(Calculations!$I$15:$I$1344,$J49,Calculations!U$15:U$1344) -> 144047.0302 | S49: =SUMIF(Calculations!$I$15:$I$1344,$J49,Calculations!V$15:V$1344) -> 760909.7624 | T49: =SUMIF(Calculations!$I$15:$I$1344,$J49,Calculations!W$15:W$1344) -> 1358570.942 | U49: =SUMIF(Calculations!$I$15:$I$1344,$J49,Calculations!X$15:X$1344) -> 1609249.246 | V49: =SUMIF(Calculations!$I$15:$I$1344,$J49,Calculations!Y$15:Y$1344) -> 1452168.257 | W49: =SUMIF(Calculations!$I$15:$I$1344,$J49,Calculations!Z$15:Z$1344) -> 1382970.596 | X49: =SUMIF(Calculations!$I$15:$I$1344,$J49,Calculations!AA$15:AA$1344) -> 1270741.755 | Y49: =SUMIF(Calculations!$I$15:$I$1344,$J49,Calculations!AB$15:AB$1344) -> 1031125.384 | Z49: =SUMIF(Calculations!$I$15:$I$1344,$J49,Calculations!AC$15:AC$1344) -> 1043508.012 | AA49: =SUMIF(Calculations!$I$15:$I$1344,$J49,Calculations!AD$15:AD$1344) -> 892576.5984 | AB49: =SUMIF(Calculations!$I$15:$I$1344,$J49,Calculations!AE$15:AE$1344) -> 569332.6762 | AC49: =SUMIF(Calculations!$I$15:$I$1344,$J49,Calculations!AF$15:AF$1344) -> 0 | AD49: =SUMIF(Calculations!$I$15:$I$1344,$J49,Calculations!AG$15:AG$1344) -> 0 | AE49: =SUMIF(Calculations!$I$15:$I$1344,$J49,Calculations!AH$15:AH$1344) -> 0 | AF49: =SUMIF(Calculations!$I$15:$I$1344,$J49,Calculations!AI$15:AI$1344) -> 0 | AG49: =SUMIF(Calculations!$I$15:$I$1344,$J49,Calculations!AJ$15:AJ$1344) -> 0 | AH49: =SUMIF(Calculations!$I$15:$I$1344,$J49,Calculations!AK$15:AK$1344) -> 0 | AI49: =SUMIF(Calculations!$I$15:$I$1344,$J49,Calculations!AL$15:AL$1344) -> 0 | AJ49: =SUMIF(Calculations!$I$15:$I$1344,$J49,Calculations!AM$15:AM$1344) -> 0
I51: Additional Commodity Milk Payments And Standard Supply Adjustments | L51: ='Data Input'!N280 -> 15229.05843
I53: Aggregate Farmgate Milk Price | L53: =L49-L51 -> 11611463.25
I55: EBIT | J55: =$J$3&I55 -> 1EBIT | L55: =L19-L47-L49 -> 476132.284 | O55: =O19-O47-O49 -> 0 | P55: 0 | Q55: 23170.92035 | R55: 22820.29505 | S55: 11170.53485 | T55: -242925.0378 | U55: -24388.43051 | V55: -16029.30809 | W55: -8635.689287 | X55: -23200.98034 | Y55: 79414.37142 | Z55: 75632.00304 | AA55: 68163.12205 | AB55: 25401.14816 | AC55: 245859.5114 | AD55: 204059.6123 | AE55: 11873.40383 | AF55: 11873.40383 | AG55: 11873.40383 | AH55: 0 | AI55: 0 | AJ55: 0
I57: Tax Expense | J57: =$J$3&I57 -> 1Tax Expense | L57: =SUM(O57:AJ57) -> 106828.7737 | O57: =SUMIF(Calculations!$I$15:$I$1344,$J57,Calculations!R$15:R$1344) -> 0 | P57: =SUMIF(Calculations!$I$15:$I$1344,$J57,Calculations!S$15:S$1344) -> 0 | Q57: =SUMIF(Calculations!$I$15:$I$1344,$J57,Calculations!T$15:T$1344) -> 8902.397811 | R57: =SUMIF(Calculations!$I$15:$I$1344,$J57,Calculations!U$15:U$1344) -> 8902.397811 | S57: =SUMIF(Calculations!$I$15:$I$1344,$J57,Calculations!V$15:V$1344) -> 8902.397811 | T57: =SUMIF(Calculations!$I$15:$I$1344,$J57,Calculations!W$15:W$1344) -> 8902.397811 | U57: =SUMIF(Calculations!$I$15:$I$1344,$J57,Calculations!X$15:X$1344) -> 8902.397811 | V57: =SUMIF(Calculations!$I$15:$I$1344,$J57,Calculations!Y$15:Y$1344) -> 8902.397811 | W57: =SUMIF(Calculations!$I$15:$I$1344,$J57,Calculations!Z$15:Z$1344) -> 8902.397811 | X57: =SUMIF(Calculations!$I$15:$I$1344,$J57,Calculations!AA$15:AA$1344) -> 8902.397811 | Y57: =SUMIF(Calculations!$I$15:$I$1344,$J57,Calculations!AB$15:AB$1344) -> 8902.397811 | Z57: =SUMIF(Calculations!$I$15:$I$1344,$J57,Calculations!AC$15:AC$1344) -> 8902.397811 | AA57: =SUMIF(Calculations!$I$15:$I$1344,$J57,Calculations!AD$15:AD$1344) -> 8902.397811 | AB57: =SUMIF(Calculations!$I$15:$I$1344,$J57,Calculations!AE$15:AE$1344) -> 8902.397811 | AC57: =SUMIF(Calculations!$I$15:$I$1344,$J57,Calculations!AF$15:AF$1344) -> 0 | AD57: =SUMIF(Calculations!$I$15:$I$1344,$J57,Calculations!AG$15:AG$1344) -> 0 | AE57: =SUMIF(Calculations!$I$15:$I$1344,$J57,Calculations!AH$15:AH$1344) -> 0 | AF57: =SUMIF(Calculations!$I$15:$I$1344,$J57,Calculations!AI$15:AI$1344) -> 0 | AG57: =SUMIF(Calculations!$I$15:$I$1344,$J57,Calculations!AJ$15:AJ$1344) -> 0 | AH57: =SUMIF(Calculations!$I$15:$I$1344,$J57,Calculations!AK$15:AK$1344) -> 0 | AI57: =SUMIF(Calculations!$I$15:$I$1344,$J57,Calculations!AL$15:AL$1344) -> 0 | AJ57: =SUMIF(Calculations!$I$15:$I$1344,$J57,Calculations!AM$15:AM$1344) -> 0
I59: NOPLAT | L59: =L55-L57 -> 369303.5103 | O59: =O55-O57 -> 0 | P59: =P55-P57 -> 0 | Q59: =Q55-Q57 -> 14268.52254 | R59: 13917.89724 | S59: 2268.137041 | T59: -251827.4356 | U59: -33290.82832 | V59: -24931.70591 | W59: -17538.0871 | X59: -32103.37816 | Y59: 70511.9736 | Z59: 66729.60523 | AA59: 59260.72424 | AB59: 16498.75034 | AC59: 245859.5114 | AD59: 204059.6123 | AE59: 11873.40383 | AF59: 11873.40383 | AG59: 11873.40383 | AH59: 0 | AI59: 0 | AJ59: 0
I61: Capital Charge | J61: =$J$3&I61 -> 1Capital Charge | L61: =L71 -> 369303.5103 | O61: =O71 -> 0 | P61: =P71 -> 0 | Q61: =Q71 -> 0 | R61: 56.99419435 | S61: 708.5417933 | T61: 1717.698169 | U61: 2395.215309 | V61: 3304.819515 | W61: 4339.765014 | X61: 2771.653729 | Y61: 2882.011933 | Z61: 4412.592249 | AA61: 3841.148358 | AB61: 320236.3977 | AC61: 4509.975616 | AD61: 4305.548439 | AE61: 1445.225828 | AF61: -518.1677724 | AG61: 1209.971457 | AH61: 502.8853032 | AI61: -0.3127172391 | AJ61: -3.375210526e-10
G63: 1
I65: Capital Charge Rate | J65: =$J$3&I65 -> 1Capital Charge Rate | O65: =Global!$O$39 -> 0.003994400555 | P65: =Global!$O$39 -> 0.003994400555 | Q65: =Global!$O$39 -> 0.003994400555 | R65: =Q65 -> 0.003994400555 | S65: 0.003994400555 | T65: 0.003994400555 | U65: 0.003994400555 | V65: 0.003994400555 | W65: 0.003994400555 | X65: 0.003994400555 | Y65: 0.003994400555 | Z65: 0.003994400555 | AA65: 0.003994400555 | AB65: 0.003994400555 | AC65: 0.003994400555 | AD65: 0.003994400555 | AE65: 0.003994400555 | AF65: 0.003994400555 | AG65: 0.003994400555 | AH65: 0.003994400555 | AI65: 0.003994400555 | AJ65: 0.003994400555
I66: Capital Charge on Fixed Assets | L66: =Calculations!N1214 -> 316198.05 | O66: =Calculations!R1214 -> 0 | P66: =Calculations!S1214 -> 0 | Q66: =Calculations!T1214 -> 0 | R66: =Calculations!U1214 -> 0 | S66: =Calculations!V1214 -> 0 | T66: =Calculations!W1214 -> 0 | U66: =Calculations!X1214 -> 0 | V66: =Calculations!Y1214 -> 0 | W66: =Calculations!Z1214 -> 0 | X66: =Calculations!AA1214 -> 0 | Y66: =Calculations!AB1214 -> 0 | Z66: =Calculations!AC1214 -> 0 | AA66: =Calculations!AD1214 -> 0 | AB66: =Calculations!AE1214 -> 316198.05 | AC66: =Calculations!AF1214 -> 0 | AD66: =Calculations!AG1214 -> 0
I68: 12 Month Average | L68: =SUM(O68:AJ68)/12 -> 767823.8814 | O68: =Calculations!R1226 -> 0 | P68: =Calculations!S1226 -> 0 | Q68: =Calculations!T1226 -> 0 | R68: =Calculations!U1226 -> 14268.52254 | S68: =Calculations!V1226 -> 177383.761 | T68: =Calculations!W1226 -> 383586.7422 | U68: =Calculations!X1226 -> 499698.0819 | V68: =Calculations!Y1226 -> 693904.9086 | W68: =Calculations!Z1226 -> 953463.1801 | X68: =Calculations!AA1226 -> 575339.2819 | Y68: =Calculations!AB1226 -> 622545.1512 | Z68: =Calculations!AC1226 -> 971325.664 | AA68: =Calculations!AD1226 -> 855553.482 | AB68: =Calculations!AE1226 -> 889801.1973 | AC68: =Calculations!AF1226 -> 987868.994 | AD68: =Calculations!AG1226 -> 975738.4088 | AE68: =Calculations!AH1226 -> 330915.4722 | AF68: =Calculations!AI1226 -> -144177.4436 | AG68: =Calculations!AJ1226 -> 300851.8962 | AH68: =Calculations!AK1226 -> 125897.5649 | AI68: =Calculations!AL1226 -> -78.28890337 | AJ68: =Calculations!AM1226 -> -7.052871078e-08
I69: Capital Charge on Net Working Capital | L69: =SUM(O69:AJ69) -> 41923.91417 | O69: =Calculations!R1230 -> 0 | P69: =Calculations!S1230 -> 0 | Q69: =Calculations!T1230 -> 0 | R69: =Calculations!U1230 -> 56.99419435 | S69: =Calculations!V1230 -> 708.5417933 | T69: =Calculations!W1230 -> 1717.698169 | U69: =Calculations!X1230 -> 2395.215309 | V69: =Calculations!Y1230 -> 3304.819515 | W69: =Calculations!Z1230 -> 4339.765014 | X69: =Calculations!AA1230 -> 2771.653729 | Y69: =Calculations!AB1230 -> 2882.011933 | Z69: =Calculations!AC1230 -> 4412.592249 | AA69: =Calculations!AD1230 -> 3841.148358 | AB69: =Calculations!AE1230 -> 4038.347756 | AC69: =Calculations!AF1230 -> 4509.975616 | AD69: =Calculations!AG1230 -> 4305.548439 | AE69: =Calculations!AH1230 -> 1445.225828 | AF69: =Calculations!AI1230 -> -518.1677724 | AG69: =Calculations!AJ1230 -> 1209.971457 | AH69: =Calculations!AK1230 -> 502.8853032 | AI69: =Calculations!AL1230 -> -0.3127172391 | AJ69: =Calculations!AM1230 -> -2.817199215e-10
I70: Time Value of Money Adjustment | L70: =L59-L66-L69 -> 11181.54613
I71: Total Capital Charge | L71: =L69+L66+L70 -> 369303.5103 | O71: =O69+O66 -> 0 | P71: 0 | Q71: 0 | R71: 56.99419435 | S71: 708.5417933 | T71: 1717.698169 | U71: 2395.215309 | V71: 3304.819515 | W71: 4339.765014 | X71: 2771.653729 | Y71: 2882.011933 | Z71: 4412.592249 | AA71: 3841.148358 | AB71: 320236.3977 | AC71: 4509.975616 | AD71: 4305.548439 | AE71: 1445.225828 | AF71: -518.1677724 | AG71: 1209.971457 | AH71: 502.8853032 | AI71: -0.3127172391 | AJ71: -2.817199215e-10
I73: Per KGMS
I74: Revenue
I75: Sales | J75: =$J$3&I75 -> 1Sales | L75: =L17/L$11 -> 9.75313863
I76: Downgrade expense (excl rework) | J76: =$J$3&I76 -> 1Downgrade expense (excl rework) | L76: =L18/L$11 -> 0
I77: Net Sales | L77: =SUM(L75:L76) -> 9.75313863
I79: Non-Milk Costs
I80: Commission | J80: =$J$3&I80 -> 1Commission | L80: =L22/L$11 -> 0.08571721813
I81: Collection Costs | J81: =$J$3&I81 -> 1Collection Costs | L81: =L23/L$11 -> 0.2332995589
I82: Lactose | L82: =L24/L$11 -> 0.4207825569
I83: Operating Costs
I84: Packaging | J84: =$J$3&I84 -> 1Packaging | L84: =L26/L$11 -> 0.3358833637
I85: Energy - Variable | J85: 1Energy - Variable | L85: 0
I86: Water | J86: 1Water | L86: 0
I87: Cleaning & CIP | J87: 1Cleaning & CIP | L87: 0
I88: Consumables | J88: 1Consumables | L88: 0
I89: Effluent | J89: 1Effluent | L89: 0
I90: Laboratory | J90: 1Laboratory | L90: 0
I91: Variable operating costs | L91: 0.3358833637
I92: Wages & ERE | J92: =$J$3&I92 -> 1Wages & ERE | L92: 0
I93: Repairs & Maintenance | J93: =$J$3&I93 -> 1Repairs & Maintenance | L93: 0
I94: Energy - Fixed | J94: =$J$3&I94 -> 1Energy - Fixed | L94: 0
I95: Site Overheads | J95: =$J$3&I95 -> 1Site Overheads | L95: 0.2556268817
I96: Fixed operating costs | L96: 0.2556268817
I97: Operating Costs | J97: =$J$3&I97 -> 1Operating Costs | L97: 0.5915102454
I98: Variable supply chain costs | J98: 1Variable supply chain costs | L98: 0.1557333889
I99: Fixed supply chain costs | J99: 1Fixed supply chain costs | L99: 0
I100: Supply Chain | J100: 1Supply Chain | L100: 0.1557333889
I101: Administration | J101: 1Administration | L101: 0.2235549921
I102: Miscellaneous costs | J102: 1Miscellaneous costs | L102: 0
I103: Depreciation Expense | J103: 1Depreciation Expense | L103: 0.180531091
I104: Capital Charge | J104: 1Capital Charge | L104: =L117 -> 0.2399000095
I105: Tax Expense | J105: 1Tax Expense | L105: =L57/L$11 -> 0.06939610136
I106: Total Expenses | L106: =SUM(L80:L82,L97,L100:L105) -> 2.200425162
I108: Additional Commodity Milk Payments And Standard Supply Adjustments | L108: =L51/L$11 -> 0.00989281488
I110: Farmgate Milk Price | L110: =Calculations!$N$1275-L108 -> 7.542820653
L111: =L110-(L77-L106-L108) -> 0
I113: Capital Base
I114: Capital Charge on Fixed Assets | L114: =L66/L$11 -> 0.2054026379
I115: Capital Charge on Net Working Capital | L115: =L69/L$11 -> 0.02723382564
I116: Time Value of Money Adjustment | L116: =L70/L$11 -> 0.007263545963
I117: Total Capital Charge | L117: =L115+L114+L116 -> 0.2399000095
I119: Cash Flows
I121: Cash From Sales | L121: =SUM(O121:AJ121) -> 15014039.98 | O121: =Calculations!R929 -> 0 | P121: =Calculations!S929 -> 0 | Q121: =Calculations!T929 -> 0 | R121: =Calculations!U929 -> 0 | S121: =Calculations!V929 -> 0 | T121: =Calculations!W929 -> 248853.7797 | U121: =Calculations!X929 -> 850350.1895 | V121: =Calculations!Y929 -> 1006573.146 | W121: =Calculations!Z929 -> 1512634.212 | X121: =Calculations!AA929 -> 1479197.839 | Y121: =Calculations!AB929 -> 1330385.834 | Z121: =Calculations!AC929 -> 1408744.704 | AA121: =Calculations!AD929 -> 1283635.774 | AB121: =Calculations!AE929 -> 1392974.645 | AC121: =Calculations!AF929 -> 1435361.606 | AD121: =Calculations!AG929 -> 1501753.315 | AE121: =Calculations!AH929 -> 1056783.728 | AF121: =Calculations!AI929 -> 184955.6026 | AG121: =Calculations!AJ929 -> 193510.6025 | AH121: =Calculations!AK929 -> 128324.9986 | AI121: =Calculations!AL929 -> 0 | AJ121: =Calculations!AM929 -> 0
I123: Trade Creditors | L123: =SUM(O123:AJ123) -> -2638424.698 | O123: =Calculations!R1282 -> 0 | P123: =Calculations!S1282 -> 0 | Q123: =Calculations!T1282 -> 0 | R123: =Calculations!U1282 -> -87788.02814 | S123: =Calculations!V1282 -> -124594.3994 | T123: =Calculations!W1282 -> -162262.8493 | U123: =Calculations!X1282 -> -251337.6255 | V123: =Calculations!Y1282 -> -272832.6128 | W123: =Calculations!Z1282 -> -279669.0206 | X123: =Calculations!AA1282 -> -269210.2469 | Y123: =Calculations!AB1282 -> -228857.1974 | Z123: =Calculations!AC1282 -> -243704.5406 | AA123: =Calculations!AD1282 -> -227881.767 | AB123: =Calculations!AE1282 -> -231185.8206 | AC123: =Calculations!AF1282 -> -183087.1289 | AD123: =Calculations!AG1282 -> -37516.43048 | AE123: =Calculations!AH1282 -> -31148.73047 | AF123: =Calculations!AI1282 -> -2406.879445 | AG123: =Calculations!AJ1282 -> -2513.9867 | AH123: =Calculations!AK1282 -> -2349.144757 | AI123: =Calculations!AL1282 -> -78.28890331 | AJ123: =Calculations!AM1282 -> 0
I124: Suppliers | L124: =SUM(O124:AJ124) -> -11626692.31 | O124: =Calculations!R1283 -> 0 | P124: =Calculations!S1283 -> 0 | Q124: =Calculations!T1283 -> 0 | R124: =Calculations!U1283 -> -61409.31306 | S124: =Calculations!V1283 -> -79340.44477 | T124: =Calculations!W1283 -> -419105.6135 | U124: =Calculations!X1283 -> -826909.4401 | V124: =Calculations!Y1283 -> -1018763.596 | W124: =Calculations!Z1283 -> -872910.6319 | X124: =Calculations!AA1283 -> -1254160.766 | Y124: =Calculations!AB1283 -> -1380192.493 | Z124: =Calculations!AC1283 -> -983071.1049 | AA124: =Calculations!AD1283 -> -1031164.723 | AB124: =Calculations!AE1283 -> -930321.7627 | AC124: =Calculations!AF1283 -> -994848.4121 | AD124: =Calculations!AG1283 -> -615762.3938 | AE124: =Calculations!AH1283 -> -538792.0946 | AF124: =Calculations!AI1283 -> -615762.3938 | AG124: =Calculations!AJ1283 -> -4177.129091 | AH124: =Calculations!AK1283 -> 0 | AI124: =Calculations!AL1283 -> 0 | AJ124: =Calculations!AM1283 -> 0
I125: Tax | L125: =SUM(O125:AJ125) -> -106828.7737 | O125: =Calculations!R1284 -> 0 | P125: =Calculations!S1284 -> 0 | Q125: =Calculations!T1284 -> 0 | R125: =Calculations!U1284 -> 0 | S125: =Calculations!V1284 -> 0 | T125: =Calculations!W1284 -> -35609.59125 | U125: =Calculations!X1284 -> 0 | V125: =Calculations!Y1284 -> 0 | W125: =Calculations!Z1284 -> 0 | X125: =Calculations!AA1284 -> -35609.59125 | Y125: =Calculations!AB1284 -> 0 | Z125: =Calculations!AC1284 -> 0 | AA125: =Calculations!AD1284 -> 0 | AB125: =Calculations!AE1284 -> -35609.59125 | AC125: =Calculations!AF1284 -> 0 | AD125: =Calculations!AG1284 -> 0 | AE125: =Calculations!AH1284 -> 0 | AF125: =Calculations!AI1284 -> 0 | AG125: =Calculations!AJ1284 -> 0 | AH125: =Calculations!AK1284 -> 0 | AI125: =Calculations!AL1284 -> 0 | AJ125: =Calculations!AM1284 -> 0
I127: Operating Cash Flow | L127: =SUM(O127:AJ127) -> 642094.1917 | O127: =SUM(O121,O123:O125) -> 0 | P127: =SUM(P121,P123:P125) -> 0 | Q127: =SUM(Q121,Q123:Q125) -> 0 | R127: -149197.3412 | S127: -203934.8441 | T127: -368124.2744 | U127: -227896.8761 | V127: -285023.0628 | W127: 360054.5599 | X127: -79782.76556 | Y127: -278663.8565 | Z127: 181969.0587 | AA127: 24589.28389 | AB127: 195857.4702 | AC127: 257426.0654 | AD127: 848474.4904 | AE127: 486842.9028 | AF127: -433213.6707 | AG127: 186819.4867 | AH127: 125975.8538 | AI127: -78.28890331 | AJ127: 0
I129: WACC | L129: =Global!O38 -> 0.049 | O129: =O65 -> 0.003994400555 | P129: 0.003994400555 | Q129: 0.003994400555 | R129: 0.003994400555 | S129: 0.003994400555 | T129: 0.003994400555 | U129: 0.003994400555 | V129: 0.003994400555 | W129: 0.003994400555 | X129: 0.003994400555 | Y129: 0.003994400555 | Z129: 0.003994400555 | AA129: 0.003994400555 | AB129: 0.003994400555 | AC129: 0.003994400555 | AD129: 0.003994400555 | AE129: 0.003994400555 | AF129: 0.003994400555 | AG129: 0.003994400555 | AH129: 0.003994400555 | AI129: 0.003994400555 | AJ129: 0.003994400555
I131: Discount Factor | O131: =P131*(1+O129) -> 1.003994401 | P131: =Q131*(1+P129) -> 1 | Q131: =1/(1+Q129) -> 0.9960214912 | R131: =Q131/(1+R129) -> 0.9920588109 | S131: =R131/(1+S129) -> 0.9881118962 | T131: 0.9841806844 | U131: 0.9802651128 | V131: 0.9763651195 | W131: 0.9724806423 | X131: 0.9686116195 | Y131: 0.9647579896 | Z131: 0.9609196915 | AA131: 0.957096664 | AB131: 0.9532888465 | AC131: 0.9494961785 | AD131: 0.9457185996 | AE131: 0.9419560498 | AF131: 0.9382084694 | AG131: 0.9344757987 | AH131: 0.9307579785 | AI131: 0.9270549497 | AJ131: 0.9233666534
I132: Discounted Cash Flows | L132: =SUM(O132:AJ132) -> 566357.1896 | O132: =O131*O127 -> 0 | P132: =P131*P127 -> 0 | Q132: =Q131*Q127 -> 0 | R132: =R131*R127 -> -148012.5369 | S132: =S131*S127 -> -201510.4456 | T132: -362300.8003 | U132: -223399.3569 | V132: -278286.5767 | W132: 350146.0897 | X132: -77278.51376 | Y132: -268843.1819 | Z132: 174857.6518 | AA132: 23534.32158 | AB132: 186708.7418 | AC132: 244425.0654 | AD132: 802418.1068 | AE132: 458584.6176 | AF132: -406444.7349 | AG132: 174578.289 | AH132: 117253.031 | AI132: -72.57811532 | AJ132: 0
I134: Present Value of required return
I135: Capital charge on fixed assets (discounted) | L135: =SUMPRODUCT(Q$131:AD$131,Q66:AD66) -> 301428.0743
I136: Depreciation (discounted) | L136: =SUMPRODUCT(Q$131:AD$131,Q45:AD45) -> 264929.1152
I137: Net | L137: =SUM(L135:L136) -> 566357.1896
I139: Excess / (Deficit) Return | L139: =L132-L137 -> -3.143213689e-09
I140: cents / kgms | L140: =L139/L12 -> -2.04207789e-15
I142: Check consistency of financials / cash flows
I143: NOPLAT | O143: =O59 -> 0 | P143: 0 | Q143: 14268.52254 | R143: 13917.89724 | S143: 2268.137041 | T143: -251827.4356 | U143: -33290.82832 | V143: -24931.70591 | W143: -17538.0871 | X143: -32103.37816 | Y143: 70511.9736 | Z143: 66729.60523 | AA143: 59260.72424 | AB143: 16498.75034 | AC143: 245859.5114 | AD143: 204059.6123 | AE143: 11873.40383 | AF143: 11873.40383 | AG143: 11873.40383 | AH143: 0 | AI143: 0 | AJ143: 0
I144: + depreciation | O144: =O45 -> 0 | P144: 0 | Q144: 0 | R144: 0 | S144: 0 | T144: 0 | U144: 0 | V144: 0 | W144: 0 | X144: 0 | Y144: 0 | Z144: 0 | AA144: 0 | AB144: 277910.6419 | AC144: 0 | AD144: 0 | AE144: 0 | AF144: 0 | AG144: 0 | AH144: 0 | AI144: 0 | AJ144: 0
I145: + change in working capital | O145: =-(Calculations!S1226-Calculations!R1226+Calculations!R1229) -> 0 | P145: =-(Calculations!T1226-Calculations!S1226+Calculations!S1229) -> 0 | Q145: =-(Calculations!U1226-Calculations!T1226+Calculations!T1229) -> -14268.52254 | R145: =-(Calculations!V1226-Calculations!U1226+Calculations!U1229) -> -163115.2384 | S145: =-(Calculations!W1226-Calculations!V1226+Calculations!V1229) -> -206202.9812 | T145: =-(Calculations!X1226-Calculations!W1226+Calculations!W1229) -> -116296.8388 | U145: =-(Calculations!Y1226-Calculations!X1226+Calculations!X1229) -> -194606.0477 | V145: =-(Calculations!Z1226-Calculations!Y1226+Calculations!Y1229) -> -260091.3568 | W145: =-(Calculations!AA1226-Calculations!Z1226+Calculations!Z1229) -> 377592.647 | X145: =-(Calculations!AB1226-Calculations!AA1226+Calculations!AA1229) -> -47679.38741 | Y145: =-(Calculations!AC1226-Calculations!AB1226+Calculations!AB1229) -> -349175.8301 | Z145: =-(Calculations!AD1226-Calculations!AC1226+Calculations!AC1229) -> 115239.4535 | AA145: =-(Calculations!AE1226-Calculations!AD1226+Calculations!AD1229) -> -34671.44035 | AB145: =-(Calculations!AF1226-Calculations!AE1226+Calculations!AE1229) -> -98551.92205 | AC145: =-(Calculations!AG1226-Calculations!AF1226+Calculations!AF1229) -> 11566.55407 | AD145: =-(Calculations!AH1226-Calculations!AG1226+Calculations!AG1229) -> 644414.8781 | AE145: =-(Calculations!AI1226-Calculations!AH1226+Calculations!AH1229) -> 474969.499 | AF145: =-(Calculations!AJ1226-Calculations!AI1226+Calculations!AI1229) -> -445087.0745 | AG145: =-(Calculations!AK1226-Calculations!AJ1226+Calculations!AJ1229) -> 174946.0829 | AH145: =-(Calculations!AL1226-Calculations!AK1226+Calculations!AK1229) -> 125975.8538 | AI145: =-(Calculations!AM1226-Calculations!AL1226+Calculations!AL1229) -> -78.2889033 | AJ145: =-(Calculations!AN1226-Calculations!AM1226+Calculations!AM1229) -> 1.396983862e-08
I146: Operating Cash Flow | O146: =SUM(O143:O145) -> 0 | P146: 0 | Q146: 0 | R146: -149197.3412 | S146: -203934.8441 | T146: -368124.2744 | U146: -227896.8761 | V146: -285023.0628 | W146: 360054.5599 | X146: -79782.76556 | Y146: -278663.8565 | Z146: 181969.0587 | AA146: 24589.28389 | AB146: 195857.4702 | AC146: 257426.0654 | AD146: 848474.4904 | AE146: 486842.9028 | AF146: -433213.6707 | AG146: 186819.4867 | AH146: 125975.8538 | AI146: -78.2889033 | AJ146: 1.396983862e-08
I147: check | L147: =IF(ROUND(SUM(O147:AJ147),3)=0,"Okay","Error") -> Okay | O147: =O127-O146 -> 0 | P147: 0 | Q147: 0 | R147: 0 | S147: 0 | T147: 0 | U147: -2.910383046e-10 | V147: -1.746229827e-09 | W147: -8.731149137e-10 | X147: -1.862645149e-09 | Y147: -1.629814506e-09 | Z147: -2.211891115e-09 | AA147: -1.760781743e-09 | AB147: -5.471520126e-09 | AC147: -5.587935448e-09 | AD147: -4.889443517e-09 | AE147: -7.334165275e-09 | AF147: -9.371433407e-09 | AG147: -6.548361853e-09 | AH147: -1.11758709e-08 | AI147: -8.847564459e-09 | AJ147: -1.396983862e-08

Sheet LookupTables (hidden)
E10: Year to date month | I10: Selected
E11: =Global!K32 -> 2020-06-30 | F11: YTD_Months | I11: 18
E12: =EOMONTH(E11,1) -> 2020-07-31 | I12: =CHOOSE(YTD_Months_No,$E$11,$E$12,$E$13,$E$14,$E$15,$E$16,$E$17,$E$18,$E$19,$E$20,$E$21,$E$22,$E$23,$E$24,$E$25,$E$26,$E$27,$E$28) -> 2021-11-30
E13: =EOMONTH(E12,1) -> 2020-08-31
E14: 2020-09-30
E15: 2020-10-31
E16: 2020-11-30
E17: 2020-12-31
E18: 2021-01-31
E19: 2021-02-28
E20: 2021-03-31
E21: 2021-04-30
E22: 2021-05-31
E23: 2021-06-30
E24: 2021-07-31
E25: 2021-08-31
E26: 2021-09-30
E27: 2021-10-31
E28: 2021-11-30

Sheet nav_inputs (hidden)
B5: Full | C5: References | F5: Caption
B6: Caption | C6: Worksheet | D6: Cell | E6: Level A | F6: Level B | G6: Level C
B7: Entities | C7: Global | D7: A1 | E7: Global
B8: =E8&IF(F8="","",IF(G8=""," / "&F8," / "&F8&" / "&G8)) -> Data Input / GLOBAL | C8: Data Input | D8: ="A"&MATCH(F8,'Data Input'!$F$13:$F$718,0)+15 -> A17 | E8: Data Input | F8: ='Data Input'!F14 -> GLOBAL
B9: Data Input / MILK SUPPLY | C9: Data Input | D9: ="A"&MATCH(F9,'Data Input'!$F$13:$F$718,0)+15 -> A27 | E9: Data Input | F9: ='Data Input'!F24 -> MILK SUPPLY
B10: Data Input / PRODUCTION | C10: Data Input | D10: ="A"&MATCH(F10,'Data Input'!$F$13:$F$718,0)+15 -> A39 | E10: Data Input | F10: ='Data Input'!F36 -> PRODUCTION
B11: Data Input / REVENUE / 1. Base Commodity Prices | C11: Data Input | D11: ="A"&MATCH(G11,'Data Input'!$E$13:$E$718,0)+15 -> A86 | E11: Data Input | F11: ='Data Input'!F77 -> REVENUE | G11: ='Data Input'!E83 -> 1. Base Commodity Prices
B12: =E12&IF(F12="","",IF(G12=""," / "&F12," / "&F12&" / "&G12)) -> Data Input / REVENUE / 2. Sales Phasing | C12: Data Input | D12: ="A"&MATCH(G12,'Data Input'!$E$13:$E$718,0)+15 -> A100 | E12: Data Input | F12: =F11 -> REVENUE | G12: ='Data Input'!E97 -> 2. Sales Phasing
B13: =E13&IF(F13="","",IF(G13=""," / "&F13," / "&F13&" / "&G13)) -> Data Input / COLLECTION | C13: Data Input | D13: ="A"&MATCH(F13,'Data Input'!$F$13:$F$718,0)+15 -> A135 | E13: Data Input | F13: ='Data Input'!F132 -> COLLECTION
B14: Data Input / OPEX | C14: Data Input | D14: ="A"&MATCH(F14,'Data Input'!$F$13:$F$718,0)+15 -> A146 | E14: Data Input | F14: ='Data Input'!F143 -> OPEX
B15: Data Input / SUPPLY CHAIN | C15: Data Input | D15: ="A"&MATCH(F15,'Data Input'!$F$13:$F$718,0)+15 -> A193 | E15: Data Input | F15: ='Data Input'!F190 -> SUPPLY CHAIN
B16: Data Input / ADMINISTRATION | C16: Data Input | D16: ="A"&MATCH(F16,'Data Input'!$F$13:$F$718,0)+15 -> A220 | E16: Data Input | F16: ='Data Input'!F217 -> ADMINISTRATION
B17: Data Input / FIXED ASSETS | C17: Data Input | D17: ="A"&MATCH(F17,'Data Input'!$F$13:$F$718,0)+15 -> A233 | E17: Data Input | F17: ='Data Input'!F230 -> FIXED ASSETS
B18: Data Input / INCOME TAX | C18: Data Input | D18: ="A"&MATCH(F18,'Data Input'!$F$13:$F$718,0)+15 -> A244 | E18: Data Input | F18: ='Data Input'!F241 -> INCOME TAX
B19: Data Input / WORKING CAPITAL | C19: Data Input | D19: ="A"&MATCH(F19,'Data Input'!$F$13:$F$718,0)+15 -> A254 | E19: Data Input | F19: ='Data Input'!F251 -> WORKING CAPITAL
B20: Data Input / WORKING CAPITAL | C20: Data Input | D20: ="A"&MATCH(F20,'Data Input'!$F$13:$F$718,0)+14 -> A253 | E20: Data Input | F20: ='Data Input'!F251 -> WORKING CAPITAL
B21: Calculations / PRODUCTION | C21: Calculations | D21: ="A"&MATCH(F21,Calculations!$D$11:$D$1344,0)+13 -> A17 | E21: =C21 -> Calculations | F21: =Calculations!D14 -> PRODUCTION
B22: Calculations / COMPONENT MILK PRICE | C22: Calculations | D22: ="A"&MATCH(F22,Calculations!$D$11:$D$1344,0)+13 -> A237 | E22: Calculations | F22: =Calculations!D234 -> COMPONENT MILK PRICE
B23: Calculations / SALES REVENUE | C23: Calculations | D23: ="A"&MATCH(F23,Calculations!$D$11:$D$1344,0)+13 -> A298 | E23: Calculations | F23: =Calculations!D295 -> SALES REVENUE
B24: Calculations / COST OF MILK | C24: Calculations | D24: ="A"&MATCH(F24,Calculations!$D$11:$D$1344,0)+13 -> A523 | E24: Calculations | F24: =Calculations!D520 -> COST OF MILK
B25: Calculations / COLLECTION COSTS | C25: Calculations | D25: ="A"&MATCH(F25,Calculations!$D$11:$D$1344,0)+13 -> A539 | E25: Calculations | F25: =Calculations!D536 -> COLLECTION COSTS
B26: Calculations / OPEX | C26: Calculations | D26: ="A"&MATCH(F26,Calculations!$D$11:$D$1344,0)+13 -> A560 | E26: Calculations | F26: =Calculations!D557 -> OPEX
B27: Calculations / SUPPLY CHAIN COSTS | C27: Calculations | D27: ="A"&MATCH(F27,Calculations!$D$11:$D$1344,0)+13 -> A761 | E27: Calculations | F27: =Calculations!D758 -> SUPPLY CHAIN COSTS
B28: Calculations / ADMINISTRATION COSTS | C28: Calculations | D28: ="A"&MATCH(F28,Calculations!$D$11:$D$1344,0)+13 -> A850 | E28: Calculations | F28: =Calculations!D847 -> ADMINISTRATION COSTS
B29: Calculations / CURRENT ASSET MOVEMENTS / Receivables | C29: Calculations | D29: ="A"&MATCH(G29,Calculations!$D$11:$D$1344,0)+13 -> A888 | E29: Calculations | F29: =Calculations!D883 -> CURRENT ASSET MOVEMENTS | G29: =Calculations!D885 -> Receivables
B30: Calculations / CURRENT ASSET MOVEMENTS / INVENTORY | C30: Calculations | D30: ="A"&MATCH(G30,Calculations!$D$11:$D$1344,0)+13 -> A936 | E30: Calculations | F30: =F29 -> CURRENT ASSET MOVEMENTS | G30: =Calculations!D933 -> INVENTORY
B31: Calculations / CURRENT LIABILITY MOVEMENTS / TRADE CREDITORS | C31: Calculations | D31: ="A"&MATCH(G31,Calculations!$D$11:$D$1344,0)+13 -> A1102 | E31: Calculations | F31: =Calculations!D1097 -> CURRENT LIABILITY MOVEMENTS | G31: =Calculations!D1099 -> TRADE CREDITORS
B32: Calculations / CURRENT LIABILITY MOVEMENTS / OWING TO SUPPLIERS | C32: Calculations | D32: ="A"&MATCH(G32,Calculations!$D$11:$D$1344,0)+13 -> A1160 | E32: Calculations | F32: =F31 -> CURRENT LIABILITY MOVEMENTS | G32: =Calculations!D1157 -> OWING TO SUPPLIERS
B33: Calculations / FIXED ASSETS | C33: Calculations | D33: ="A"&MATCH(F33,Calculations!$D$11:$D$1344,0)+13 -> A1191 | E33: Calculations | F33: =Calculations!D1188 -> FIXED ASSETS
B34: Calculations / CAPITAL CHARGE | C34: Calculations | D34: ="A"&MATCH(F34,Calculations!$D$11:$D$1344,0)+13 -> A1202 | E34: Calculations | F34: =Calculations!D1199 -> CAPITAL CHARGE
B35: Calculations / MILK PRICE CALCULATION | C35: Calculations | D35: ="A"&MATCH(F35,Calculations!$D$11:$D$1344,0)+13 -> A1235 | E35: Calculations | F35: =Calculations!D1232 -> MILK PRICE CALCULATION
B36: Calculations / TAX EXPENSE | C36: Calculations | D36: ="A"&MATCH(F36,Calculations!$D$11:$D$1344,0)+13 -> A1298 | E36: Calculations | F36: =Calculations!D1295 -> TAX EXPENSE
B37: Calculations / TAX PAYMENTS | C37: Calculations | D37: ="A"&MATCH(F37,Calculations!$D$11:$D$1344,0)+13 -> A1327 | E37: Calculations | F37: =Calculations!D1324 -> TAX PAYMENTS
B38: Summary | C38: Summary | D38: A1 | E38: Summary
B40: =E40&IF(F40="","",IF(G40=""," / "&F40," / "&F40&" / "&G40)) -> 
D67: Worksheet Names
D69: Global
D70: Data Input
D71: GDT
D72: Calculations
D73: Summary
D74: LookupTables
